Workbook

Sheet الرصيد الثابت
A1: اللون | B1: الوصف | C1: المقاس | D1: اللون | E1: رصيد اقتتاحي بالكيلو | F1: رصيد اقتتاحي بالمتر | G1: رصيد اقتتاحي بالقطع | H1: رصيد ختامي يالكيلو | I1: رصيد ختامي يالمتر | J1: رصيد ختامي يالقطع | N1: 1000
A2: ابيض | B2: استك طبي | C2: 2.58 | D2: =A2&" "&B2&" "&C2 -> ابيض استك طبي 2.58 | H2: =IF(E2="","",SUMIF(الدخول!$B$3:$B$150,D2,الدخول!$F$3:$F$150)+SUMIF(الدخول!$B$3:$B$150,D2,الدخول!$S$3:$S$150)+E2-SUMIF(الدخول!$B$3:$B$150,D2,الدخول!$L$3:$L$150)) ->  | I2: =IF(F2="","",SUMIF(الدخول!$B$3:$B$150,D2,الدخول!$H$3:$H$150)+SUMIF(الدخول!$B$3:$B$150,D2,الدخول!$U$3:$U$150)+F2-SUMIF(الدخول!$B$3:$B$150,D2,الدخول!$N$3:$N$150)) ->  | J2: =IF(G2="","",SUMIF(الدخول!$B$3:$B$150,D2,الدخول!$I$3:$I$150)+SUMIF(الدخول!$B$3:$B$150,D2,الدخول!$V$3:$V$150)+G2-SUMIF(الدخول!$B$3:$B$150,D2,الدخول!$O$3:$O$150)) ->  | M2: اسود | N2: =MATCH(M2,D:D,0) -> 
A3: ابيض | B3: استك طبي | C3: 2.78 | D3: ابيض استك طبي 2.78 | H3: =IF(E3="","",SUMIF(الدخول!$B$3:$B$150,D3,الدخول!$F$3:$F$150)+SUMIF(الدخول!$B$3:$B$150,D3,الدخول!$S$3:$S$150)+E3-SUMIF(الدخول!$B$3:$B$150,D3,الدخول!$L$3:$L$150)) ->  | I3: =IF(F3="","",SUMIF(الدخول!$B$3:$B$150,D3,الدخول!$H$3:$H$150)+SUMIF(الدخول!$B$3:$B$150,D3,الدخول!$U$3:$U$150)+F3-SUMIF(الدخول!$B$3:$B$150,D3,الدخول!$N$3:$N$150)) ->  | J3: =IF(G3="","",SUMIF(الدخول!$B$3:$B$150,D3,الدخول!$I$3:$I$150)+SUMIF(الدخول!$B$3:$B$150,D3,الدخول!$V$3:$V$150)+G3-SUMIF(الدخول!$B$3:$B$150,D3,الدخول!$O$3:$O$150)) -> 
A4: ابيض | B4: استك طبي | C4: 3.02 | D4: ابيض استك طبي 3.02 | H4: =IF(E4="","",SUMIF(الدخول!$B$3:$B$150,D4,الدخول!$F$3:$F$150)+SUMIF(الدخول!$B$3:$B$150,D4,الدخول!$S$3:$S$150)+E4-SUMIF(الدخول!$B$3:$B$150,D4,الدخول!$L$3:$L$150)) ->  | I4: =IF(F4="","",SUMIF(الدخول!$B$3:$B$150,D4,الدخول!$H$3:$H$150)+SUMIF(الدخول!$B$3:$B$150,D4,الدخول!$U$3:$U$150)+F4-SUMIF(الدخول!$B$3:$B$150,D4,الدخول!$N$3:$N$150)) ->  | J4: =IF(G4="","",SUMIF(الدخول!$B$3:$B$150,D4,الدخول!$I$3:$I$150)+SUMIF(الدخول!$B$3:$B$150,D4,الدخول!$V$3:$V$150)+G4-SUMIF(الدخول!$B$3:$B$150,D4,الدخول!$O$3:$O$150)) -> 
A5: ابيض | B5: استك طبي | C5: 3.18 | D5: ابيض استك طبي 3.18 | H5: =IF(E5="","",SUMIF(الدخول!$B$3:$B$150,D5,الدخول!$F$3:$F$150)+SUMIF(الدخول!$B$3:$B$150,D5,الدخول!$S$3:$S$150)+E5-SUMIF(الدخول!$B$3:$B$150,D5,الدخول!$L$3:$L$150)) ->  | I5: =IF(F5="","",SUMIF(الدخول!$B$3:$B$150,D5,الدخول!$H$3:$H$150)+SUMIF(الدخول!$B$3:$B$150,D5,الدخول!$U$3:$U$150)+F5-SUMIF(الدخول!$B$3:$B$150,D5,الدخول!$N$3:$N$150)) ->  | J5: =IF(G5="","",SUMIF(الدخول!$B$3:$B$150,D5,الدخول!$I$3:$I$150)+SUMIF(الدخول!$B$3:$B$150,D5,الدخول!$V$3:$V$150)+G5-SUMIF(الدخول!$B$3:$B$150,D5,الدخول!$O$3:$O$150)) -> 
A6: ابيض | B6: استك طبي | C6: 3.3 | D6: ابيض استك طبي 3.3 | H6: =IF(E6="","",SUMIF(الدخول!$B$3:$B$150,D6,الدخول!$F$3:$F$150)+SUMIF(الدخول!$B$3:$B$150,D6,الدخول!$S$3:$S$150)+E6-SUMIF(الدخول!$B$3:$B$150,D6,الدخول!$L$3:$L$150)) ->  | I6: =IF(F6="","",SUMIF(الدخول!$B$3:$B$150,D6,الدخول!$H$3:$H$150)+SUMIF(الدخول!$B$3:$B$150,D6,الدخول!$U$3:$U$150)+F6-SUMIF(الدخول!$B$3:$B$150,D6,الدخول!$N$3:$N$150)) ->  | J6: =IF(G6="","",SUMIF(الدخول!$B$3:$B$150,D6,الدخول!$I$3:$I$150)+SUMIF(الدخول!$B$3:$B$150,D6,الدخول!$V$3:$V$150)+G6-SUMIF(الدخول!$B$3:$B$150,D6,الدخول!$O$3:$O$150)) -> 
A7: ابيض | B7: استك طبي | C7: 3.36 | D7: ابيض استك طبي 3.36 | H7: =IF(E7="","",SUMIF(الدخول!$B$3:$B$150,D7,الدخول!$F$3:$F$150)+SUMIF(الدخول!$B$3:$B$150,D7,الدخول!$S$3:$S$150)+E7-SUMIF(الدخول!$B$3:$B$150,D7,الدخول!$L$3:$L$150)) ->  | I7: =IF(F7="","",SUMIF(الدخول!$B$3:$B$150,D7,الدخول!$H$3:$H$150)+SUMIF(الدخول!$B$3:$B$150,D7,الدخول!$U$3:$U$150)+F7-SUMIF(الدخول!$B$3:$B$150,D7,الدخول!$N$3:$N$150)) ->  | J7: =IF(G7="","",SUMIF(الدخول!$B$3:$B$150,D7,الدخول!$I$3:$I$150)+SUMIF(الدخول!$B$3:$B$150,D7,الدخول!$V$3:$V$150)+G7-SUMIF(الدخول!$B$3:$B$150,D7,الدخول!$O$3:$O$150)) -> 
A8: ابيض | B8: استك طبي | C8: 3.5 | D8: ابيض استك طبي 3.5 | H8: =IF(E8="","",SUMIF(الدخول!$B$3:$B$150,D8,الدخول!$F$3:$F$150)+SUMIF(الدخول!$B$3:$B$150,D8,الدخول!$S$3:$S$150)+E8-SUMIF(الدخول!$B$3:$B$150,D8,الدخول!$L$3:$L$150)) ->  | I8: =IF(F8="","",SUMIF(الدخول!$B$3:$B$150,D8,الدخول!$H$3:$H$150)+SUMIF(الدخول!$B$3:$B$150,D8,الدخول!$U$3:$U$150)+F8-SUMIF(الدخول!$B$3:$B$150,D8,الدخول!$N$3:$N$150)) ->  | J8: =IF(G8="","",SUMIF(الدخول!$B$3:$B$150,D8,الدخول!$I$3:$I$150)+SUMIF(الدخول!$B$3:$B$150,D8,الدخول!$V$3:$V$150)+G8-SUMIF(الدخول!$B$3:$B$150,D8,الدخول!$O$3:$O$150)) -> 
A9: ابيض | B9: استك طبي | C9: 4.14 | D9: ابيض استك طبي 4.14 | H9: =IF(E9="","",SUMIF(الدخول!$B$3:$B$150,D9,الدخول!$F$3:$F$150)+SUMIF(الدخول!$B$3:$B$150,D9,الدخول!$S$3:$S$150)+E9-SUMIF(الدخول!$B$3:$B$150,D9,الدخول!$L$3:$L$150)) ->  | I9: =IF(F9="","",SUMIF(الدخول!$B$3:$B$150,D9,الدخول!$H$3:$H$150)+SUMIF(الدخول!$B$3:$B$150,D9,الدخول!$U$3:$U$150)+F9-SUMIF(الدخول!$B$3:$B$150,D9,الدخول!$N$3:$N$150)) ->  | J9: =IF(G9="","",SUMIF(الدخول!$B$3:$B$150,D9,الدخول!$I$3:$I$150)+SUMIF(الدخول!$B$3:$B$150,D9,الدخول!$V$3:$V$150)+G9-SUMIF(الدخول!$B$3:$B$150,D9,الدخول!$O$3:$O$150)) -> 
A10: ابيض | B10: استك طبي | C10: 4.92 | D10: ابيض استك طبي 4.92 | H10: =IF(E10="","",SUMIF(الدخول!$B$3:$B$150,D10,الدخول!$F$3:$F$150)+SUMIF(الدخول!$B$3:$B$150,D10,الدخول!$S$3:$S$150)+E10-SUMIF(الدخول!$B$3:$B$150,D10,الدخول!$L$3:$L$150)) ->  | I10: =IF(F10="","",SUMIF(الدخول!$B$3:$B$150,D10,الدخول!$H$3:$H$150)+SUMIF(الدخول!$B$3:$B$150,D10,الدخول!$U$3:$U$150)+F10-SUMIF(الدخول!$B$3:$B$150,D10,الدخول!$N$3:$N$150)) ->  | J10: =IF(G10="","",SUMIF(الدخول!$B$3:$B$150,D10,الدخول!$I$3:$I$150)+SUMIF(الدخول!$B$3:$B$150,D10,الدخول!$V$3:$V$150)+G10-SUMIF(الدخول!$B$3:$B$150,D10,الدخول!$O$3:$O$150)) -> 
A11: ابيض | B11: استك طبي | C11: 7.52 | D11: ابيض استك طبي 7.52 | H11: =IF(E11="","",SUMIF(الدخول!$B$3:$B$150,D11,الدخول!$F$3:$F$150)+SUMIF(الدخول!$B$3:$B$150,D11,الدخول!$S$3:$S$150)+E11-SUMIF(الدخول!$B$3:$B$150,D11,الدخول!$L$3:$L$150)) ->  | I11: =IF(F11="","",SUMIF(الدخول!$B$3:$B$150,D11,الدخول!$H$3:$H$150)+SUMIF(الدخول!$B$3:$B$150,D11,الدخول!$U$3:$U$150)+F11-SUMIF(الدخول!$B$3:$B$150,D11,الدخول!$N$3:$N$150)) ->  | J11: =IF(G11="","",SUMIF(الدخول!$B$3:$B$150,D11,الدخول!$I$3:$I$150)+SUMIF(الدخول!$B$3:$B$150,D11,الدخول!$V$3:$V$150)+G11-SUMIF(الدخول!$B$3:$B$150,D11,الدخول!$O$3:$O$150)) -> 
A12: ابيض | B12: كروشيه | C12: 1.2cm | D12: ابيض كروشيه 1.2cm | E12: 7.64 | F12: 686 | H12: =IF(E12="","",SUMIF(الدخول!$B$3:$B$150,D12,الدخول!$F$3:$F$150)+SUMIF(الدخول!$B$3:$B$150,D12,الدخول!$S$3:$S$150)+E12-SUMIF(الدخول!$B$3:$B$150,D12,الدخول!$L$3:$L$150)) -> 7.64 | I12: =IF(F12="","",SUMIF(الدخول!$B$3:$B$150,D12,الدخول!$H$3:$H$150)+SUMIF(الدخول!$B$3:$B$150,D12,الدخول!$U$3:$U$150)+F12-SUMIF(الدخول!$B$3:$B$150,D12,الدخول!$N$3:$N$150)) -> 686 | J12: =IF(G12="","",SUMIF(الدخول!$B$3:$B$150,D12,الدخول!$I$3:$I$150)+SUMIF(الدخول!$B$3:$B$150,D12,الدخول!$V$3:$V$150)+G12-SUMIF(الدخول!$B$3:$B$150,D12,الدخول!$O$3:$O$150)) -> 
A13: ابيض | B13: كروشيه | C13: 1.3cm | D13: ابيض كروشيه 1.3cm | H13: =IF(E13="","",SUMIF(الدخول!$B$3:$B$150,D13,الدخول!$F$3:$F$150)+SUMIF(الدخول!$B$3:$B$150,D13,الدخول!$S$3:$S$150)+E13-SUMIF(الدخول!$B$3:$B$150,D13,الدخول!$L$3:$L$150)) ->  | I13: =IF(F13="","",SUMIF(الدخول!$B$3:$B$150,D13,الدخول!$H$3:$H$150)+SUMIF(الدخول!$B$3:$B$150,D13,الدخول!$U$3:$U$150)+F13-SUMIF(الدخول!$B$3:$B$150,D13,الدخول!$N$3:$N$150)) ->  | J13: =IF(G13="","",SUMIF(الدخول!$B$3:$B$150,D13,الدخول!$I$3:$I$150)+SUMIF(الدخول!$B$3:$B$150,D13,الدخول!$V$3:$V$150)+G13-SUMIF(الدخول!$B$3:$B$150,D13,الدخول!$O$3:$O$150)) -> 
A14: ابيض | B14: كروشيه | C14: 1.5cm | D14: ابيض كروشيه 1.5cm | E14: 22.92 | F14: 4464 | H14: =IF(E14="","",SUMIF(الدخول!$B$3:$B$150,D14,الدخول!$F$3:$F$150)+SUMIF(الدخول!$B$3:$B$150,D14,الدخول!$S$3:$S$150)+E14-SUMIF(الدخول!$B$3:$B$150,D14,الدخول!$L$3:$L$150)) -> 22.92 | I14: =IF(F14="","",SUMIF(الدخول!$B$3:$B$150,D14,الدخول!$H$3:$H$150)+SUMIF(الدخول!$B$3:$B$150,D14,الدخول!$U$3:$U$150)+F14-SUMIF(الدخول!$B$3:$B$150,D14,الدخول!$N$3:$N$150)) -> 4464 | J14: =IF(G14="","",SUMIF(الدخول!$B$3:$B$150,D14,الدخول!$I$3:$I$150)+SUMIF(الدخول!$B$3:$B$150,D14,الدخول!$V$3:$V$150)+G14-SUMIF(الدخول!$B$3:$B$150,D14,الدخول!$O$3:$O$150)) -> 
A15: ابيض | B15: كروشيه | C15: 1.8cm | D15: ابيض كروشيه 1.8cm | H15: =IF(E15="","",SUMIF(الدخول!$B$3:$B$150,D15,الدخول!$F$3:$F$150)+SUMIF(الدخول!$B$3:$B$150,D15,الدخول!$S$3:$S$150)+E15-SUMIF(الدخول!$B$3:$B$150,D15,الدخول!$L$3:$L$150)) ->  | I15: =IF(F15="","",SUMIF(الدخول!$B$3:$B$150,D15,الدخول!$H$3:$H$150)+SUMIF(الدخول!$B$3:$B$150,D15,الدخول!$U$3:$U$150)+F15-SUMIF(الدخول!$B$3:$B$150,D15,الدخول!$N$3:$N$150)) ->  | J15: =IF(G15="","",SUMIF(الدخول!$B$3:$B$150,D15,الدخول!$I$3:$I$150)+SUMIF(الدخول!$B$3:$B$150,D15,الدخول!$V$3:$V$150)+G15-SUMIF(الدخول!$B$3:$B$150,D15,الدخول!$O$3:$O$150)) -> 
A16: ابيض | B16: كروشيه | C16: 1cm | D16: ابيض كروشيه 1cm | E16: 7.64 | F16: 653 | H16: =IF(E16="","",SUMIF(الدخول!$B$3:$B$150,D16,الدخول!$F$3:$F$150)+SUMIF(الدخول!$B$3:$B$150,D16,الدخول!$S$3:$S$150)+E16-SUMIF(الدخول!$B$3:$B$150,D16,الدخول!$L$3:$L$150)) -> 7.64 | I16: =IF(F16="","",SUMIF(الدخول!$B$3:$B$150,D16,الدخول!$H$3:$H$150)+SUMIF(الدخول!$B$3:$B$150,D16,الدخول!$U$3:$U$150)+F16-SUMIF(الدخول!$B$3:$B$150,D16,الدخول!$N$3:$N$150)) -> 653 | J16: =IF(G16="","",SUMIF(الدخول!$B$3:$B$150,D16,الدخول!$I$3:$I$150)+SUMIF(الدخول!$B$3:$B$150,D16,الدخول!$V$3:$V$150)+G16-SUMIF(الدخول!$B$3:$B$150,D16,الدخول!$O$3:$O$150)) -> 
A17: ابيض | B17: كروشيه | C17: 2.2cm | D17: ابيض كروشيه 2.2cm | E17: 168.08 | F17: 14608 | H17: =IF(E17="","",SUMIF(الدخول!$B$3:$B$150,D17,الدخول!$F$3:$F$150)+SUMIF(الدخول!$B$3:$B$150,D17,الدخول!$S$3:$S$150)+E17-SUMIF(الدخول!$B$3:$B$150,D17,الدخول!$L$3:$L$150)) -> 168.08 | I17: =IF(F17="","",SUMIF(الدخول!$B$3:$B$150,D17,الدخول!$H$3:$H$150)+SUMIF(الدخول!$B$3:$B$150,D17,الدخول!$U$3:$U$150)+F17-SUMIF(الدخول!$B$3:$B$150,D17,الدخول!$N$3:$N$150)) -> 14608 | J17: =IF(G17="","",SUMIF(الدخول!$B$3:$B$150,D17,الدخول!$I$3:$I$150)+SUMIF(الدخول!$B$3:$B$150,D17,الدخول!$V$3:$V$150)+G17-SUMIF(الدخول!$B$3:$B$150,D17,الدخول!$O$3:$O$150)) -> 
A18: ابيض | B18: كروشيه | C18: 2.5cm | D18: ابيض كروشيه 2.5cm | E18: 55.32 | F18: 4128 | H18: =IF(E18="","",SUMIF(الدخول!$B$3:$B$150,D18,الدخول!$F$3:$F$150)+SUMIF(الدخول!$B$3:$B$150,D18,الدخول!$S$3:$S$150)+E18-SUMIF(الدخول!$B$3:$B$150,D18,الدخول!$L$3:$L$150)) -> 55.32 | I18: =IF(F18="","",SUMIF(الدخول!$B$3:$B$150,D18,الدخول!$H$3:$H$150)+SUMIF(الدخول!$B$3:$B$150,D18,الدخول!$U$3:$U$150)+F18-SUMIF(الدخول!$B$3:$B$150,D18,الدخول!$N$3:$N$150)) -> 4128 | J18: =IF(G18="","",SUMIF(الدخول!$B$3:$B$150,D18,الدخول!$I$3:$I$150)+SUMIF(الدخول!$B$3:$B$150,D18,الدخول!$V$3:$V$150)+G18-SUMIF(الدخول!$B$3:$B$150,D18,الدخول!$O$3:$O$150)) -> 
A19: ابيض | B19: كروشيه | C19: 2cm | D19: ابيض كروشيه 2cm | E19: 1268.24 | F19: 118524 | H19: =IF(E19="","",SUMIF(الدخول!$B$3:$B$150,D19,الدخول!$F$3:$F$150)+SUMIF(الدخول!$B$3:$B$150,D19,الدخول!$S$3:$S$150)+E19-SUMIF(الدخول!$B$3:$B$150,D19,الدخول!$L$3:$L$150)) -> 1268.24 | I19: =IF(F19="","",SUMIF(الدخول!$B$3:$B$150,D19,الدخول!$H$3:$H$150)+SUMIF(الدخول!$B$3:$B$150,D19,الدخول!$U$3:$U$150)+F19-SUMIF(الدخول!$B$3:$B$150,D19,الدخول!$N$3:$N$150)) -> 118524 | J19: =IF(G19="","",SUMIF(الدخول!$B$3:$B$150,D19,الدخول!$I$3:$I$150)+SUMIF(الدخول!$B$3:$B$150,D19,الدخول!$V$3:$V$150)+G19-SUMIF(الدخول!$B$3:$B$150,D19,الدخول!$O$3:$O$150)) -> 
A20: ابيض | B20: كروشيه | C20: 2m | D20: ابيض كروشيه 2m | H20: =IF(E20="","",SUMIF(الدخول!$B$3:$B$150,D20,الدخول!$F$3:$F$150)+SUMIF(الدخول!$B$3:$B$150,D20,الدخول!$S$3:$S$150)+E20-SUMIF(الدخول!$B$3:$B$150,D20,الدخول!$L$3:$L$150)) ->  | I20: =IF(F20="","",SUMIF(الدخول!$B$3:$B$150,D20,الدخول!$H$3:$H$150)+SUMIF(الدخول!$B$3:$B$150,D20,الدخول!$U$3:$U$150)+F20-SUMIF(الدخول!$B$3:$B$150,D20,الدخول!$N$3:$N$150)) ->  | J20: =IF(G20="","",SUMIF(الدخول!$B$3:$B$150,D20,الدخول!$I$3:$I$150)+SUMIF(الدخول!$B$3:$B$150,D20,الدخول!$V$3:$V$150)+G20-SUMIF(الدخول!$B$3:$B$150,D20,الدخول!$O$3:$O$150)) -> 
A21: ابيض | B21: كروشيه | C21: 3.2cm | D21: ابيض كروشيه 3.2cm | E21: 18.44 | F21: 1096 | H21: =IF(E21="","",SUMIF(الدخول!$B$3:$B$150,D21,الدخول!$F$3:$F$150)+SUMIF(الدخول!$B$3:$B$150,D21,الدخول!$S$3:$S$150)+E21-SUMIF(الدخول!$B$3:$B$150,D21,الدخول!$L$3:$L$150)) -> 18.44 | I21: =IF(F21="","",SUMIF(الدخول!$B$3:$B$150,D21,الدخول!$H$3:$H$150)+SUMIF(الدخول!$B$3:$B$150,D21,الدخول!$U$3:$U$150)+F21-SUMIF(الدخول!$B$3:$B$150,D21,الدخول!$N$3:$N$150)) -> 1096 | J21: =IF(G21="","",SUMIF(الدخول!$B$3:$B$150,D21,الدخول!$I$3:$I$150)+SUMIF(الدخول!$B$3:$B$150,D21,الدخول!$V$3:$V$150)+G21-SUMIF(الدخول!$B$3:$B$150,D21,الدخول!$O$3:$O$150)) -> 
A22: ابيض | B22: كروشيه | C22: 3.5cm | D22: ابيض كروشيه 3.5cm | E22: 3466.72 | F22: 182360 | H22: =IF(E22="","",SUMIF(الدخول!$B$3:$B$150,D22,الدخول!$F$3:$F$150)+SUMIF(الدخول!$B$3:$B$150,D22,الدخول!$S$3:$S$150)+E22-SUMIF(الدخول!$B$3:$B$150,D22,الدخول!$L$3:$L$150)) -> 3144.02 | I22: =IF(F22="","",SUMIF(الدخول!$B$3:$B$150,D22,الدخول!$H$3:$H$150)+SUMIF(الدخول!$B$3:$B$150,D22,الدخول!$U$3:$U$150)+F22-SUMIF(الدخول!$B$3:$B$150,D22,الدخول!$N$3:$N$150)) -> 165385 | J22: =IF(G22="","",SUMIF(الدخول!$B$3:$B$150,D22,الدخول!$I$3:$I$150)+SUMIF(الدخول!$B$3:$B$150,D22,الدخول!$V$3:$V$150)+G22-SUMIF(الدخول!$B$3:$B$150,D22,الدخول!$O$3:$O$150)) -> 
A23: ابيض | B23: كروشيه | C23: 3cm | D23: ابيض كروشيه 3cm | E23: 4499.36 | F23: 272304 | H23: =IF(E23="","",SUMIF(الدخول!$B$3:$B$150,D23,الدخول!$F$3:$F$150)+SUMIF(الدخول!$B$3:$B$150,D23,الدخول!$S$3:$S$150)+E23-SUMIF(الدخول!$B$3:$B$150,D23,الدخول!$L$3:$L$150)) -> 4545.46 | I23: =IF(F23="","",SUMIF(الدخول!$B$3:$B$150,D23,الدخول!$H$3:$H$150)+SUMIF(الدخول!$B$3:$B$150,D23,الدخول!$U$3:$U$150)+F23-SUMIF(الدخول!$B$3:$B$150,D23,الدخول!$N$3:$N$150)) -> 275094 | J23: =IF(G23="","",SUMIF(الدخول!$B$3:$B$150,D23,الدخول!$I$3:$I$150)+SUMIF(الدخول!$B$3:$B$150,D23,الدخول!$V$3:$V$150)+G23-SUMIF(الدخول!$B$3:$B$150,D23,الدخول!$O$3:$O$150)) -> 
A24: ابيض | B24: كروشيه | C24: 4.5cm | D24: ابيض كروشيه 4.5cm | E24: 497.88 | F24: 22626 | H24: =IF(E24="","",SUMIF(الدخول!$B$3:$B$150,D24,الدخول!$F$3:$F$150)+SUMIF(الدخول!$B$3:$B$150,D24,الدخول!$S$3:$S$150)+E24-SUMIF(الدخول!$B$3:$B$150,D24,الدخول!$L$3:$L$150)) -> 497.88 | I24: =IF(F24="","",SUMIF(الدخول!$B$3:$B$150,D24,الدخول!$H$3:$H$150)+SUMIF(الدخول!$B$3:$B$150,D24,الدخول!$U$3:$U$150)+F24-SUMIF(الدخول!$B$3:$B$150,D24,الدخول!$N$3:$N$150)) -> 22626 | J24: =IF(G24="","",SUMIF(الدخول!$B$3:$B$150,D24,الدخول!$I$3:$I$150)+SUMIF(الدخول!$B$3:$B$150,D24,الدخول!$V$3:$V$150)+G24-SUMIF(الدخول!$B$3:$B$150,D24,الدخول!$O$3:$O$150)) -> 
A25: ابيض | B25: كروشيه | C25: 4cm | D25: ابيض كروشيه 4cm | E25: 3134.8 | F25: 137360 | H25: =IF(E25="","",SUMIF(الدخول!$B$3:$B$150,D25,الدخول!$F$3:$F$150)+SUMIF(الدخول!$B$3:$B$150,D25,الدخول!$S$3:$S$150)+E25-SUMIF(الدخول!$B$3:$B$150,D25,الدخول!$L$3:$L$150)) -> 3014.94 | I25: =IF(F25="","",SUMIF(الدخول!$B$3:$B$150,D25,الدخول!$H$3:$H$150)+SUMIF(الدخول!$B$3:$B$150,D25,الدخول!$U$3:$U$150)+F25-SUMIF(الدخول!$B$3:$B$150,D25,الدخول!$N$3:$N$150)) -> 132108 | J25: =IF(G25="","",SUMIF(الدخول!$B$3:$B$150,D25,الدخول!$I$3:$I$150)+SUMIF(الدخول!$B$3:$B$150,D25,الدخول!$V$3:$V$150)+G25-SUMIF(الدخول!$B$3:$B$150,D25,الدخول!$O$3:$O$150)) -> 
A26: ابيض | B26: كروشيه | C26: 5.3cm | D26: ابيض كروشيه 5.3cm | E26: 9.22 | F26: 237 | H26: =IF(E26="","",SUMIF(الدخول!$B$3:$B$150,D26,الدخول!$F$3:$F$150)+SUMIF(الدخول!$B$3:$B$150,D26,الدخول!$S$3:$S$150)+E26-SUMIF(الدخول!$B$3:$B$150,D26,الدخول!$L$3:$L$150)) -> 9.22 | I26: =IF(F26="","",SUMIF(الدخول!$B$3:$B$150,D26,الدخول!$H$3:$H$150)+SUMIF(الدخول!$B$3:$B$150,D26,الدخول!$U$3:$U$150)+F26-SUMIF(الدخول!$B$3:$B$150,D26,الدخول!$N$3:$N$150)) -> 237 | J26: =IF(G26="","",SUMIF(الدخول!$B$3:$B$150,D26,الدخول!$I$3:$I$150)+SUMIF(الدخول!$B$3:$B$150,D26,الدخول!$V$3:$V$150)+G26-SUMIF(الدخول!$B$3:$B$150,D26,الدخول!$O$3:$O$150)) -> 
A27: ابيض | B27: كروشيه | C27: 5.5cm | D27: ابيض كروشيه 5.5cm | E27: 3494.38 | F27: 117111 | H27: =IF(E27="","",SUMIF(الدخول!$B$3:$B$150,D27,الدخول!$F$3:$F$150)+SUMIF(الدخول!$B$3:$B$150,D27,الدخول!$S$3:$S$150)+E27-SUMIF(الدخول!$B$3:$B$150,D27,الدخول!$L$3:$L$150)) -> 3494.38 | I27: =IF(F27="","",SUMIF(الدخول!$B$3:$B$150,D27,الدخول!$H$3:$H$150)+SUMIF(الدخول!$B$3:$B$150,D27,الدخول!$U$3:$U$150)+F27-SUMIF(الدخول!$B$3:$B$150,D27,الدخول!$N$3:$N$150)) -> 117111 | J27: =IF(G27="","",SUMIF(الدخول!$B$3:$B$150,D27,الدخول!$I$3:$I$150)+SUMIF(الدخول!$B$3:$B$150,D27,الدخول!$V$3:$V$150)+G27-SUMIF(الدخول!$B$3:$B$150,D27,الدخول!$O$3:$O$150)) -> 
A28: ابيض | B28: كروشيه | C28: 5.8cm | D28: ابيض كروشيه 5.8cm | E28: 9.22 | F28: 341 | H28: =IF(E28="","",SUMIF(الدخول!$B$3:$B$150,D28,الدخول!$F$3:$F$150)+SUMIF(الدخول!$B$3:$B$150,D28,الدخول!$S$3:$S$150)+E28-SUMIF(الدخول!$B$3:$B$150,D28,الدخول!$L$3:$L$150)) -> 9.22 | I28: =IF(F28="","",SUMIF(الدخول!$B$3:$B$150,D28,الدخول!$H$3:$H$150)+SUMIF(الدخول!$B$3:$B$150,D28,الدخول!$U$3:$U$150)+F28-SUMIF(الدخول!$B$3:$B$150,D28,الدخول!$N$3:$N$150)) -> 341
A29: ابيض | B29: كروشيه | C29: 5cm | D29: ابيض كروشيه 5cm | H29: =IF(E29="","",SUMIF(الدخول!$B$3:$B$150,D29,الدخول!$F$3:$F$150)+SUMIF(الدخول!$B$3:$B$150,D29,الدخول!$S$3:$S$150)+E29-SUMIF(الدخول!$B$3:$B$150,D29,الدخول!$L$3:$L$150)) ->  | I29: =IF(F29="","",SUMIF(الدخول!$B$3:$B$150,D29,الدخول!$H$3:$H$150)+SUMIF(الدخول!$B$3:$B$150,D29,الدخول!$U$3:$U$150)+F29-SUMIF(الدخول!$B$3:$B$150,D29,الدخول!$N$3:$N$150)) ->  | J29: =IF(G29="","",SUMIF(الدخول!$B$3:$B$150,D29,الدخول!$I$3:$I$150)+SUMIF(الدخول!$B$3:$B$150,D29,الدخول!$V$3:$V$150)+G29-SUMIF(الدخول!$B$3:$B$150,D29,الدخول!$O$3:$O$150)) -> 
A30: ابيض | B30: كروشيه | C30: 5mm | D30: ابيض كروشيه 5mm | E30: 5.84 | F30: 5178 | H30: =IF(E30="","",SUMIF(الدخول!$B$3:$B$150,D30,الدخول!$F$3:$F$150)+SUMIF(الدخول!$B$3:$B$150,D30,الدخول!$S$3:$S$150)+E30-SUMIF(الدخول!$B$3:$B$150,D30,الدخول!$L$3:$L$150)) -> 5.84 | I30: =IF(F30="","",SUMIF(الدخول!$B$3:$B$150,D30,الدخول!$H$3:$H$150)+SUMIF(الدخول!$B$3:$B$150,D30,الدخول!$U$3:$U$150)+F30-SUMIF(الدخول!$B$3:$B$150,D30,الدخول!$N$3:$N$150)) -> 5178 | J30: =IF(G30="","",SUMIF(الدخول!$B$3:$B$150,D30,الدخول!$I$3:$I$150)+SUMIF(الدخول!$B$3:$B$150,D30,الدخول!$V$3:$V$150)+G30-SUMIF(الدخول!$B$3:$B$150,D30,الدخول!$O$3:$O$150)) -> 
A31: ابيض | B31: كروشيه | C31: 6.5cm | D31: ابيض كروشيه 6.5cm | E31: 673.06 | F31: 20148 | H31: =IF(E31="","",SUMIF(الدخول!$B$3:$B$150,D31,الدخول!$F$3:$F$150)+SUMIF(الدخول!$B$3:$B$150,D31,الدخول!$S$3:$S$150)+E31-SUMIF(الدخول!$B$3:$B$150,D31,الدخول!$L$3:$L$150)) -> 673.06 | I31: =IF(F31="","",SUMIF(الدخول!$B$3:$B$150,D31,الدخول!$H$3:$H$150)+SUMIF(الدخول!$B$3:$B$150,D31,الدخول!$U$3:$U$150)+F31-SUMIF(الدخول!$B$3:$B$150,D31,الدخول!$N$3:$N$150)) -> 20148 | J31: =IF(G31="","",SUMIF(الدخول!$B$3:$B$150,D31,الدخول!$I$3:$I$150)+SUMIF(الدخول!$B$3:$B$150,D31,الدخول!$V$3:$V$150)+G31-SUMIF(الدخول!$B$3:$B$150,D31,الدخول!$O$3:$O$150)) -> 
A32: ابيض | B32: كروشيه | C32: 6m | D32: ابيض كروشيه 6m | H32: =IF(E32="","",SUMIF(الدخول!$B$3:$B$150,D32,الدخول!$F$3:$F$150)+SUMIF(الدخول!$B$3:$B$150,D32,الدخول!$S$3:$S$150)+E32-SUMIF(الدخول!$B$3:$B$150,D32,الدخول!$L$3:$L$150)) ->  | I32: =IF(F32="","",SUMIF(الدخول!$B$3:$B$150,D32,الدخول!$H$3:$H$150)+SUMIF(الدخول!$B$3:$B$150,D32,الدخول!$U$3:$U$150)+F32-SUMIF(الدخول!$B$3:$B$150,D32,الدخول!$N$3:$N$150)) ->  | J32: =IF(G32="","",SUMIF(الدخول!$B$3:$B$150,D32,الدخول!$I$3:$I$150)+SUMIF(الدخول!$B$3:$B$150,D32,الدخول!$V$3:$V$150)+G32-SUMIF(الدخول!$B$3:$B$150,D32,الدخول!$O$3:$O$150)) -> 
A33: ابيض | B33: كروشيه | C33: 6mm | D33: ابيض كروشيه 6mm | E33: 35.04 | F33: 8568 | H33: =IF(E33="","",SUMIF(الدخول!$B$3:$B$150,D33,الدخول!$F$3:$F$150)+SUMIF(الدخول!$B$3:$B$150,D33,الدخول!$S$3:$S$150)+E33-SUMIF(الدخول!$B$3:$B$150,D33,الدخول!$L$3:$L$150)) -> 35.04 | I33: =IF(F33="","",SUMIF(الدخول!$B$3:$B$150,D33,الدخول!$H$3:$H$150)+SUMIF(الدخول!$B$3:$B$150,D33,الدخول!$U$3:$U$150)+F33-SUMIF(الدخول!$B$3:$B$150,D33,الدخول!$N$3:$N$150)) -> 8568 | J33: =IF(G33="","",SUMIF(الدخول!$B$3:$B$150,D33,الدخول!$I$3:$I$150)+SUMIF(الدخول!$B$3:$B$150,D33,الدخول!$V$3:$V$150)+G33-SUMIF(الدخول!$B$3:$B$150,D33,الدخول!$O$3:$O$150)) -> 
A34: ابيض | B34: كروشيه | C34: 7m | D34: ابيض كروشيه 7m | H34: =IF(E34="","",SUMIF(الدخول!$B$3:$B$150,D34,الدخول!$F$3:$F$150)+SUMIF(الدخول!$B$3:$B$150,D34,الدخول!$S$3:$S$150)+E34-SUMIF(الدخول!$B$3:$B$150,D34,الدخول!$L$3:$L$150)) ->  | I34: =IF(F34="","",SUMIF(الدخول!$B$3:$B$150,D34,الدخول!$H$3:$H$150)+SUMIF(الدخول!$B$3:$B$150,D34,الدخول!$U$3:$U$150)+F34-SUMIF(الدخول!$B$3:$B$150,D34,الدخول!$N$3:$N$150)) ->  | J34: =IF(G34="","",SUMIF(الدخول!$B$3:$B$150,D34,الدخول!$I$3:$I$150)+SUMIF(الدخول!$B$3:$B$150,D34,الدخول!$V$3:$V$150)+G34-SUMIF(الدخول!$B$3:$B$150,D34,الدخول!$O$3:$O$150)) -> 
A35: ابيض | B35: كروشيه | C35: 7mm | D35: ابيض كروشيه 7mm | E35: 5.84 | F35: 1315 | H35: =IF(E35="","",SUMIF(الدخول!$B$3:$B$150,D35,الدخول!$F$3:$F$150)+SUMIF(الدخول!$B$3:$B$150,D35,الدخول!$S$3:$S$150)+E35-SUMIF(الدخول!$B$3:$B$150,D35,الدخول!$L$3:$L$150)) -> 5.84 | I35: =IF(F35="","",SUMIF(الدخول!$B$3:$B$150,D35,الدخول!$H$3:$H$150)+SUMIF(الدخول!$B$3:$B$150,D35,الدخول!$U$3:$U$150)+F35-SUMIF(الدخول!$B$3:$B$150,D35,الدخول!$N$3:$N$150)) -> 1315 | J35: =IF(G35="","",SUMIF(الدخول!$B$3:$B$150,D35,الدخول!$I$3:$I$150)+SUMIF(الدخول!$B$3:$B$150,D35,الدخول!$V$3:$V$150)+G35-SUMIF(الدخول!$B$3:$B$150,D35,الدخول!$O$3:$O$150)) -> 
A36: ابيض | B36: كروشيه | C36: 8mm | D36: ابيض كروشيه 8mm | E36: 5.84 | F36: 1168 | H36: =IF(E36="","",SUMIF(الدخول!$B$3:$B$150,D36,الدخول!$F$3:$F$150)+SUMIF(الدخول!$B$3:$B$150,D36,الدخول!$S$3:$S$150)+E36-SUMIF(الدخول!$B$3:$B$150,D36,الدخول!$L$3:$L$150)) -> 5.84 | I36: =IF(F36="","",SUMIF(الدخول!$B$3:$B$150,D36,الدخول!$H$3:$H$150)+SUMIF(الدخول!$B$3:$B$150,D36,الدخول!$U$3:$U$150)+F36-SUMIF(الدخول!$B$3:$B$150,D36,الدخول!$N$3:$N$150)) -> 1168 | J36: =IF(G36="","",SUMIF(الدخول!$B$3:$B$150,D36,الدخول!$I$3:$I$150)+SUMIF(الدخول!$B$3:$B$150,D36,الدخول!$V$3:$V$150)+G36-SUMIF(الدخول!$B$3:$B$150,D36,الدخول!$O$3:$O$150)) -> 
A37: ابيض | B37: ووفين | C37: 1.5cm | D37: ابيض ووفين 1.5cm | E37: 272.8 | H37: =IF(E37="","",SUMIF(الدخول!$B$3:$B$150,D37,الدخول!$F$3:$F$150)+SUMIF(الدخول!$B$3:$B$150,D37,الدخول!$S$3:$S$150)+E37-SUMIF(الدخول!$B$3:$B$150,D37,الدخول!$L$3:$L$150)) -> 272.8 | I37: =IF(F37="","",SUMIF(الدخول!$B$3:$B$150,D37,الدخول!$H$3:$H$150)+SUMIF(الدخول!$B$3:$B$150,D37,الدخول!$U$3:$U$150)+F37-SUMIF(الدخول!$B$3:$B$150,D37,الدخول!$N$3:$N$150)) ->  | J37: =IF(G37="","",SUMIF(الدخول!$B$3:$B$150,D37,الدخول!$I$3:$I$150)+SUMIF(الدخول!$B$3:$B$150,D37,الدخول!$V$3:$V$150)+G37-SUMIF(الدخول!$B$3:$B$150,D37,الدخول!$O$3:$O$150)) -> 
A38: ابيض | B38: ووفين | C38: 2.5cm | D38: ابيض ووفين 2.5cm | E38: 275 | H38: =IF(E38="","",SUMIF(الدخول!$B$3:$B$150,D38,الدخول!$F$3:$F$150)+SUMIF(الدخول!$B$3:$B$150,D38,الدخول!$S$3:$S$150)+E38-SUMIF(الدخول!$B$3:$B$150,D38,الدخول!$L$3:$L$150)) -> 275 | I38: =IF(F38="","",SUMIF(الدخول!$B$3:$B$150,D38,الدخول!$H$3:$H$150)+SUMIF(الدخول!$B$3:$B$150,D38,الدخول!$U$3:$U$150)+F38-SUMIF(الدخول!$B$3:$B$150,D38,الدخول!$N$3:$N$150)) ->  | J38: =IF(G38="","",SUMIF(الدخول!$B$3:$B$150,D38,الدخول!$I$3:$I$150)+SUMIF(الدخول!$B$3:$B$150,D38,الدخول!$V$3:$V$150)+G38-SUMIF(الدخول!$B$3:$B$150,D38,الدخول!$O$3:$O$150)) -> 
A39: ابيض | B39: ووفين ساندوتش | C39: 1.5cm | D39: ابيض ووفين ساندوتش 1.5cm | E39: 66 | H39: =IF(E39="","",SUMIF(الدخول!$B$3:$B$150,D39,الدخول!$F$3:$F$150)+SUMIF(الدخول!$B$3:$B$150,D39,الدخول!$S$3:$S$150)+E39-SUMIF(الدخول!$B$3:$B$150,D39,الدخول!$L$3:$L$150)) -> 66 | I39: =IF(F39="","",SUMIF(الدخول!$B$3:$B$150,D39,الدخول!$H$3:$H$150)+SUMIF(الدخول!$B$3:$B$150,D39,الدخول!$U$3:$U$150)+F39-SUMIF(الدخول!$B$3:$B$150,D39,الدخول!$N$3:$N$150)) ->  | J39: =IF(G39="","",SUMIF(الدخول!$B$3:$B$150,D39,الدخول!$I$3:$I$150)+SUMIF(الدخول!$B$3:$B$150,D39,الدخول!$V$3:$V$150)+G39-SUMIF(الدخول!$B$3:$B$150,D39,الدخول!$O$3:$O$150)) -> 
A40: ابيض | B40: ووفين ساندوتش | C40: 2.2cm | D40: ابيض ووفين ساندوتش 2.2cm | E40: 41.2 | H40: =IF(E40="","",SUMIF(الدخول!$B$3:$B$150,D40,الدخول!$F$3:$F$150)+SUMIF(الدخول!$B$3:$B$150,D40,الدخول!$S$3:$S$150)+E40-SUMIF(الدخول!$B$3:$B$150,D40,الدخول!$L$3:$L$150)) -> 41.2 | I40: =IF(F40="","",SUMIF(الدخول!$B$3:$B$150,D40,الدخول!$H$3:$H$150)+SUMIF(الدخول!$B$3:$B$150,D40,الدخول!$U$3:$U$150)+F40-SUMIF(الدخول!$B$3:$B$150,D40,الدخول!$N$3:$N$150)) ->  | J40: =IF(G40="","",SUMIF(الدخول!$B$3:$B$150,D40,الدخول!$I$3:$I$150)+SUMIF(الدخول!$B$3:$B$150,D40,الدخول!$V$3:$V$150)+G40-SUMIF(الدخول!$B$3:$B$150,D40,الدخول!$O$3:$O$150)) -> 
A41: ابيض | B41: ووفين ساندوتش | C41: 2.5cm | D41: ابيض ووفين ساندوتش 2.5cm | E41: 38.87 | H41: =IF(E41="","",SUMIF(الدخول!$B$3:$B$150,D41,الدخول!$F$3:$F$150)+SUMIF(الدخول!$B$3:$B$150,D41,الدخول!$S$3:$S$150)+E41-SUMIF(الدخول!$B$3:$B$150,D41,الدخول!$L$3:$L$150)) -> 38.87 | I41: =IF(F41="","",SUMIF(الدخول!$B$3:$B$150,D41,الدخول!$H$3:$H$150)+SUMIF(الدخول!$B$3:$B$150,D41,الدخول!$U$3:$U$150)+F41-SUMIF(الدخول!$B$3:$B$150,D41,الدخول!$N$3:$N$150)) ->  | J41: =IF(G41="","",SUMIF(الدخول!$B$3:$B$150,D41,الدخول!$I$3:$I$150)+SUMIF(الدخول!$B$3:$B$150,D41,الدخول!$V$3:$V$150)+G41-SUMIF(الدخول!$B$3:$B$150,D41,الدخول!$O$3:$O$150)) -> 
A42: ابيض | B42: ووفين ساندوتش القطة | C42: 2.5cm | D42: ابيض ووفين ساندوتش القطة 2.5cm | E42: 5 | H42: =IF(E42="","",SUMIF(الدخول!$B$3:$B$150,D42,الدخول!$F$3:$F$150)+SUMIF(الدخول!$B$3:$B$150,D42,الدخول!$S$3:$S$150)+E42-SUMIF(الدخول!$B$3:$B$150,D42,الدخول!$L$3:$L$150)) -> 5 | I42: =IF(F42="","",SUMIF(الدخول!$B$3:$B$150,D42,الدخول!$H$3:$H$150)+SUMIF(الدخول!$B$3:$B$150,D42,الدخول!$U$3:$U$150)+F42-SUMIF(الدخول!$B$3:$B$150,D42,الدخول!$N$3:$N$150)) ->  | J42: =IF(G42="","",SUMIF(الدخول!$B$3:$B$150,D42,الدخول!$I$3:$I$150)+SUMIF(الدخول!$B$3:$B$150,D42,الدخول!$V$3:$V$150)+G42-SUMIF(الدخول!$B$3:$B$150,D42,الدخول!$O$3:$O$150)) -> 
A43: ابيض | B43: ووفين ساندوتش قديم | C43: 1.5cm | D43: ابيض ووفين ساندوتش قديم 1.5cm | E43: 251.1 | H43: =IF(E43="","",SUMIF(الدخول!$B$3:$B$150,D43,الدخول!$F$3:$F$150)+SUMIF(الدخول!$B$3:$B$150,D43,الدخول!$S$3:$S$150)+E43-SUMIF(الدخول!$B$3:$B$150,D43,الدخول!$L$3:$L$150)) -> 251.1 | I43: =IF(F43="","",SUMIF(الدخول!$B$3:$B$150,D43,الدخول!$H$3:$H$150)+SUMIF(الدخول!$B$3:$B$150,D43,الدخول!$U$3:$U$150)+F43-SUMIF(الدخول!$B$3:$B$150,D43,الدخول!$N$3:$N$150)) ->  | J43: =IF(G43="","",SUMIF(الدخول!$B$3:$B$150,D43,الدخول!$I$3:$I$150)+SUMIF(الدخول!$B$3:$B$150,D43,الدخول!$V$3:$V$150)+G43-SUMIF(الدخول!$B$3:$B$150,D43,الدخول!$O$3:$O$150)) -> 
A44: ابيض | B44: ووفين ساندوتش قديم | C44: 1.6 cm | D44: ابيض ووفين ساندوتش قديم 1.6 cm | E44: 13.4 | H44: =IF(E44="","",SUMIF(الدخول!$B$3:$B$150,D44,الدخول!$F$3:$F$150)+SUMIF(الدخول!$B$3:$B$150,D44,الدخول!$S$3:$S$150)+E44-SUMIF(الدخول!$B$3:$B$150,D44,الدخول!$L$3:$L$150)) -> 13.4 | I44: =IF(F44="","",SUMIF(الدخول!$B$3:$B$150,D44,الدخول!$H$3:$H$150)+SUMIF(الدخول!$B$3:$B$150,D44,الدخول!$U$3:$U$150)+F44-SUMIF(الدخول!$B$3:$B$150,D44,الدخول!$N$3:$N$150)) ->  | J44: =IF(G44="","",SUMIF(الدخول!$B$3:$B$150,D44,الدخول!$I$3:$I$150)+SUMIF(الدخول!$B$3:$B$150,D44,الدخول!$V$3:$V$150)+G44-SUMIF(الدخول!$B$3:$B$150,D44,الدخول!$O$3:$O$150)) -> 
A45: ابيض | B45: ووفين فستون | C45: 1cm | D45: ابيض ووفين فستون 1cm | E45: 80.15 | H45: =IF(E45="","",SUMIF(الدخول!$B$3:$B$150,D45,الدخول!$F$3:$F$150)+SUMIF(الدخول!$B$3:$B$150,D45,الدخول!$S$3:$S$150)+E45-SUMIF(الدخول!$B$3:$B$150,D45,الدخول!$L$3:$L$150)) -> 80.15 | I45: =IF(F45="","",SUMIF(الدخول!$B$3:$B$150,D45,الدخول!$H$3:$H$150)+SUMIF(الدخول!$B$3:$B$150,D45,الدخول!$U$3:$U$150)+F45-SUMIF(الدخول!$B$3:$B$150,D45,الدخول!$N$3:$N$150)) ->  | J45: =IF(G45="","",SUMIF(الدخول!$B$3:$B$150,D45,الدخول!$I$3:$I$150)+SUMIF(الدخول!$B$3:$B$150,D45,الدخول!$V$3:$V$150)+G45-SUMIF(الدخول!$B$3:$B$150,D45,الدخول!$O$3:$O$150)) -> 
A46: ابيض | B46: ووفين فستون | C46: 1cm | D46: ابيض ووفين فستون 1cm | E46: 80.15 | H46: =IF(E46="","",SUMIF(الدخول!$B$3:$B$150,D46,الدخول!$F$3:$F$150)+SUMIF(الدخول!$B$3:$B$150,D46,الدخول!$S$3:$S$150)+E46-SUMIF(الدخول!$B$3:$B$150,D46,الدخول!$L$3:$L$150)) -> 80.15 | I46: =IF(F46="","",SUMIF(الدخول!$B$3:$B$150,D46,الدخول!$H$3:$H$150)+SUMIF(الدخول!$B$3:$B$150,D46,الدخول!$U$3:$U$150)+F46-SUMIF(الدخول!$B$3:$B$150,D46,الدخول!$N$3:$N$150)) ->  | J46: =IF(G46="","",SUMIF(الدخول!$B$3:$B$150,D46,الدخول!$I$3:$I$150)+SUMIF(الدخول!$B$3:$B$150,D46,الدخول!$V$3:$V$150)+G46-SUMIF(الدخول!$B$3:$B$150,D46,الدخول!$O$3:$O$150)) -> 
A47: ابيض 406 | B47: كروشيه | C47: 5 cm | D47: ابيض 406 كروشيه 5 cm | E47: 110.46 | F47: 4872 | H47: =IF(E47="","",SUMIF(الدخول!$B$3:$B$150,D47,الدخول!$F$3:$F$150)+SUMIF(الدخول!$B$3:$B$150,D47,الدخول!$S$3:$S$150)+E47-SUMIF(الدخول!$B$3:$B$150,D47,الدخول!$L$3:$L$150)) -> 54.74 | I47: =IF(F47="","",SUMIF(الدخول!$B$3:$B$150,D47,الدخول!$H$3:$H$150)+SUMIF(الدخول!$B$3:$B$150,D47,الدخول!$U$3:$U$150)+F47-SUMIF(الدخول!$B$3:$B$150,D47,الدخول!$N$3:$N$150)) -> 2616 | J47: =IF(G47="","",SUMIF(الدخول!$B$3:$B$150,D47,الدخول!$I$3:$I$150)+SUMIF(الدخول!$B$3:$B$150,D47,الدخول!$V$3:$V$150)+G47-SUMIF(الدخول!$B$3:$B$150,D47,الدخول!$O$3:$O$150)) -> 
A48: ابيض 510 | B48: كروشيه | C48: 2.3 cm | D48: ابيض 510 كروشيه 2.3 cm | E48: 38.2 | F48: 4250 | H48: =IF(E48="","",SUMIF(الدخول!$B$3:$B$150,D48,الدخول!$F$3:$F$150)+SUMIF(الدخول!$B$3:$B$150,D48,الدخول!$S$3:$S$150)+E48-SUMIF(الدخول!$B$3:$B$150,D48,الدخول!$L$3:$L$150)) -> 38.2 | I48: =IF(F48="","",SUMIF(الدخول!$B$3:$B$150,D48,الدخول!$H$3:$H$150)+SUMIF(الدخول!$B$3:$B$150,D48,الدخول!$U$3:$U$150)+F48-SUMIF(الدخول!$B$3:$B$150,D48,الدخول!$N$3:$N$150)) -> 4250 | J48: =IF(G48="","",SUMIF(الدخول!$B$3:$B$150,D48,الدخول!$I$3:$I$150)+SUMIF(الدخول!$B$3:$B$150,D48,الدخول!$V$3:$V$150)+G48-SUMIF(الدخول!$B$3:$B$150,D48,الدخول!$O$3:$O$150)) -> 
A49: ابيض 510 | B49: كروشيه | C49: 5 cm | D49: ابيض 510 كروشيه 5 cm | E49: 46.1 | F49: 1553 | H49: =IF(E49="","",SUMIF(الدخول!$B$3:$B$150,D49,الدخول!$F$3:$F$150)+SUMIF(الدخول!$B$3:$B$150,D49,الدخول!$S$3:$S$150)+E49-SUMIF(الدخول!$B$3:$B$150,D49,الدخول!$L$3:$L$150)) -> 46.1 | I49: =IF(F49="","",SUMIF(الدخول!$B$3:$B$150,D49,الدخول!$H$3:$H$150)+SUMIF(الدخول!$B$3:$B$150,D49,الدخول!$U$3:$U$150)+F49-SUMIF(الدخول!$B$3:$B$150,D49,الدخول!$N$3:$N$150)) -> 1553 | J49: =IF(G49="","",SUMIF(الدخول!$B$3:$B$150,D49,الدخول!$I$3:$I$150)+SUMIF(الدخول!$B$3:$B$150,D49,الدخول!$V$3:$V$150)+G49-SUMIF(الدخول!$B$3:$B$150,D49,الدخول!$O$3:$O$150)) -> 
A50: ابيض CO-IMG-40 | B50: كروشيه | C50: 4cm | D50: ابيض CO-IMG-40 كروشيه 4cm | E50: 63 | F50: 2744 | H50: =IF(E50="","",SUMIF(الدخول!$B$3:$B$150,D50,الدخول!$F$3:$F$150)+SUMIF(الدخول!$B$3:$B$150,D50,الدخول!$S$3:$S$150)+E50-SUMIF(الدخول!$B$3:$B$150,D50,الدخول!$L$3:$L$150)) -> 63 | I50: =IF(F50="","",SUMIF(الدخول!$B$3:$B$150,D50,الدخول!$H$3:$H$150)+SUMIF(الدخول!$B$3:$B$150,D50,الدخول!$U$3:$U$150)+F50-SUMIF(الدخول!$B$3:$B$150,D50,الدخول!$N$3:$N$150)) -> 2744 | J50: =IF(G50="","",SUMIF(الدخول!$B$3:$B$150,D50,الدخول!$I$3:$I$150)+SUMIF(الدخول!$B$3:$B$150,D50,الدخول!$V$3:$V$150)+G50-SUMIF(الدخول!$B$3:$B$150,D50,الدخول!$O$3:$O$150)) -> 
A51: ابيض CO-IMG-50 | B51: كروشيه | C51: 5cm | D51: ابيض CO-IMG-50 كروشيه 5cm | E51: 101 | F51: 3564 | H51: =IF(E51="","",SUMIF(الدخول!$B$3:$B$150,D51,الدخول!$F$3:$F$150)+SUMIF(الدخول!$B$3:$B$150,D51,الدخول!$S$3:$S$150)+E51-SUMIF(الدخول!$B$3:$B$150,D51,الدخول!$L$3:$L$150)) -> 101 | I51: =IF(F51="","",SUMIF(الدخول!$B$3:$B$150,D51,الدخول!$H$3:$H$150)+SUMIF(الدخول!$B$3:$B$150,D51,الدخول!$U$3:$U$150)+F51-SUMIF(الدخول!$B$3:$B$150,D51,الدخول!$N$3:$N$150)) -> 3564 | J51: =IF(G51="","",SUMIF(الدخول!$B$3:$B$150,D51,الدخول!$I$3:$I$150)+SUMIF(الدخول!$B$3:$B$150,D51,الدخول!$V$3:$V$150)+G51-SUMIF(الدخول!$B$3:$B$150,D51,الدخول!$O$3:$O$150)) -> 
A52: ابيض IT-IMG-40 | B52: كروشيه | C52: 4cm | D52: ابيض IT-IMG-40 كروشيه 4cm | E52: 239.72 | F52: 7488 | H52: =IF(E52="","",SUMIF(الدخول!$B$3:$B$150,D52,الدخول!$F$3:$F$150)+SUMIF(الدخول!$B$3:$B$150,D52,الدخول!$S$3:$S$150)+E52-SUMIF(الدخول!$B$3:$B$150,D52,الدخول!$L$3:$L$150)) -> 239.72 | I52: =IF(F52="","",SUMIF(الدخول!$B$3:$B$150,D52,الدخول!$H$3:$H$150)+SUMIF(الدخول!$B$3:$B$150,D52,الدخول!$U$3:$U$150)+F52-SUMIF(الدخول!$B$3:$B$150,D52,الدخول!$N$3:$N$150)) -> 7488 | J52: =IF(G52="","",SUMIF(الدخول!$B$3:$B$150,D52,الدخول!$I$3:$I$150)+SUMIF(الدخول!$B$3:$B$150,D52,الدخول!$V$3:$V$150)+G52-SUMIF(الدخول!$B$3:$B$150,D52,الدخول!$O$3:$O$150)) -> 
A53: ابيض IT-IMG-50 | B53: كروشيه | C53: 5cm | D53: ابيض IT-IMG-50 كروشيه 5cm | F53: 14841.43 | H53: =IF(E53="","",SUMIF(الدخول!$B$3:$B$150,D53,الدخول!$F$3:$F$150)+SUMIF(الدخول!$B$3:$B$150,D53,الدخول!$S$3:$S$150)+E53-SUMIF(الدخول!$B$3:$B$150,D53,الدخول!$L$3:$L$150)) ->  | I53: =IF(F53="","",SUMIF(الدخول!$B$3:$B$150,D53,الدخول!$H$3:$H$150)+SUMIF(الدخول!$B$3:$B$150,D53,الدخول!$U$3:$U$150)+F53-SUMIF(الدخول!$B$3:$B$150,D53,الدخول!$N$3:$N$150)) -> 14841.43 | J53: =IF(G53="","",SUMIF(الدخول!$B$3:$B$150,D53,الدخول!$I$3:$I$150)+SUMIF(الدخول!$B$3:$B$150,D53,الدخول!$V$3:$V$150)+G53-SUMIF(الدخول!$B$3:$B$150,D53,الدخول!$O$3:$O$150)) -> 
A54: ابيض JA-IMG-45 | B54: كروشيه | C54: 4cm | D54: ابيض JA-IMG-45 كروشيه 4cm | E54: 626.96 | F54: 28492 | H54: =IF(E54="","",SUMIF(الدخول!$B$3:$B$150,D54,الدخول!$F$3:$F$150)+SUMIF(الدخول!$B$3:$B$150,D54,الدخول!$S$3:$S$150)+E54-SUMIF(الدخول!$B$3:$B$150,D54,الدخول!$L$3:$L$150)) -> 626.96 | I54: =IF(F54="","",SUMIF(الدخول!$B$3:$B$150,D54,الدخول!$H$3:$H$150)+SUMIF(الدخول!$B$3:$B$150,D54,الدخول!$U$3:$U$150)+F54-SUMIF(الدخول!$B$3:$B$150,D54,الدخول!$N$3:$N$150)) -> 28492 | J54: =IF(G54="","",SUMIF(الدخول!$B$3:$B$150,D54,الدخول!$I$3:$I$150)+SUMIF(الدخول!$B$3:$B$150,D54,الدخول!$V$3:$V$150)+G54-SUMIF(الدخول!$B$3:$B$150,D54,الدخول!$O$3:$O$150)) -> 
A55: ابيض SD-IMG-12 | B55: كروشيه | C55: 1.2cm | D55: ابيض SD-IMG-12 كروشيه 1.2cm | E55: 101 | F55: 4418 | H55: =IF(E55="","",SUMIF(الدخول!$B$3:$B$150,D55,الدخول!$F$3:$F$150)+SUMIF(الدخول!$B$3:$B$150,D55,الدخول!$S$3:$S$150)+E55-SUMIF(الدخول!$B$3:$B$150,D55,الدخول!$L$3:$L$150)) -> 101 | I55: =IF(F55="","",SUMIF(الدخول!$B$3:$B$150,D55,الدخول!$H$3:$H$150)+SUMIF(الدخول!$B$3:$B$150,D55,الدخول!$U$3:$U$150)+F55-SUMIF(الدخول!$B$3:$B$150,D55,الدخول!$N$3:$N$150)) -> 4418 | J55: =IF(G55="","",SUMIF(الدخول!$B$3:$B$150,D55,الدخول!$I$3:$I$150)+SUMIF(الدخول!$B$3:$B$150,D55,الدخول!$V$3:$V$150)+G55-SUMIF(الدخول!$B$3:$B$150,D55,الدخول!$O$3:$O$150)) -> 
A56: ابيض SD-IMG-30 | B56: كروشيه | C56: 3cm | D56: ابيض SD-IMG-30 كروشيه 3cm | E56: 1169.14 | F56: 53765 | H56: =IF(E56="","",SUMIF(الدخول!$B$3:$B$150,D56,الدخول!$F$3:$F$150)+SUMIF(الدخول!$B$3:$B$150,D56,الدخول!$S$3:$S$150)+E56-SUMIF(الدخول!$B$3:$B$150,D56,الدخول!$L$3:$L$150)) -> 1169.14 | I56: =IF(F56="","",SUMIF(الدخول!$B$3:$B$150,D56,الدخول!$H$3:$H$150)+SUMIF(الدخول!$B$3:$B$150,D56,الدخول!$U$3:$U$150)+F56-SUMIF(الدخول!$B$3:$B$150,D56,الدخول!$N$3:$N$150)) -> 53765 | J56: =IF(G56="","",SUMIF(الدخول!$B$3:$B$150,D56,الدخول!$I$3:$I$150)+SUMIF(الدخول!$B$3:$B$150,D56,الدخول!$V$3:$V$150)+G56-SUMIF(الدخول!$B$3:$B$150,D56,الدخول!$O$3:$O$150)) -> 
A57: ابيض TM-IMG-16 | B57: كروشيه | C57: 1.6cm | D57: ابيض TM-IMG-16 كروشيه 1.6cm | F57: 15803 | H57: =IF(E57="","",SUMIF(الدخول!$B$3:$B$150,D57,الدخول!$F$3:$F$150)+SUMIF(الدخول!$B$3:$B$150,D57,الدخول!$S$3:$S$150)+E57-SUMIF(الدخول!$B$3:$B$150,D57,الدخول!$L$3:$L$150)) ->  | I57: =IF(F57="","",SUMIF(الدخول!$B$3:$B$150,D57,الدخول!$H$3:$H$150)+SUMIF(الدخول!$B$3:$B$150,D57,الدخول!$U$3:$U$150)+F57-SUMIF(الدخول!$B$3:$B$150,D57,الدخول!$N$3:$N$150)) -> 15803 | J57: =IF(G57="","",SUMIF(الدخول!$B$3:$B$150,D57,الدخول!$I$3:$I$150)+SUMIF(الدخول!$B$3:$B$150,D57,الدخول!$V$3:$V$150)+G57-SUMIF(الدخول!$B$3:$B$150,D57,الدخول!$O$3:$O$150)) -> 
A58: ابيض TM-IMG-63 | B58: كروشيه | C58: 6.3cm | D58: ابيض TM-IMG-63 كروشيه 6.3cm | F58: 290 | H58: =IF(E58="","",SUMIF(الدخول!$B$3:$B$150,D58,الدخول!$F$3:$F$150)+SUMIF(الدخول!$B$3:$B$150,D58,الدخول!$S$3:$S$150)+E58-SUMIF(الدخول!$B$3:$B$150,D58,الدخول!$L$3:$L$150)) ->  | I58: =IF(F58="","",SUMIF(الدخول!$B$3:$B$150,D58,الدخول!$H$3:$H$150)+SUMIF(الدخول!$B$3:$B$150,D58,الدخول!$U$3:$U$150)+F58-SUMIF(الدخول!$B$3:$B$150,D58,الدخول!$N$3:$N$150)) -> 290 | J58: =IF(G58="","",SUMIF(الدخول!$B$3:$B$150,D58,الدخول!$I$3:$I$150)+SUMIF(الدخول!$B$3:$B$150,D58,الدخول!$V$3:$V$150)+G58-SUMIF(الدخول!$B$3:$B$150,D58,الدخول!$O$3:$O$150)) -> 
A59: ابيض TM-IMG-65 | B59: كروشيه | C59: 6.5cm | D59: ابيض TM-IMG-65 كروشيه 6.5cm | E59: 968.1 | F59: 24544 | H59: =IF(E59="","",SUMIF(الدخول!$B$3:$B$150,D59,الدخول!$F$3:$F$150)+SUMIF(الدخول!$B$3:$B$150,D59,الدخول!$S$3:$S$150)+E59-SUMIF(الدخول!$B$3:$B$150,D59,الدخول!$L$3:$L$150)) -> 968.1 | I59: =IF(F59="","",SUMIF(الدخول!$B$3:$B$150,D59,الدخول!$H$3:$H$150)+SUMIF(الدخول!$B$3:$B$150,D59,الدخول!$U$3:$U$150)+F59-SUMIF(الدخول!$B$3:$B$150,D59,الدخول!$N$3:$N$150)) -> 24544 | J59: =IF(G59="","",SUMIF(الدخول!$B$3:$B$150,D59,الدخول!$I$3:$I$150)+SUMIF(الدخول!$B$3:$B$150,D59,الدخول!$V$3:$V$150)+G59-SUMIF(الدخول!$B$3:$B$150,D59,الدخول!$O$3:$O$150)) -> 
A60: ابيض TM-IMG-70 | B60: كروشيه | C60: 7cm | D60: ابيض TM-IMG-70 كروشيه 7cm | F60: 3353 | H60: =IF(E60="","",SUMIF(الدخول!$B$3:$B$150,D60,الدخول!$F$3:$F$150)+SUMIF(الدخول!$B$3:$B$150,D60,الدخول!$S$3:$S$150)+E60-SUMIF(الدخول!$B$3:$B$150,D60,الدخول!$L$3:$L$150)) ->  | I60: =IF(F60="","",SUMIF(الدخول!$B$3:$B$150,D60,الدخول!$H$3:$H$150)+SUMIF(الدخول!$B$3:$B$150,D60,الدخول!$U$3:$U$150)+F60-SUMIF(الدخول!$B$3:$B$150,D60,الدخول!$N$3:$N$150)) -> 3353 | J60: =IF(G60="","",SUMIF(الدخول!$B$3:$B$150,D60,الدخول!$I$3:$I$150)+SUMIF(الدخول!$B$3:$B$150,D60,الدخول!$V$3:$V$150)+G60-SUMIF(الدخول!$B$3:$B$150,D60,الدخول!$O$3:$O$150)) -> 
A61: ابيض TM-IMG-82 | B61: كروشيه | C61: 8.2cm | D61: ابيض TM-IMG-82 كروشيه 8.2cm | F61: 173 | H61: =IF(E61="","",SUMIF(الدخول!$B$3:$B$150,D61,الدخول!$F$3:$F$150)+SUMIF(الدخول!$B$3:$B$150,D61,الدخول!$S$3:$S$150)+E61-SUMIF(الدخول!$B$3:$B$150,D61,الدخول!$L$3:$L$150)) ->  | I61: =IF(F61="","",SUMIF(الدخول!$B$3:$B$150,D61,الدخول!$H$3:$H$150)+SUMIF(الدخول!$B$3:$B$150,D61,الدخول!$U$3:$U$150)+F61-SUMIF(الدخول!$B$3:$B$150,D61,الدخول!$N$3:$N$150)) -> 173 | J61: =IF(G61="","",SUMIF(الدخول!$B$3:$B$150,D61,الدخول!$I$3:$I$150)+SUMIF(الدخول!$B$3:$B$150,D61,الدخول!$V$3:$V$150)+G61-SUMIF(الدخول!$B$3:$B$150,D61,الدخول!$O$3:$O$150)) -> 
A62: ابيض فلاش | B62: كروشيه | C62: 2cm | D62: ابيض فلاش كروشيه 2cm | E62: 313.48 | F62: 22168 | H62: =IF(E62="","",SUMIF(الدخول!$B$3:$B$150,D62,الدخول!$F$3:$F$150)+SUMIF(الدخول!$B$3:$B$150,D62,الدخول!$S$3:$S$150)+E62-SUMIF(الدخول!$B$3:$B$150,D62,الدخول!$L$3:$L$150)) -> 313.48 | I62: =IF(F62="","",SUMIF(الدخول!$B$3:$B$150,D62,الدخول!$H$3:$H$150)+SUMIF(الدخول!$B$3:$B$150,D62,الدخول!$U$3:$U$150)+F62-SUMIF(الدخول!$B$3:$B$150,D62,الدخول!$N$3:$N$150)) -> 22168 | J62: =IF(G62="","",SUMIF(الدخول!$B$3:$B$150,D62,الدخول!$I$3:$I$150)+SUMIF(الدخول!$B$3:$B$150,D62,الدخول!$V$3:$V$150)+G62-SUMIF(الدخول!$B$3:$B$150,D62,الدخول!$O$3:$O$150)) -> 
A63: ابيض فلاش | B63: كروشيه | C63: 3.5cm | D63: ابيض فلاش كروشيه 3.5cm | E63: 543.98 | F63: 24721 | H63: =IF(E63="","",SUMIF(الدخول!$B$3:$B$150,D63,الدخول!$F$3:$F$150)+SUMIF(الدخول!$B$3:$B$150,D63,الدخول!$S$3:$S$150)+E63-SUMIF(الدخول!$B$3:$B$150,D63,الدخول!$L$3:$L$150)) -> 543.98 | I63: =IF(F63="","",SUMIF(الدخول!$B$3:$B$150,D63,الدخول!$H$3:$H$150)+SUMIF(الدخول!$B$3:$B$150,D63,الدخول!$U$3:$U$150)+F63-SUMIF(الدخول!$B$3:$B$150,D63,الدخول!$N$3:$N$150)) -> 24721 | J63: =IF(G63="","",SUMIF(الدخول!$B$3:$B$150,D63,الدخول!$I$3:$I$150)+SUMIF(الدخول!$B$3:$B$150,D63,الدخول!$V$3:$V$150)+G63-SUMIF(الدخول!$B$3:$B$150,D63,الدخول!$O$3:$O$150)) -> 
A64: ابيض فلاش | B64: كروشيه | C64: 4.5cm | D64: ابيض فلاش كروشيه 4.5cm | E64: 396.46 | F64: 14663 | H64: =IF(E64="","",SUMIF(الدخول!$B$3:$B$150,D64,الدخول!$F$3:$F$150)+SUMIF(الدخول!$B$3:$B$150,D64,الدخول!$S$3:$S$150)+E64-SUMIF(الدخول!$B$3:$B$150,D64,الدخول!$L$3:$L$150)) -> 396.46 | I64: =IF(F64="","",SUMIF(الدخول!$B$3:$B$150,D64,الدخول!$H$3:$H$150)+SUMIF(الدخول!$B$3:$B$150,D64,الدخول!$U$3:$U$150)+F64-SUMIF(الدخول!$B$3:$B$150,D64,الدخول!$N$3:$N$150)) -> 14663 | J64: =IF(G64="","",SUMIF(الدخول!$B$3:$B$150,D64,الدخول!$I$3:$I$150)+SUMIF(الدخول!$B$3:$B$150,D64,الدخول!$V$3:$V$150)+G64-SUMIF(الدخول!$B$3:$B$150,D64,الدخول!$O$3:$O$150)) -> 
A65: ابيض فلاش | B65: كروشيه | C65: 5cm | D65: ابيض فلاش كروشيه 5cm | E65: 1530.52 | F65: 47808 | H65: =IF(E65="","",SUMIF(الدخول!$B$3:$B$150,D65,الدخول!$F$3:$F$150)+SUMIF(الدخول!$B$3:$B$150,D65,الدخول!$S$3:$S$150)+E65-SUMIF(الدخول!$B$3:$B$150,D65,الدخول!$L$3:$L$150)) -> 1530.52 | I65: =IF(F65="","",SUMIF(الدخول!$B$3:$B$150,D65,الدخول!$H$3:$H$150)+SUMIF(الدخول!$B$3:$B$150,D65,الدخول!$U$3:$U$150)+F65-SUMIF(الدخول!$B$3:$B$150,D65,الدخول!$N$3:$N$150)) -> 47808 | J65: =IF(G65="","",SUMIF(الدخول!$B$3:$B$150,D65,الدخول!$I$3:$I$150)+SUMIF(الدخول!$B$3:$B$150,D65,الدخول!$V$3:$V$150)+G65-SUMIF(الدخول!$B$3:$B$150,D65,الدخول!$O$3:$O$150)) -> 
A66: ابيض كانون | B66: كروشيه | C66: 4.5cm | D66: =A66&" "&B66&" "&C66 -> ابيض كانون كروشيه 4.5cm | E66: 27.66 | F66: 921 | H66: =IF(E66="","",SUMIF(الدخول!$B$3:$B$150,D66,الدخول!$F$3:$F$150)+SUMIF(الدخول!$B$3:$B$150,D66,الدخول!$S$3:$S$150)+E66-SUMIF(الدخول!$B$3:$B$150,D66,الدخول!$L$3:$L$150)) -> 27.66 | I66: =IF(F66="","",SUMIF(الدخول!$B$3:$B$150,D66,الدخول!$H$3:$H$150)+SUMIF(الدخول!$B$3:$B$150,D66,الدخول!$U$3:$U$150)+F66-SUMIF(الدخول!$B$3:$B$150,D66,الدخول!$N$3:$N$150)) -> 921 | J66: =IF(G66="","",SUMIF(الدخول!$B$3:$B$150,D66,الدخول!$I$3:$I$150)+SUMIF(الدخول!$B$3:$B$150,D66,الدخول!$V$3:$V$150)+G66-SUMIF(الدخول!$B$3:$B$150,D66,الدخول!$O$3:$O$150)) -> 
A67: ابيض كانون | B67: كروشيه | C67: 5.5cm | D67: ابيض كانون كروشيه 5.5cm | E67: 129.08 | F67: 3627 | H67: =IF(E67="","",SUMIF(الدخول!$B$3:$B$150,D67,الدخول!$F$3:$F$150)+SUMIF(الدخول!$B$3:$B$150,D67,الدخول!$S$3:$S$150)+E67-SUMIF(الدخول!$B$3:$B$150,D67,الدخول!$L$3:$L$150)) -> 129.08 | I67: =IF(F67="","",SUMIF(الدخول!$B$3:$B$150,D67,الدخول!$H$3:$H$150)+SUMIF(الدخول!$B$3:$B$150,D67,الدخول!$U$3:$U$150)+F67-SUMIF(الدخول!$B$3:$B$150,D67,الدخول!$N$3:$N$150)) -> 3627 | J67: =IF(G67="","",SUMIF(الدخول!$B$3:$B$150,D67,الدخول!$I$3:$I$150)+SUMIF(الدخول!$B$3:$B$150,D67,الدخول!$V$3:$V$150)+G67-SUMIF(الدخول!$B$3:$B$150,D67,الدخول!$O$3:$O$150)) -> 
A68: ابيض510 | B68: كروشيه | C68: 3cm | D68: ابيض510 كروشيه 3cm | E68: 212.06 | F68: 13746 | H68: =IF(E68="","",SUMIF(الدخول!$B$3:$B$150,D68,الدخول!$F$3:$F$150)+SUMIF(الدخول!$B$3:$B$150,D68,الدخول!$S$3:$S$150)+E68-SUMIF(الدخول!$B$3:$B$150,D68,الدخول!$L$3:$L$150)) -> 212.06 | I68: =IF(F68="","",SUMIF(الدخول!$B$3:$B$150,D68,الدخول!$H$3:$H$150)+SUMIF(الدخول!$B$3:$B$150,D68,الدخول!$U$3:$U$150)+F68-SUMIF(الدخول!$B$3:$B$150,D68,الدخول!$N$3:$N$150)) -> 13746 | J68: =IF(G68="","",SUMIF(الدخول!$B$3:$B$150,D68,الدخول!$I$3:$I$150)+SUMIF(الدخول!$B$3:$B$150,D68,الدخول!$V$3:$V$150)+G68-SUMIF(الدخول!$B$3:$B$150,D68,الدخول!$O$3:$O$150)) -> 
A69: ابيض510 | B69: كروشيه | C69: 4cm | D69: ابيض510 كروشيه 4cm | E69: 27.66 | F69: 1147 | H69: =IF(E69="","",SUMIF(الدخول!$B$3:$B$150,D69,الدخول!$F$3:$F$150)+SUMIF(الدخول!$B$3:$B$150,D69,الدخول!$S$3:$S$150)+E69-SUMIF(الدخول!$B$3:$B$150,D69,الدخول!$L$3:$L$150)) -> 27.66 | I69: =IF(F69="","",SUMIF(الدخول!$B$3:$B$150,D69,الدخول!$H$3:$H$150)+SUMIF(الدخول!$B$3:$B$150,D69,الدخول!$U$3:$U$150)+F69-SUMIF(الدخول!$B$3:$B$150,D69,الدخول!$N$3:$N$150)) -> 1147 | J69: =IF(G69="","",SUMIF(الدخول!$B$3:$B$150,D69,الدخول!$I$3:$I$150)+SUMIF(الدخول!$B$3:$B$150,D69,الدخول!$V$3:$V$150)+G69-SUMIF(الدخول!$B$3:$B$150,D69,الدخول!$O$3:$O$150)) -> 
A70: احمر | B70: كورد | C70: كبسله بلاستك | D70: احمر كورد كبسله بلاستك | H70: =IF(E70="","",SUMIF(الدخول!$B$3:$B$150,D70,الدخول!$F$3:$F$150)+SUMIF(الدخول!$B$3:$B$150,D70,الدخول!$S$3:$S$150)+E70-SUMIF(الدخول!$B$3:$B$150,D70,الدخول!$L$3:$L$150)) ->  | I70: =IF(F70="","",SUMIF(الدخول!$B$3:$B$150,D70,الدخول!$H$3:$H$150)+SUMIF(الدخول!$B$3:$B$150,D70,الدخول!$U$3:$U$150)+F70-SUMIF(الدخول!$B$3:$B$150,D70,الدخول!$N$3:$N$150)) ->  | J70: =IF(G70="","",SUMIF(الدخول!$B$3:$B$150,D70,الدخول!$I$3:$I$150)+SUMIF(الدخول!$B$3:$B$150,D70,الدخول!$V$3:$V$150)+G70-SUMIF(الدخول!$B$3:$B$150,D70,الدخول!$O$3:$O$150)) -> 
A71: احمر | B71: كورد | C71: مبطط | D71: احمر كورد مبطط | H71: =IF(E71="","",SUMIF(الدخول!$B$3:$B$150,D71,الدخول!$F$3:$F$150)+SUMIF(الدخول!$B$3:$B$150,D71,الدخول!$S$3:$S$150)+E71-SUMIF(الدخول!$B$3:$B$150,D71,الدخول!$L$3:$L$150)) ->  | I71: =IF(F71="","",SUMIF(الدخول!$B$3:$B$150,D71,الدخول!$H$3:$H$150)+SUMIF(الدخول!$B$3:$B$150,D71,الدخول!$U$3:$U$150)+F71-SUMIF(الدخول!$B$3:$B$150,D71,الدخول!$N$3:$N$150)) ->  | J71: =IF(G71="","",SUMIF(الدخول!$B$3:$B$150,D71,الدخول!$I$3:$I$150)+SUMIF(الدخول!$B$3:$B$150,D71,الدخول!$V$3:$V$150)+G71-SUMIF(الدخول!$B$3:$B$150,D71,الدخول!$O$3:$O$150)) -> 
A72: اخضر | B72: كورد | C72: مبطط | D72: اخضر كورد مبطط | H72: =IF(E72="","",SUMIF(الدخول!$B$3:$B$150,D72,الدخول!$F$3:$F$150)+SUMIF(الدخول!$B$3:$B$150,D72,الدخول!$S$3:$S$150)+E72-SUMIF(الدخول!$B$3:$B$150,D72,الدخول!$L$3:$L$150)) ->  | I72: =IF(F72="","",SUMIF(الدخول!$B$3:$B$150,D72,الدخول!$H$3:$H$150)+SUMIF(الدخول!$B$3:$B$150,D72,الدخول!$U$3:$U$150)+F72-SUMIF(الدخول!$B$3:$B$150,D72,الدخول!$N$3:$N$150)) ->  | J72: =IF(G72="","",SUMIF(الدخول!$B$3:$B$150,D72,الدخول!$I$3:$I$150)+SUMIF(الدخول!$B$3:$B$150,D72,الدخول!$V$3:$V$150)+G72-SUMIF(الدخول!$B$3:$B$150,D72,الدخول!$O$3:$O$150)) -> 
A73: اخضر X زيتي | B73: بايبينج | C73: 1cm | D73: اخضر X زيتي بايبينج 1cm | E73: 62.46 | F73: 12492 | H73: =IF(E73="","",SUMIF(الدخول!$B$3:$B$150,D73,الدخول!$F$3:$F$150)+SUMIF(الدخول!$B$3:$B$150,D73,الدخول!$S$3:$S$150)+E73-SUMIF(الدخول!$B$3:$B$150,D73,الدخول!$L$3:$L$150)) -> 62.46 | I73: =IF(F73="","",SUMIF(الدخول!$B$3:$B$150,D73,الدخول!$H$3:$H$150)+SUMIF(الدخول!$B$3:$B$150,D73,الدخول!$U$3:$U$150)+F73-SUMIF(الدخول!$B$3:$B$150,D73,الدخول!$N$3:$N$150)) -> 12492 | J73: =IF(G73="","",SUMIF(الدخول!$B$3:$B$150,D73,الدخول!$I$3:$I$150)+SUMIF(الدخول!$B$3:$B$150,D73,الدخول!$V$3:$V$150)+G73-SUMIF(الدخول!$B$3:$B$150,D73,الدخول!$O$3:$O$150)) -> 
A74: اسود | B74: استك طبي | C74: 2.26 | D74: اسود استك طبي 2.26 | H74: =IF(E74="","",SUMIF(الدخول!$B$3:$B$150,D74,الدخول!$F$3:$F$150)+SUMIF(الدخول!$B$3:$B$150,D74,الدخول!$S$3:$S$150)+E74-SUMIF(الدخول!$B$3:$B$150,D74,الدخول!$L$3:$L$150)) ->  | I74: =IF(F74="","",SUMIF(الدخول!$B$3:$B$150,D74,الدخول!$H$3:$H$150)+SUMIF(الدخول!$B$3:$B$150,D74,الدخول!$U$3:$U$150)+F74-SUMIF(الدخول!$B$3:$B$150,D74,الدخول!$N$3:$N$150)) ->  | J74: =IF(G74="","",SUMIF(الدخول!$B$3:$B$150,D74,الدخول!$I$3:$I$150)+SUMIF(الدخول!$B$3:$B$150,D74,الدخول!$V$3:$V$150)+G74-SUMIF(الدخول!$B$3:$B$150,D74,الدخول!$O$3:$O$150)) -> 
A75: اسود | B75: استك طبي | C75: 2.98 | D75: اسود استك طبي 2.98 | H75: =IF(E75="","",SUMIF(الدخول!$B$3:$B$150,D75,الدخول!$F$3:$F$150)+SUMIF(الدخول!$B$3:$B$150,D75,الدخول!$S$3:$S$150)+E75-SUMIF(الدخول!$B$3:$B$150,D75,الدخول!$L$3:$L$150)) ->  | I75: =IF(F75="","",SUMIF(الدخول!$B$3:$B$150,D75,الدخول!$H$3:$H$150)+SUMIF(الدخول!$B$3:$B$150,D75,الدخول!$U$3:$U$150)+F75-SUMIF(الدخول!$B$3:$B$150,D75,الدخول!$N$3:$N$150)) ->  | J75: =IF(G75="","",SUMIF(الدخول!$B$3:$B$150,D75,الدخول!$I$3:$I$150)+SUMIF(الدخول!$B$3:$B$150,D75,الدخول!$V$3:$V$150)+G75-SUMIF(الدخول!$B$3:$B$150,D75,الدخول!$O$3:$O$150)) -> 
A76: اسود | B76: كروشيه | C76: 1.2cm | D76: اسود كروشيه 1.2cm | E76: 9220 | F76: 1042 | H76: =IF(E76="","",SUMIF(الدخول!$B$3:$B$150,D76,الدخول!$F$3:$F$150)+SUMIF(الدخول!$B$3:$B$150,D76,الدخول!$S$3:$S$150)+E76-SUMIF(الدخول!$B$3:$B$150,D76,الدخول!$L$3:$L$150)) -> 9220 | I76: =IF(F76="","",SUMIF(الدخول!$B$3:$B$150,D76,الدخول!$H$3:$H$150)+SUMIF(الدخول!$B$3:$B$150,D76,الدخول!$U$3:$U$150)+F76-SUMIF(الدخول!$B$3:$B$150,D76,الدخول!$N$3:$N$150)) -> 1042 | J76: =IF(G76="","",SUMIF(الدخول!$B$3:$B$150,D76,الدخول!$I$3:$I$150)+SUMIF(الدخول!$B$3:$B$150,D76,الدخول!$V$3:$V$150)+G76-SUMIF(الدخول!$B$3:$B$150,D76,الدخول!$O$3:$O$150)) -> 
A77: اسود | B77: كروشيه | C77: 1.2cm | D77: اسود كروشيه 1.2cm | E77: 9.22 | F77: 1042 | H77: =IF(E77="","",SUMIF(الدخول!$B$3:$B$150,D77,الدخول!$F$3:$F$150)+SUMIF(الدخول!$B$3:$B$150,D77,الدخول!$S$3:$S$150)+E77-SUMIF(الدخول!$B$3:$B$150,D77,الدخول!$L$3:$L$150)) -> 9.22 | I77: =IF(F77="","",SUMIF(الدخول!$B$3:$B$150,D77,الدخول!$H$3:$H$150)+SUMIF(الدخول!$B$3:$B$150,D77,الدخول!$U$3:$U$150)+F77-SUMIF(الدخول!$B$3:$B$150,D77,الدخول!$N$3:$N$150)) -> 1042 | J77: =IF(G77="","",SUMIF(الدخول!$B$3:$B$150,D77,الدخول!$I$3:$I$150)+SUMIF(الدخول!$B$3:$B$150,D77,الدخول!$V$3:$V$150)+G77-SUMIF(الدخول!$B$3:$B$150,D77,الدخول!$O$3:$O$150)) -> 
A78: اسود | B78: كروشيه | C78: 1.4cm | D78: اسود كروشيه 1.4cm | H78: =IF(E78="","",SUMIF(الدخول!$B$3:$B$150,D78,الدخول!$F$3:$F$150)+SUMIF(الدخول!$B$3:$B$150,D78,الدخول!$S$3:$S$150)+E78-SUMIF(الدخول!$B$3:$B$150,D78,الدخول!$L$3:$L$150)) ->  | I78: =IF(F78="","",SUMIF(الدخول!$B$3:$B$150,D78,الدخول!$H$3:$H$150)+SUMIF(الدخول!$B$3:$B$150,D78,الدخول!$U$3:$U$150)+F78-SUMIF(الدخول!$B$3:$B$150,D78,الدخول!$N$3:$N$150)) ->  | J78: =IF(G78="","",SUMIF(الدخول!$B$3:$B$150,D78,الدخول!$I$3:$I$150)+SUMIF(الدخول!$B$3:$B$150,D78,الدخول!$V$3:$V$150)+G78-SUMIF(الدخول!$B$3:$B$150,D78,الدخول!$O$3:$O$150)) -> 
A79: اسود | B79: كروشيه | C79: 1.5cm | D79: اسود كروشيه 1.5cm | E79: 61.12 | F79: 6944 | H79: =IF(E79="","",SUMIF(الدخول!$B$3:$B$150,D79,الدخول!$F$3:$F$150)+SUMIF(الدخول!$B$3:$B$150,D79,الدخول!$S$3:$S$150)+E79-SUMIF(الدخول!$B$3:$B$150,D79,الدخول!$L$3:$L$150)) -> 61.12 | I79: =IF(F79="","",SUMIF(الدخول!$B$3:$B$150,D79,الدخول!$H$3:$H$150)+SUMIF(الدخول!$B$3:$B$150,D79,الدخول!$U$3:$U$150)+F79-SUMIF(الدخول!$B$3:$B$150,D79,الدخول!$N$3:$N$150)) -> 6944 | J79: =IF(G79="","",SUMIF(الدخول!$B$3:$B$150,D79,الدخول!$I$3:$I$150)+SUMIF(الدخول!$B$3:$B$150,D79,الدخول!$V$3:$V$150)+G79-SUMIF(الدخول!$B$3:$B$150,D79,الدخول!$O$3:$O$150)) -> 
A80: اسود | B80: كروشيه | C80: 1.7cm | D80: اسود كروشيه 1.7cm | E80: 15.28 | F80: 1297 | H80: =IF(E80="","",SUMIF(الدخول!$B$3:$B$150,D80,الدخول!$F$3:$F$150)+SUMIF(الدخول!$B$3:$B$150,D80,الدخول!$S$3:$S$150)+E80-SUMIF(الدخول!$B$3:$B$150,D80,الدخول!$L$3:$L$150)) -> 15.28 | I80: =IF(F80="","",SUMIF(الدخول!$B$3:$B$150,D80,الدخول!$H$3:$H$150)+SUMIF(الدخول!$B$3:$B$150,D80,الدخول!$U$3:$U$150)+F80-SUMIF(الدخول!$B$3:$B$150,D80,الدخول!$N$3:$N$150)) -> 1297 | J80: =IF(G80="","",SUMIF(الدخول!$B$3:$B$150,D80,الدخول!$I$3:$I$150)+SUMIF(الدخول!$B$3:$B$150,D80,الدخول!$V$3:$V$150)+G80-SUMIF(الدخول!$B$3:$B$150,D80,الدخول!$O$3:$O$150)) -> 
A81: اسود | B81: كروشيه | C81: 1cm | D81: اسود كروشيه 1cm | E81: 15.28 | F81: 2546 | H81: =IF(E81="","",SUMIF(الدخول!$B$3:$B$150,D81,الدخول!$F$3:$F$150)+SUMIF(الدخول!$B$3:$B$150,D81,الدخول!$S$3:$S$150)+E81-SUMIF(الدخول!$B$3:$B$150,D81,الدخول!$L$3:$L$150)) -> 15.28 | I81: =IF(F81="","",SUMIF(الدخول!$B$3:$B$150,D81,الدخول!$H$3:$H$150)+SUMIF(الدخول!$B$3:$B$150,D81,الدخول!$U$3:$U$150)+F81-SUMIF(الدخول!$B$3:$B$150,D81,الدخول!$N$3:$N$150)) -> 2546 | J81: =IF(G81="","",SUMIF(الدخول!$B$3:$B$150,D81,الدخول!$I$3:$I$150)+SUMIF(الدخول!$B$3:$B$150,D81,الدخول!$V$3:$V$150)+G81-SUMIF(الدخول!$B$3:$B$150,D81,الدخول!$O$3:$O$150)) -> 
A82: اسود | B82: كروشيه | C82: 2.2cm | D82: اسود كروشيه 2.2cm | H82: =IF(E82="","",SUMIF(الدخول!$B$3:$B$150,D82,الدخول!$F$3:$F$150)+SUMIF(الدخول!$B$3:$B$150,D82,الدخول!$S$3:$S$150)+E82-SUMIF(الدخول!$B$3:$B$150,D82,الدخول!$L$3:$L$150)) ->  | I82: =IF(F82="","",SUMIF(الدخول!$B$3:$B$150,D82,الدخول!$H$3:$H$150)+SUMIF(الدخول!$B$3:$B$150,D82,الدخول!$U$3:$U$150)+F82-SUMIF(الدخول!$B$3:$B$150,D82,الدخول!$N$3:$N$150)) ->  | J82: =IF(G82="","",SUMIF(الدخول!$B$3:$B$150,D82,الدخول!$I$3:$I$150)+SUMIF(الدخول!$B$3:$B$150,D82,الدخول!$V$3:$V$150)+G82-SUMIF(الدخول!$B$3:$B$150,D82,الدخول!$O$3:$O$150)) -> 
A83: اسود | B83: كروشيه | C83: 2.5cm | D83: اسود كروشيه 2.5cm | E83: 848.24 | F83: 60536 | H83: =IF(E83="","",SUMIF(الدخول!$B$3:$B$150,D83,الدخول!$F$3:$F$150)+SUMIF(الدخول!$B$3:$B$150,D83,الدخول!$S$3:$S$150)+E83-SUMIF(الدخول!$B$3:$B$150,D83,الدخول!$L$3:$L$150)) -> 848.24 | I83: =IF(F83="","",SUMIF(الدخول!$B$3:$B$150,D83,الدخول!$H$3:$H$150)+SUMIF(الدخول!$B$3:$B$150,D83,الدخول!$U$3:$U$150)+F83-SUMIF(الدخول!$B$3:$B$150,D83,الدخول!$N$3:$N$150)) -> 60536 | J83: =IF(G83="","",SUMIF(الدخول!$B$3:$B$150,D83,الدخول!$I$3:$I$150)+SUMIF(الدخول!$B$3:$B$150,D83,الدخول!$V$3:$V$150)+G83-SUMIF(الدخول!$B$3:$B$150,D83,الدخول!$O$3:$O$150)) -> 
A84: اسود | B84: كروشيه | C84: 2cm | D84: اسود كروشيه 2cm | E84: 206.28 | F84: 19374 | H84: =IF(E84="","",SUMIF(الدخول!$B$3:$B$150,D84,الدخول!$F$3:$F$150)+SUMIF(الدخول!$B$3:$B$150,D84,الدخول!$S$3:$S$150)+E84-SUMIF(الدخول!$B$3:$B$150,D84,الدخول!$L$3:$L$150)) -> 213.92 | I84: =IF(F84="","",SUMIF(الدخول!$B$3:$B$150,D84,الدخول!$H$3:$H$150)+SUMIF(الدخول!$B$3:$B$150,D84,الدخول!$U$3:$U$150)+F84-SUMIF(الدخول!$B$3:$B$150,D84,الدخول!$N$3:$N$150)) -> 20010 | J84: =IF(G84="","",SUMIF(الدخول!$B$3:$B$150,D84,الدخول!$I$3:$I$150)+SUMIF(الدخول!$B$3:$B$150,D84,الدخول!$V$3:$V$150)+G84-SUMIF(الدخول!$B$3:$B$150,D84,الدخول!$O$3:$O$150)) -> 
A85: اسود | B85: كروشيه | C85: 3.5cm | D85: اسود كروشيه 3.5cm | E85: 267.38 | F85: 14065 | H85: =IF(E85="","",SUMIF(الدخول!$B$3:$B$150,D85,الدخول!$F$3:$F$150)+SUMIF(الدخول!$B$3:$B$150,D85,الدخول!$S$3:$S$150)+E85-SUMIF(الدخول!$B$3:$B$150,D85,الدخول!$L$3:$L$150)) -> 267.38 | I85: =IF(F85="","",SUMIF(الدخول!$B$3:$B$150,D85,الدخول!$H$3:$H$150)+SUMIF(الدخول!$B$3:$B$150,D85,الدخول!$U$3:$U$150)+F85-SUMIF(الدخول!$B$3:$B$150,D85,الدخول!$N$3:$N$150)) -> 14065 | J85: =IF(G85="","",SUMIF(الدخول!$B$3:$B$150,D85,الدخول!$I$3:$I$150)+SUMIF(الدخول!$B$3:$B$150,D85,الدخول!$V$3:$V$150)+G85-SUMIF(الدخول!$B$3:$B$150,D85,الدخول!$O$3:$O$150)) -> 
A86: اسود | B86: كروشيه | C86: 3.8cm | D86: اسود كروشيه 3.8cm | E86: 18.44 | F86: 996 | H86: =IF(E86="","",SUMIF(الدخول!$B$3:$B$150,D86,الدخول!$F$3:$F$150)+SUMIF(الدخول!$B$3:$B$150,D86,الدخول!$S$3:$S$150)+E86-SUMIF(الدخول!$B$3:$B$150,D86,الدخول!$L$3:$L$150)) -> 18.44 | I86: =IF(F86="","",SUMIF(الدخول!$B$3:$B$150,D86,الدخول!$H$3:$H$150)+SUMIF(الدخول!$B$3:$B$150,D86,الدخول!$U$3:$U$150)+F86-SUMIF(الدخول!$B$3:$B$150,D86,الدخول!$N$3:$N$150)) -> 996 | J86: =IF(G86="","",SUMIF(الدخول!$B$3:$B$150,D86,الدخول!$I$3:$I$150)+SUMIF(الدخول!$B$3:$B$150,D86,الدخول!$V$3:$V$150)+G86-SUMIF(الدخول!$B$3:$B$150,D86,الدخول!$O$3:$O$150)) -> 
A87: اسود | B87: كروشيه | C87: 3.8cm | D87: اسود كروشيه 3.8cm | E87: 18.44 | F87: 996 | H87: =IF(E87="","",SUMIF(الدخول!$B$3:$B$150,D87,الدخول!$F$3:$F$150)+SUMIF(الدخول!$B$3:$B$150,D87,الدخول!$S$3:$S$150)+E87-SUMIF(الدخول!$B$3:$B$150,D87,الدخول!$L$3:$L$150)) -> 18.44 | I87: =IF(F87="","",SUMIF(الدخول!$B$3:$B$150,D87,الدخول!$H$3:$H$150)+SUMIF(الدخول!$B$3:$B$150,D87,الدخول!$U$3:$U$150)+F87-SUMIF(الدخول!$B$3:$B$150,D87,الدخول!$N$3:$N$150)) -> 996 | J87: =IF(G87="","",SUMIF(الدخول!$B$3:$B$150,D87,الدخول!$I$3:$I$150)+SUMIF(الدخول!$B$3:$B$150,D87,الدخول!$V$3:$V$150)+G87-SUMIF(الدخول!$B$3:$B$150,D87,الدخول!$O$3:$O$150)) -> 
A88: اسود | B88: كروشيه | C88: 3cm | D88: اسود كروشيه 3cm | E88: 175.18 | F88: 10735 | H88: =IF(E88="","",SUMIF(الدخول!$B$3:$B$150,D88,الدخول!$F$3:$F$150)+SUMIF(الدخول!$B$3:$B$150,D88,الدخول!$S$3:$S$150)+E88-SUMIF(الدخول!$B$3:$B$150,D88,الدخول!$L$3:$L$150)) -> 212.06 | I88: =IF(F88="","",SUMIF(الدخول!$B$3:$B$150,D88,الدخول!$H$3:$H$150)+SUMIF(الدخول!$B$3:$B$150,D88,الدخول!$U$3:$U$150)+F88-SUMIF(الدخول!$B$3:$B$150,D88,الدخول!$N$3:$N$150)) -> 12995 | J88: =IF(G88="","",SUMIF(الدخول!$B$3:$B$150,D88,الدخول!$I$3:$I$150)+SUMIF(الدخول!$B$3:$B$150,D88,الدخول!$V$3:$V$150)+G88-SUMIF(الدخول!$B$3:$B$150,D88,الدخول!$O$3:$O$150)) -> 
A89: اسود | B89: كروشيه | C89: 4.5cm | D89: اسود كروشيه 4.5cm | E89: 46.1 | F89: 1825 | H89: =IF(E89="","",SUMIF(الدخول!$B$3:$B$150,D89,الدخول!$F$3:$F$150)+SUMIF(الدخول!$B$3:$B$150,D89,الدخول!$S$3:$S$150)+E89-SUMIF(الدخول!$B$3:$B$150,D89,الدخول!$L$3:$L$150)) -> 46.1 | I89: =IF(F89="","",SUMIF(الدخول!$B$3:$B$150,D89,الدخول!$H$3:$H$150)+SUMIF(الدخول!$B$3:$B$150,D89,الدخول!$U$3:$U$150)+F89-SUMIF(الدخول!$B$3:$B$150,D89,الدخول!$N$3:$N$150)) -> 1825 | J89: =IF(G89="","",SUMIF(الدخول!$B$3:$B$150,D89,الدخول!$I$3:$I$150)+SUMIF(الدخول!$B$3:$B$150,D89,الدخول!$V$3:$V$150)+G89-SUMIF(الدخول!$B$3:$B$150,D89,الدخول!$O$3:$O$150)) -> 
A90: اسود | B90: كروشيه | C90: 4.8cm | D90: اسود كروشيه 4.8cm | E90: 36.88 | F90: 1600 | H90: =IF(E90="","",SUMIF(الدخول!$B$3:$B$150,D90,الدخول!$F$3:$F$150)+SUMIF(الدخول!$B$3:$B$150,D90,الدخول!$S$3:$S$150)+E90-SUMIF(الدخول!$B$3:$B$150,D90,الدخول!$L$3:$L$150)) -> 36.88 | I90: =IF(F90="","",SUMIF(الدخول!$B$3:$B$150,D90,الدخول!$H$3:$H$150)+SUMIF(الدخول!$B$3:$B$150,D90,الدخول!$U$3:$U$150)+F90-SUMIF(الدخول!$B$3:$B$150,D90,الدخول!$N$3:$N$150)) -> 1600 | J90: =IF(G90="","",SUMIF(الدخول!$B$3:$B$150,D90,الدخول!$I$3:$I$150)+SUMIF(الدخول!$B$3:$B$150,D90,الدخول!$V$3:$V$150)+G90-SUMIF(الدخول!$B$3:$B$150,D90,الدخول!$O$3:$O$150)) -> 
A91: اسود | B91: كروشيه | C91: 4cm | D91: اسود كروشيه 4cm | E91: 359.58 | F91: 17004 | H91: =IF(E91="","",SUMIF(الدخول!$B$3:$B$150,D91,الدخول!$F$3:$F$150)+SUMIF(الدخول!$B$3:$B$150,D91,الدخول!$S$3:$S$150)+E91-SUMIF(الدخول!$B$3:$B$150,D91,الدخول!$L$3:$L$150)) -> 359.58 | I91: =IF(F91="","",SUMIF(الدخول!$B$3:$B$150,D91,الدخول!$H$3:$H$150)+SUMIF(الدخول!$B$3:$B$150,D91,الدخول!$U$3:$U$150)+F91-SUMIF(الدخول!$B$3:$B$150,D91,الدخول!$N$3:$N$150)) -> 17004 | J91: =IF(G91="","",SUMIF(الدخول!$B$3:$B$150,D91,الدخول!$I$3:$I$150)+SUMIF(الدخول!$B$3:$B$150,D91,الدخول!$V$3:$V$150)+G91-SUMIF(الدخول!$B$3:$B$150,D91,الدخول!$O$3:$O$150)) -> 
A92: اسود | B92: كروشيه | C92: 4m | D92: اسود كروشيه 4m | H92: =IF(E92="","",SUMIF(الدخول!$B$3:$B$150,D92,الدخول!$F$3:$F$150)+SUMIF(الدخول!$B$3:$B$150,D92,الدخول!$S$3:$S$150)+E92-SUMIF(الدخول!$B$3:$B$150,D92,الدخول!$L$3:$L$150)) ->  | I92: =IF(F92="","",SUMIF(الدخول!$B$3:$B$150,D92,الدخول!$H$3:$H$150)+SUMIF(الدخول!$B$3:$B$150,D92,الدخول!$U$3:$U$150)+F92-SUMIF(الدخول!$B$3:$B$150,D92,الدخول!$N$3:$N$150)) ->  | J92: =IF(G92="","",SUMIF(الدخول!$B$3:$B$150,D92,الدخول!$I$3:$I$150)+SUMIF(الدخول!$B$3:$B$150,D92,الدخول!$V$3:$V$150)+G92-SUMIF(الدخول!$B$3:$B$150,D92,الدخول!$O$3:$O$150)) -> 
A93: اسود | B93: كروشيه | C93: 5.8cm | D93: اسود كروشيه 5.8cm | E93: 101.42 | F93: 3751 | H93: =IF(E93="","",SUMIF(الدخول!$B$3:$B$150,D93,الدخول!$F$3:$F$150)+SUMIF(الدخول!$B$3:$B$150,D93,الدخول!$S$3:$S$150)+E93-SUMIF(الدخول!$B$3:$B$150,D93,الدخول!$L$3:$L$150)) -> 101.42 | I93: =IF(F93="","",SUMIF(الدخول!$B$3:$B$150,D93,الدخول!$H$3:$H$150)+SUMIF(الدخول!$B$3:$B$150,D93,الدخول!$U$3:$U$150)+F93-SUMIF(الدخول!$B$3:$B$150,D93,الدخول!$N$3:$N$150)) -> 3751 | J93: =IF(G93="","",SUMIF(الدخول!$B$3:$B$150,D93,الدخول!$I$3:$I$150)+SUMIF(الدخول!$B$3:$B$150,D93,الدخول!$V$3:$V$150)+G93-SUMIF(الدخول!$B$3:$B$150,D93,الدخول!$O$3:$O$150)) -> 
A94: اسود | B94: كروشيه | C94: 8m | D94: اسود كروشيه 8m | H94: =IF(E94="","",SUMIF(الدخول!$B$3:$B$150,D94,الدخول!$F$3:$F$150)+SUMIF(الدخول!$B$3:$B$150,D94,الدخول!$S$3:$S$150)+E94-SUMIF(الدخول!$B$3:$B$150,D94,الدخول!$L$3:$L$150)) ->  | I94: =IF(F94="","",SUMIF(الدخول!$B$3:$B$150,D94,الدخول!$H$3:$H$150)+SUMIF(الدخول!$B$3:$B$150,D94,الدخول!$U$3:$U$150)+F94-SUMIF(الدخول!$B$3:$B$150,D94,الدخول!$N$3:$N$150)) ->  | J94: =IF(G94="","",SUMIF(الدخول!$B$3:$B$150,D94,الدخول!$I$3:$I$150)+SUMIF(الدخول!$B$3:$B$150,D94,الدخول!$V$3:$V$150)+G94-SUMIF(الدخول!$B$3:$B$150,D94,الدخول!$O$3:$O$150)) -> 
A95: اسود | B95: كروشيه | C95: 8mm | D95: اسود كروشيه 8mm | E95: 11.68 | F95: 2336 | H95: =IF(E95="","",SUMIF(الدخول!$B$3:$B$150,D95,الدخول!$F$3:$F$150)+SUMIF(الدخول!$B$3:$B$150,D95,الدخول!$S$3:$S$150)+E95-SUMIF(الدخول!$B$3:$B$150,D95,الدخول!$L$3:$L$150)) -> 11.68 | I95: =IF(F95="","",SUMIF(الدخول!$B$3:$B$150,D95,الدخول!$H$3:$H$150)+SUMIF(الدخول!$B$3:$B$150,D95,الدخول!$U$3:$U$150)+F95-SUMIF(الدخول!$B$3:$B$150,D95,الدخول!$N$3:$N$150)) -> 2336 | J95: =IF(G95="","",SUMIF(الدخول!$B$3:$B$150,D95,الدخول!$I$3:$I$150)+SUMIF(الدخول!$B$3:$B$150,D95,الدخول!$V$3:$V$150)+G95-SUMIF(الدخول!$B$3:$B$150,D95,الدخول!$O$3:$O$150)) -> 
A96: اسود | B96: كورد | C96: 1cm | D96: اسود كورد 1cm | H96: =IF(E96="","",SUMIF(الدخول!$B$3:$B$150,D96,الدخول!$F$3:$F$150)+SUMIF(الدخول!$B$3:$B$150,D96,الدخول!$S$3:$S$150)+E96-SUMIF(الدخول!$B$3:$B$150,D96,الدخول!$L$3:$L$150)) ->  | I96: =IF(F96="","",SUMIF(الدخول!$B$3:$B$150,D96,الدخول!$H$3:$H$150)+SUMIF(الدخول!$B$3:$B$150,D96,الدخول!$U$3:$U$150)+F96-SUMIF(الدخول!$B$3:$B$150,D96,الدخول!$N$3:$N$150)) ->  | J96: =IF(G96="","",SUMIF(الدخول!$B$3:$B$150,D96,الدخول!$I$3:$I$150)+SUMIF(الدخول!$B$3:$B$150,D96,الدخول!$V$3:$V$150)+G96-SUMIF(الدخول!$B$3:$B$150,D96,الدخول!$O$3:$O$150)) -> 
A97: اسود | B97: كورد | C97: مبروم | D97: اسود كورد مبروم | H97: =IF(E97="","",SUMIF(الدخول!$B$3:$B$150,D97,الدخول!$F$3:$F$150)+SUMIF(الدخول!$B$3:$B$150,D97,الدخول!$S$3:$S$150)+E97-SUMIF(الدخول!$B$3:$B$150,D97,الدخول!$L$3:$L$150)) ->  | I97: =IF(F97="","",SUMIF(الدخول!$B$3:$B$150,D97,الدخول!$H$3:$H$150)+SUMIF(الدخول!$B$3:$B$150,D97,الدخول!$U$3:$U$150)+F97-SUMIF(الدخول!$B$3:$B$150,D97,الدخول!$N$3:$N$150)) ->  | J97: =IF(G97="","",SUMIF(الدخول!$B$3:$B$150,D97,الدخول!$I$3:$I$150)+SUMIF(الدخول!$B$3:$B$150,D97,الدخول!$V$3:$V$150)+G97-SUMIF(الدخول!$B$3:$B$150,D97,الدخول!$O$3:$O$150)) -> 
A98: اسود | B98: كورد | C98: مبطط | D98: اسود كورد مبطط | H98: =IF(E98="","",SUMIF(الدخول!$B$3:$B$150,D98,الدخول!$F$3:$F$150)+SUMIF(الدخول!$B$3:$B$150,D98,الدخول!$S$3:$S$150)+E98-SUMIF(الدخول!$B$3:$B$150,D98,الدخول!$L$3:$L$150)) ->  | I98: =IF(F98="","",SUMIF(الدخول!$B$3:$B$150,D98,الدخول!$H$3:$H$150)+SUMIF(الدخول!$B$3:$B$150,D98,الدخول!$U$3:$U$150)+F98-SUMIF(الدخول!$B$3:$B$150,D98,الدخول!$N$3:$N$150)) ->  | J98: =IF(G98="","",SUMIF(الدخول!$B$3:$B$150,D98,الدخول!$I$3:$I$150)+SUMIF(الدخول!$B$3:$B$150,D98,الدخول!$V$3:$V$150)+G98-SUMIF(الدخول!$B$3:$B$150,D98,الدخول!$O$3:$O$150)) -> 
A99: اسود | B99: ووفين ساندوتش | C99: 1.5cm | D99: اسود ووفين ساندوتش 1.5cm | H99: =IF(E99="","",SUMIF(الدخول!$B$3:$B$150,D99,الدخول!$F$3:$F$150)+SUMIF(الدخول!$B$3:$B$150,D99,الدخول!$S$3:$S$150)+E99-SUMIF(الدخول!$B$3:$B$150,D99,الدخول!$L$3:$L$150)) ->  | I99: =IF(F99="","",SUMIF(الدخول!$B$3:$B$150,D99,الدخول!$H$3:$H$150)+SUMIF(الدخول!$B$3:$B$150,D99,الدخول!$U$3:$U$150)+F99-SUMIF(الدخول!$B$3:$B$150,D99,الدخول!$N$3:$N$150)) ->  | J99: =IF(G99="","",SUMIF(الدخول!$B$3:$B$150,D99,الدخول!$I$3:$I$150)+SUMIF(الدخول!$B$3:$B$150,D99,الدخول!$V$3:$V$150)+G99-SUMIF(الدخول!$B$3:$B$150,D99,الدخول!$O$3:$O$150)) -> 
A100: اسود | B100: ووفين ساندوتش | C100: 1.7cm | D100: اسود ووفين ساندوتش 1.7cm | H100: =IF(E100="","",SUMIF(الدخول!$B$3:$B$150,D100,الدخول!$F$3:$F$150)+SUMIF(الدخول!$B$3:$B$150,D100,الدخول!$S$3:$S$150)+E100-SUMIF(الدخول!$B$3:$B$150,D100,الدخول!$L$3:$L$150)) ->  | I100: =IF(F100="","",SUMIF(الدخول!$B$3:$B$150,D100,الدخول!$H$3:$H$150)+SUMIF(الدخول!$B$3:$B$150,D100,الدخول!$U$3:$U$150)+F100-SUMIF(الدخول!$B$3:$B$150,D100,الدخول!$N$3:$N$150)) ->  | J100: =IF(G100="","",SUMIF(الدخول!$B$3:$B$150,D100,الدخول!$I$3:$I$150)+SUMIF(الدخول!$B$3:$B$150,D100,الدخول!$V$3:$V$150)+G100-SUMIF(الدخول!$B$3:$B$150,D100,الدخول!$O$3:$O$150)) -> 
A101: اسود | B101: ووفين ساندوتش | C101: 1.8cm | D101: اسود ووفين ساندوتش 1.8cm | H101: =IF(E101="","",SUMIF(الدخول!$B$3:$B$150,D101,الدخول!$F$3:$F$150)+SUMIF(الدخول!$B$3:$B$150,D101,الدخول!$S$3:$S$150)+E101-SUMIF(الدخول!$B$3:$B$150,D101,الدخول!$L$3:$L$150)) ->  | I101: =IF(F101="","",SUMIF(الدخول!$B$3:$B$150,D101,الدخول!$H$3:$H$150)+SUMIF(الدخول!$B$3:$B$150,D101,الدخول!$U$3:$U$150)+F101-SUMIF(الدخول!$B$3:$B$150,D101,الدخول!$N$3:$N$150)) ->  | J101: =IF(G101="","",SUMIF(الدخول!$B$3:$B$150,D101,الدخول!$I$3:$I$150)+SUMIF(الدخول!$B$3:$B$150,D101,الدخول!$V$3:$V$150)+G101-SUMIF(الدخول!$B$3:$B$150,D101,الدخول!$O$3:$O$150)) -> 
A102: اسود | B102: ووفين ساندوتش | C102: 2cm | D102: اسود ووفين ساندوتش 2cm | H102: =IF(E102="","",SUMIF(الدخول!$B$3:$B$150,D102,الدخول!$F$3:$F$150)+SUMIF(الدخول!$B$3:$B$150,D102,الدخول!$S$3:$S$150)+E102-SUMIF(الدخول!$B$3:$B$150,D102,الدخول!$L$3:$L$150)) ->  | I102: =IF(F102="","",SUMIF(الدخول!$B$3:$B$150,D102,الدخول!$H$3:$H$150)+SUMIF(الدخول!$B$3:$B$150,D102,الدخول!$U$3:$U$150)+F102-SUMIF(الدخول!$B$3:$B$150,D102,الدخول!$N$3:$N$150)) ->  | J102: =IF(G102="","",SUMIF(الدخول!$B$3:$B$150,D102,الدخول!$I$3:$I$150)+SUMIF(الدخول!$B$3:$B$150,D102,الدخول!$V$3:$V$150)+G102-SUMIF(الدخول!$B$3:$B$150,D102,الدخول!$O$3:$O$150)) -> 
A103: اسود | B103: كروشيه | C103: 5.8cm | D103: اسود كروشيه 5.8cm | H103: =IF(E103="","",SUMIF(الدخول!$B$3:$B$150,D103,الدخول!$F$3:$F$150)+SUMIF(الدخول!$B$3:$B$150,D103,الدخول!$S$3:$S$150)+E103-SUMIF(الدخول!$B$3:$B$150,D103,الدخول!$L$3:$L$150)) ->  | I103: =IF(F103="","",SUMIF(الدخول!$B$3:$B$150,D103,الدخول!$H$3:$H$150)+SUMIF(الدخول!$B$3:$B$150,D103,الدخول!$U$3:$U$150)+F103-SUMIF(الدخول!$B$3:$B$150,D103,الدخول!$N$3:$N$150)) ->  | J103: =IF(G103="","",SUMIF(الدخول!$B$3:$B$150,D103,الدخول!$I$3:$I$150)+SUMIF(الدخول!$B$3:$B$150,D103,الدخول!$V$3:$V$150)+G103-SUMIF(الدخول!$B$3:$B$150,D103,الدخول!$O$3:$O$150)) -> 
A104: اسود 510 | B104: كروشيه | C104: 2.3cm | D104: اسود 510 كروشيه 2.3cm | E104: 30.56 | F104: 2933 | H104: =IF(E104="","",SUMIF(الدخول!$B$3:$B$150,D104,الدخول!$F$3:$F$150)+SUMIF(الدخول!$B$3:$B$150,D104,الدخول!$S$3:$S$150)+E104-SUMIF(الدخول!$B$3:$B$150,D104,الدخول!$L$3:$L$150)) -> 30.56 | I104: =IF(F104="","",SUMIF(الدخول!$B$3:$B$150,D104,الدخول!$H$3:$H$150)+SUMIF(الدخول!$B$3:$B$150,D104,الدخول!$U$3:$U$150)+F104-SUMIF(الدخول!$B$3:$B$150,D104,الدخول!$N$3:$N$150)) -> 2933 | J104: =IF(G104="","",SUMIF(الدخول!$B$3:$B$150,D104,الدخول!$I$3:$I$150)+SUMIF(الدخول!$B$3:$B$150,D104,الدخول!$V$3:$V$150)+G104-SUMIF(الدخول!$B$3:$B$150,D104,الدخول!$O$3:$O$150)) -> 
A105: اسود 510 | B105: كروشيه | C105: 2.5cm | D105: اسود 510 كروشيه 2.5cm | E105: 9.22 | F105: 625 | H105: =IF(E105="","",SUMIF(الدخول!$B$3:$B$150,D105,الدخول!$F$3:$F$150)+SUMIF(الدخول!$B$3:$B$150,D105,الدخول!$S$3:$S$150)+E105-SUMIF(الدخول!$B$3:$B$150,D105,الدخول!$L$3:$L$150)) -> 9.22 | I105: =IF(F105="","",SUMIF(الدخول!$B$3:$B$150,D105,الدخول!$H$3:$H$150)+SUMIF(الدخول!$B$3:$B$150,D105,الدخول!$U$3:$U$150)+F105-SUMIF(الدخول!$B$3:$B$150,D105,الدخول!$N$3:$N$150)) -> 625 | J105: =IF(G105="","",SUMIF(الدخول!$B$3:$B$150,D105,الدخول!$I$3:$I$150)+SUMIF(الدخول!$B$3:$B$150,D105,الدخول!$V$3:$V$150)+G105-SUMIF(الدخول!$B$3:$B$150,D105,الدخول!$O$3:$O$150)) -> 
A106: اسود 510 | B106: كروشيه | C106: 3 cm | D106: اسود 510 كروشيه 3 cm | E106: 46.1 | F106: 3086 | H106: =IF(E106="","",SUMIF(الدخول!$B$3:$B$150,D106,الدخول!$F$3:$F$150)+SUMIF(الدخول!$B$3:$B$150,D106,الدخول!$S$3:$S$150)+E106-SUMIF(الدخول!$B$3:$B$150,D106,الدخول!$L$3:$L$150)) -> 46.1 | I106: =IF(F106="","",SUMIF(الدخول!$B$3:$B$150,D106,الدخول!$H$3:$H$150)+SUMIF(الدخول!$B$3:$B$150,D106,الدخول!$U$3:$U$150)+F106-SUMIF(الدخول!$B$3:$B$150,D106,الدخول!$N$3:$N$150)) -> 3086 | J106: =IF(G106="","",SUMIF(الدخول!$B$3:$B$150,D106,الدخول!$I$3:$I$150)+SUMIF(الدخول!$B$3:$B$150,D106,الدخول!$V$3:$V$150)+G106-SUMIF(الدخول!$B$3:$B$150,D106,الدخول!$O$3:$O$150)) -> 
A107: اسود 510 | B107: كروشيه | C107: 4.5cm | D107: اسود 510 كروشيه 4.5cm | E107: 46.1 | F107: 1970 | H107: =IF(E107="","",SUMIF(الدخول!$B$3:$B$150,D107,الدخول!$F$3:$F$150)+SUMIF(الدخول!$B$3:$B$150,D107,الدخول!$S$3:$S$150)+E107-SUMIF(الدخول!$B$3:$B$150,D107,الدخول!$L$3:$L$150)) -> 46.1 | I107: =IF(F107="","",SUMIF(الدخول!$B$3:$B$150,D107,الدخول!$H$3:$H$150)+SUMIF(الدخول!$B$3:$B$150,D107,الدخول!$U$3:$U$150)+F107-SUMIF(الدخول!$B$3:$B$150,D107,الدخول!$N$3:$N$150)) -> 1970 | J107: =IF(G107="","",SUMIF(الدخول!$B$3:$B$150,D107,الدخول!$I$3:$I$150)+SUMIF(الدخول!$B$3:$B$150,D107,الدخول!$V$3:$V$150)+G107-SUMIF(الدخول!$B$3:$B$150,D107,الدخول!$O$3:$O$150)) -> 
A108: اسود 510 | B108: كروشيه | C108: 4cm | D108: اسود 510 كروشيه 4cm | E108: 73.76 | F108: 3816 | H108: =IF(E108="","",SUMIF(الدخول!$B$3:$B$150,D108,الدخول!$F$3:$F$150)+SUMIF(الدخول!$B$3:$B$150,D108,الدخول!$S$3:$S$150)+E108-SUMIF(الدخول!$B$3:$B$150,D108,الدخول!$L$3:$L$150)) -> 73.76 | I108: =IF(F108="","",SUMIF(الدخول!$B$3:$B$150,D108,الدخول!$H$3:$H$150)+SUMIF(الدخول!$B$3:$B$150,D108,الدخول!$U$3:$U$150)+F108-SUMIF(الدخول!$B$3:$B$150,D108,الدخول!$N$3:$N$150)) -> 3816 | J108: =IF(G108="","",SUMIF(الدخول!$B$3:$B$150,D108,الدخول!$I$3:$I$150)+SUMIF(الدخول!$B$3:$B$150,D108,الدخول!$V$3:$V$150)+G108-SUMIF(الدخول!$B$3:$B$150,D108,الدخول!$O$3:$O$150)) -> 
A109: اسود 510 | B109: كروشيه | C109: 5.2cm | D109: اسود 510 كروشيه 5.2cm | E109: 9220 | F109: 416 | H109: =IF(E109="","",SUMIF(الدخول!$B$3:$B$150,D109,الدخول!$F$3:$F$150)+SUMIF(الدخول!$B$3:$B$150,D109,الدخول!$S$3:$S$150)+E109-SUMIF(الدخول!$B$3:$B$150,D109,الدخول!$L$3:$L$150)) -> 9220 | I109: =IF(F109="","",SUMIF(الدخول!$B$3:$B$150,D109,الدخول!$H$3:$H$150)+SUMIF(الدخول!$B$3:$B$150,D109,الدخول!$U$3:$U$150)+F109-SUMIF(الدخول!$B$3:$B$150,D109,الدخول!$N$3:$N$150)) -> 416 | J109: =IF(G109="","",SUMIF(الدخول!$B$3:$B$150,D109,الدخول!$I$3:$I$150)+SUMIF(الدخول!$B$3:$B$150,D109,الدخول!$V$3:$V$150)+G109-SUMIF(الدخول!$B$3:$B$150,D109,الدخول!$O$3:$O$150)) -> 
A110: اسود 510 | B110: كروشيه | C110: 5.5cm | D110: اسود 510 كروشيه 5.5cm | E110: 27.66 | F110: 1023 | H110: =IF(E110="","",SUMIF(الدخول!$B$3:$B$150,D110,الدخول!$F$3:$F$150)+SUMIF(الدخول!$B$3:$B$150,D110,الدخول!$S$3:$S$150)+E110-SUMIF(الدخول!$B$3:$B$150,D110,الدخول!$L$3:$L$150)) -> 27.66 | I110: =IF(F110="","",SUMIF(الدخول!$B$3:$B$150,D110,الدخول!$H$3:$H$150)+SUMIF(الدخول!$B$3:$B$150,D110,الدخول!$U$3:$U$150)+F110-SUMIF(الدخول!$B$3:$B$150,D110,الدخول!$N$3:$N$150)) -> 1023 | J110: =IF(G110="","",SUMIF(الدخول!$B$3:$B$150,D110,الدخول!$I$3:$I$150)+SUMIF(الدخول!$B$3:$B$150,D110,الدخول!$V$3:$V$150)+G110-SUMIF(الدخول!$B$3:$B$150,D110,الدخول!$O$3:$O$150)) -> 
A111: اسود 611.2 | B111: كروشيه | C111: 2cm | D111: اسود 611.2 كروشيه 2cm | E111: 519.52 | F111: 41561.6 | H111: =IF(E111="","",SUMIF(الدخول!$B$3:$B$150,D111,الدخول!$F$3:$F$150)+SUMIF(الدخول!$B$3:$B$150,D111,الدخول!$S$3:$S$150)+E111-SUMIF(الدخول!$B$3:$B$150,D111,الدخول!$L$3:$L$150)) -> 519.52 | I111: =IF(F111="","",SUMIF(الدخول!$B$3:$B$150,D111,الدخول!$H$3:$H$150)+SUMIF(الدخول!$B$3:$B$150,D111,الدخول!$U$3:$U$150)+F111-SUMIF(الدخول!$B$3:$B$150,D111,الدخول!$N$3:$N$150)) -> 41561.6 | J111: =IF(G111="","",SUMIF(الدخول!$B$3:$B$150,D111,الدخول!$I$3:$I$150)+SUMIF(الدخول!$B$3:$B$150,D111,الدخول!$V$3:$V$150)+G111-SUMIF(الدخول!$B$3:$B$150,D111,الدخول!$O$3:$O$150)) -> 
A112: اسود B-IMG-13 | B112: كروشيه | C112: 1.3cm | D112: اسود B-IMG-13 كروشيه 1.3cm | E112: 382 | F112: 37950 | H112: =IF(E112="","",SUMIF(الدخول!$B$3:$B$150,D112,الدخول!$F$3:$F$150)+SUMIF(الدخول!$B$3:$B$150,D112,الدخول!$S$3:$S$150)+E112-SUMIF(الدخول!$B$3:$B$150,D112,الدخول!$L$3:$L$150)) -> 382 | I112: =IF(F112="","",SUMIF(الدخول!$B$3:$B$150,D112,الدخول!$H$3:$H$150)+SUMIF(الدخول!$B$3:$B$150,D112,الدخول!$U$3:$U$150)+F112-SUMIF(الدخول!$B$3:$B$150,D112,الدخول!$N$3:$N$150)) -> 37950 | J112: =IF(G112="","",SUMIF(الدخول!$B$3:$B$150,D112,الدخول!$I$3:$I$150)+SUMIF(الدخول!$B$3:$B$150,D112,الدخول!$V$3:$V$150)+G112-SUMIF(الدخول!$B$3:$B$150,D112,الدخول!$O$3:$O$150)) -> 
A113: اسود CO-IMG-55 | B113: كروشيه | C113: 5.5cm | D113: اسود CO-IMG-55 كروشيه 5.5cm | F113: 13113 | H113: =IF(E113="","",SUMIF(الدخول!$B$3:$B$150,D113,الدخول!$F$3:$F$150)+SUMIF(الدخول!$B$3:$B$150,D113,الدخول!$S$3:$S$150)+E113-SUMIF(الدخول!$B$3:$B$150,D113,الدخول!$L$3:$L$150)) ->  | I113: =IF(F113="","",SUMIF(الدخول!$B$3:$B$150,D113,الدخول!$H$3:$H$150)+SUMIF(الدخول!$B$3:$B$150,D113,الدخول!$U$3:$U$150)+F113-SUMIF(الدخول!$B$3:$B$150,D113,الدخول!$N$3:$N$150)) -> 13113 | J113: =IF(G113="","",SUMIF(الدخول!$B$3:$B$150,D113,الدخول!$I$3:$I$150)+SUMIF(الدخول!$B$3:$B$150,D113,الدخول!$V$3:$V$150)+G113-SUMIF(الدخول!$B$3:$B$150,D113,الدخول!$O$3:$O$150)) -> 
A114: اسود FB-IMG-50 | B114: كروشيه | C114: 5cm | D114: اسود FB-IMG-50 كروشيه 5cm | F114: 7035 | H114: =IF(E114="","",SUMIF(الدخول!$B$3:$B$150,D114,الدخول!$F$3:$F$150)+SUMIF(الدخول!$B$3:$B$150,D114,الدخول!$S$3:$S$150)+E114-SUMIF(الدخول!$B$3:$B$150,D114,الدخول!$L$3:$L$150)) ->  | I114: =IF(F114="","",SUMIF(الدخول!$B$3:$B$150,D114,الدخول!$H$3:$H$150)+SUMIF(الدخول!$B$3:$B$150,D114,الدخول!$U$3:$U$150)+F114-SUMIF(الدخول!$B$3:$B$150,D114,الدخول!$N$3:$N$150)) -> 7035 | J114: =IF(G114="","",SUMIF(الدخول!$B$3:$B$150,D114,الدخول!$I$3:$I$150)+SUMIF(الدخول!$B$3:$B$150,D114,الدخول!$V$3:$V$150)+G114-SUMIF(الدخول!$B$3:$B$150,D114,الدخول!$O$3:$O$150)) -> 
A115: اسود FB-IMG-55 | B115: كروشيه | C115: 5.5cm | D115: اسود FB-IMG-55 كروشيه 5.5cm | F115: 85430.08 | H115: =IF(E115="","",SUMIF(الدخول!$B$3:$B$150,D115,الدخول!$F$3:$F$150)+SUMIF(الدخول!$B$3:$B$150,D115,الدخول!$S$3:$S$150)+E115-SUMIF(الدخول!$B$3:$B$150,D115,الدخول!$L$3:$L$150)) ->  | I115: =IF(F115="","",SUMIF(الدخول!$B$3:$B$150,D115,الدخول!$H$3:$H$150)+SUMIF(الدخول!$B$3:$B$150,D115,الدخول!$U$3:$U$150)+F115-SUMIF(الدخول!$B$3:$B$150,D115,الدخول!$N$3:$N$150)) -> 85430.08 | J115: =IF(G115="","",SUMIF(الدخول!$B$3:$B$150,D115,الدخول!$I$3:$I$150)+SUMIF(الدخول!$B$3:$B$150,D115,الدخول!$V$3:$V$150)+G115-SUMIF(الدخول!$B$3:$B$150,D115,الدخول!$O$3:$O$150)) -> 
A116: اسود JA-IMG-45 | B116: كروشيه | C116: 4.5cm | D116: اسود JA-IMG-45 كروشيه 4.5cm | E116: 922 | F116: 36800 | H116: =IF(E116="","",SUMIF(الدخول!$B$3:$B$150,D116,الدخول!$F$3:$F$150)+SUMIF(الدخول!$B$3:$B$150,D116,الدخول!$S$3:$S$150)+E116-SUMIF(الدخول!$B$3:$B$150,D116,الدخول!$L$3:$L$150)) -> 922 | I116: =IF(F116="","",SUMIF(الدخول!$B$3:$B$150,D116,الدخول!$H$3:$H$150)+SUMIF(الدخول!$B$3:$B$150,D116,الدخول!$U$3:$U$150)+F116-SUMIF(الدخول!$B$3:$B$150,D116,الدخول!$N$3:$N$150)) -> 36800 | J116: =IF(G116="","",SUMIF(الدخول!$B$3:$B$150,D116,الدخول!$I$3:$I$150)+SUMIF(الدخول!$B$3:$B$150,D116,الدخول!$V$3:$V$150)+G116-SUMIF(الدخول!$B$3:$B$150,D116,الدخول!$O$3:$O$150)) -> 
A117: اسود JA-IMG-50 | B117: كروشيه | C117: 5cm | D117: اسود JA-IMG-50 كروشيه 5cm | E117: 129.08 | F117: 4690 | H117: =IF(E117="","",SUMIF(الدخول!$B$3:$B$150,D117,الدخول!$F$3:$F$150)+SUMIF(الدخول!$B$3:$B$150,D117,الدخول!$S$3:$S$150)+E117-SUMIF(الدخول!$B$3:$B$150,D117,الدخول!$L$3:$L$150)) -> 129.08 | I117: =IF(F117="","",SUMIF(الدخول!$B$3:$B$150,D117,الدخول!$H$3:$H$150)+SUMIF(الدخول!$B$3:$B$150,D117,الدخول!$U$3:$U$150)+F117-SUMIF(الدخول!$B$3:$B$150,D117,الدخول!$N$3:$N$150)) -> 4690 | J117: =IF(G117="","",SUMIF(الدخول!$B$3:$B$150,D117,الدخول!$I$3:$I$150)+SUMIF(الدخول!$B$3:$B$150,D117,الدخول!$V$3:$V$150)+G117-SUMIF(الدخول!$B$3:$B$150,D117,الدخول!$O$3:$O$150)) -> 
A118: اسود SD-IMG-2.5 | B118: كروشيه | C118: 2.5cm | D118: اسود SD-IMG-2.5 كروشيه 2.5cm | F118: 7761.9 | H118: =IF(E118="","",SUMIF(الدخول!$B$3:$B$150,D118,الدخول!$F$3:$F$150)+SUMIF(الدخول!$B$3:$B$150,D118,الدخول!$S$3:$S$150)+E118-SUMIF(الدخول!$B$3:$B$150,D118,الدخول!$L$3:$L$150)) ->  | I118: =IF(F118="","",SUMIF(الدخول!$B$3:$B$150,D118,الدخول!$H$3:$H$150)+SUMIF(الدخول!$B$3:$B$150,D118,الدخول!$U$3:$U$150)+F118-SUMIF(الدخول!$B$3:$B$150,D118,الدخول!$N$3:$N$150)) -> 7761.9 | J118: =IF(G118="","",SUMIF(الدخول!$B$3:$B$150,D118,الدخول!$I$3:$I$150)+SUMIF(الدخول!$B$3:$B$150,D118,الدخول!$V$3:$V$150)+G118-SUMIF(الدخول!$B$3:$B$150,D118,الدخول!$O$3:$O$150)) -> 
A119: اسود SD-IMG-35 | B119: كروشيه | C119: 4cm | D119: اسود SD-IMG-35 كروشيه 4cm | E119: 119.86 | F119: 4992 | H119: =IF(E119="","",SUMIF(الدخول!$B$3:$B$150,D119,الدخول!$F$3:$F$150)+SUMIF(الدخول!$B$3:$B$150,D119,الدخول!$S$3:$S$150)+E119-SUMIF(الدخول!$B$3:$B$150,D119,الدخول!$L$3:$L$150)) -> 119.86 | I119: =IF(F119="","",SUMIF(الدخول!$B$3:$B$150,D119,الدخول!$H$3:$H$150)+SUMIF(الدخول!$B$3:$B$150,D119,الدخول!$U$3:$U$150)+F119-SUMIF(الدخول!$B$3:$B$150,D119,الدخول!$N$3:$N$150)) -> 4992 | J119: =IF(G119="","",SUMIF(الدخول!$B$3:$B$150,D119,الدخول!$I$3:$I$150)+SUMIF(الدخول!$B$3:$B$150,D119,الدخول!$V$3:$V$150)+G119-SUMIF(الدخول!$B$3:$B$150,D119,الدخول!$O$3:$O$150)) -> 
A120: اسود X ابيض | B120: بايبينج | C120: 1cm | D120: اسود X ابيض بايبينج 1cm | E120: 395.3 | F120: 54793 | H120: =IF(E120="","",SUMIF(الدخول!$B$3:$B$150,D120,الدخول!$F$3:$F$150)+SUMIF(الدخول!$B$3:$B$150,D120,الدخول!$S$3:$S$150)+E120-SUMIF(الدخول!$B$3:$B$150,D120,الدخول!$L$3:$L$150)) -> 395.3 | I120: =IF(F120="","",SUMIF(الدخول!$B$3:$B$150,D120,الدخول!$H$3:$H$150)+SUMIF(الدخول!$B$3:$B$150,D120,الدخول!$U$3:$U$150)+F120-SUMIF(الدخول!$B$3:$B$150,D120,الدخول!$N$3:$N$150)) -> 54793 | J120: =IF(G120="","",SUMIF(الدخول!$B$3:$B$150,D120,الدخول!$I$3:$I$150)+SUMIF(الدخول!$B$3:$B$150,D120,الدخول!$V$3:$V$150)+G120-SUMIF(الدخول!$B$3:$B$150,D120,الدخول!$O$3:$O$150)) -> 
A121: اسود استريب | B121: كروشيه | C121: 3cm | D121: اسود استريب كروشيه 3cm | E121: 414.9 | F121: 22500 | H121: =IF(E121="","",SUMIF(الدخول!$B$3:$B$150,D121,الدخول!$F$3:$F$150)+SUMIF(الدخول!$B$3:$B$150,D121,الدخول!$S$3:$S$150)+E121-SUMIF(الدخول!$B$3:$B$150,D121,الدخول!$L$3:$L$150)) -> 414.9 | I121: =IF(F121="","",SUMIF(الدخول!$B$3:$B$150,D121,الدخول!$H$3:$H$150)+SUMIF(الدخول!$B$3:$B$150,D121,الدخول!$U$3:$U$150)+F121-SUMIF(الدخول!$B$3:$B$150,D121,الدخول!$N$3:$N$150)) -> 22500 | J121: =IF(G121="","",SUMIF(الدخول!$B$3:$B$150,D121,الدخول!$I$3:$I$150)+SUMIF(الدخول!$B$3:$B$150,D121,الدخول!$V$3:$V$150)+G121-SUMIF(الدخول!$B$3:$B$150,D121,الدخول!$O$3:$O$150)) -> 
A122: اسود فلاش | B122: كروشيه | C122: 3.5cm | D122: اسود فلاش كروشيه 3.5cm | E122: 331.92 | F122: 15084 | H122: =IF(E122="","",SUMIF(الدخول!$B$3:$B$150,D122,الدخول!$F$3:$F$150)+SUMIF(الدخول!$B$3:$B$150,D122,الدخول!$S$3:$S$150)+E122-SUMIF(الدخول!$B$3:$B$150,D122,الدخول!$L$3:$L$150)) -> 331.92 | I122: =IF(F122="","",SUMIF(الدخول!$B$3:$B$150,D122,الدخول!$H$3:$H$150)+SUMIF(الدخول!$B$3:$B$150,D122,الدخول!$U$3:$U$150)+F122-SUMIF(الدخول!$B$3:$B$150,D122,الدخول!$N$3:$N$150)) -> 15084 | J122: =IF(G122="","",SUMIF(الدخول!$B$3:$B$150,D122,الدخول!$I$3:$I$150)+SUMIF(الدخول!$B$3:$B$150,D122,الدخول!$V$3:$V$150)+G122-SUMIF(الدخول!$B$3:$B$150,D122,الدخول!$O$3:$O$150)) -> 
A123: اسود فلاش | B123: كروشيه | C123: 5.5cm | D123: اسود فلاش كروشيه 5.5cm | E123: 239.72 | F123: 7150 | H123: =IF(E123="","",SUMIF(الدخول!$B$3:$B$150,D123,الدخول!$F$3:$F$150)+SUMIF(الدخول!$B$3:$B$150,D123,الدخول!$S$3:$S$150)+E123-SUMIF(الدخول!$B$3:$B$150,D123,الدخول!$L$3:$L$150)) -> 239.72 | I123: =IF(F123="","",SUMIF(الدخول!$B$3:$B$150,D123,الدخول!$H$3:$H$150)+SUMIF(الدخول!$B$3:$B$150,D123,الدخول!$U$3:$U$150)+F123-SUMIF(الدخول!$B$3:$B$150,D123,الدخول!$N$3:$N$150)) -> 7150 | J123: =IF(G123="","",SUMIF(الدخول!$B$3:$B$150,D123,الدخول!$I$3:$I$150)+SUMIF(الدخول!$B$3:$B$150,D123,الدخول!$V$3:$V$150)+G123-SUMIF(الدخول!$B$3:$B$150,D123,الدخول!$O$3:$O$150)) -> 
A124: اسود فلاش | B124: كروشيه | C124: 5cm | D124: اسود فلاش كروشيه 5cm | E124: 101.42 | F124: 3267 | H124: =IF(E124="","",SUMIF(الدخول!$B$3:$B$150,D124,الدخول!$F$3:$F$150)+SUMIF(الدخول!$B$3:$B$150,D124,الدخول!$S$3:$S$150)+E124-SUMIF(الدخول!$B$3:$B$150,D124,الدخول!$L$3:$L$150)) -> 101.42 | I124: =IF(F124="","",SUMIF(الدخول!$B$3:$B$150,D124,الدخول!$H$3:$H$150)+SUMIF(الدخول!$B$3:$B$150,D124,الدخول!$U$3:$U$150)+F124-SUMIF(الدخول!$B$3:$B$150,D124,الدخول!$N$3:$N$150)) -> 3267 | J124: =IF(G124="","",SUMIF(الدخول!$B$3:$B$150,D124,الدخول!$I$3:$I$150)+SUMIF(الدخول!$B$3:$B$150,D124,الدخول!$V$3:$V$150)+G124-SUMIF(الدخول!$B$3:$B$150,D124,الدخول!$O$3:$O$150)) -> 
A125: اسود510 | B125: كروشيه | C125: 3.5cm | D125: اسود510 كروشيه 3.5cm | E125: 18.44 | F125: 1118 | H125: =IF(E125="","",SUMIF(الدخول!$B$3:$B$150,D125,الدخول!$F$3:$F$150)+SUMIF(الدخول!$B$3:$B$150,D125,الدخول!$S$3:$S$150)+E125-SUMIF(الدخول!$B$3:$B$150,D125,الدخول!$L$3:$L$150)) -> 18.44 | I125: =IF(F125="","",SUMIF(الدخول!$B$3:$B$150,D125,الدخول!$H$3:$H$150)+SUMIF(الدخول!$B$3:$B$150,D125,الدخول!$U$3:$U$150)+F125-SUMIF(الدخول!$B$3:$B$150,D125,الدخول!$N$3:$N$150)) -> 1118 | J125: =IF(G125="","",SUMIF(الدخول!$B$3:$B$150,D125,الدخول!$I$3:$I$150)+SUMIF(الدخول!$B$3:$B$150,D125,الدخول!$V$3:$V$150)+G125-SUMIF(الدخول!$B$3:$B$150,D125,الدخول!$O$3:$O$150)) -> 
A126: اسود510 | B126: كروشيه | C126: 5cm | D126: اسود510 كروشيه 5cm | H126: =IF(E126="","",SUMIF(الدخول!$B$3:$B$150,D126,الدخول!$F$3:$F$150)+SUMIF(الدخول!$B$3:$B$150,D126,الدخول!$S$3:$S$150)+E126-SUMIF(الدخول!$B$3:$B$150,D126,الدخول!$L$3:$L$150)) ->  | I126: =IF(F126="","",SUMIF(الدخول!$B$3:$B$150,D126,الدخول!$H$3:$H$150)+SUMIF(الدخول!$B$3:$B$150,D126,الدخول!$U$3:$U$150)+F126-SUMIF(الدخول!$B$3:$B$150,D126,الدخول!$N$3:$N$150)) ->  | J126: =IF(G126="","",SUMIF(الدخول!$B$3:$B$150,D126,الدخول!$I$3:$I$150)+SUMIF(الدخول!$B$3:$B$150,D126,الدخول!$V$3:$V$150)+G126-SUMIF(الدخول!$B$3:$B$150,D126,الدخول!$O$3:$O$150)) -> 
A127: اصفر X اخضر | B127: بايبينج | C127: 1cm | D127: اصفر X اخضر بايبينج 1cm | E127: 5.4 | F127: 1080 | H127: =IF(E127="","",SUMIF(الدخول!$B$3:$B$150,D127,الدخول!$F$3:$F$150)+SUMIF(الدخول!$B$3:$B$150,D127,الدخول!$S$3:$S$150)+E127-SUMIF(الدخول!$B$3:$B$150,D127,الدخول!$L$3:$L$150)) -> 5.4 | I127: =IF(F127="","",SUMIF(الدخول!$B$3:$B$150,D127,الدخول!$H$3:$H$150)+SUMIF(الدخول!$B$3:$B$150,D127,الدخول!$U$3:$U$150)+F127-SUMIF(الدخول!$B$3:$B$150,D127,الدخول!$N$3:$N$150)) -> 1080 | J127: =IF(G127="","",SUMIF(الدخول!$B$3:$B$150,D127,الدخول!$I$3:$I$150)+SUMIF(الدخول!$B$3:$B$150,D127,الدخول!$V$3:$V$150)+G127-SUMIF(الدخول!$B$3:$B$150,D127,الدخول!$O$3:$O$150)) -> 
A128: اصفر X زيتي | B128: بايبينج | C128: 1cm | D128: اصفر X زيتي بايبينج 1cm | E128: 67.9 | F128: 13580 | H128: =IF(E128="","",SUMIF(الدخول!$B$3:$B$150,D128,الدخول!$F$3:$F$150)+SUMIF(الدخول!$B$3:$B$150,D128,الدخول!$S$3:$S$150)+E128-SUMIF(الدخول!$B$3:$B$150,D128,الدخول!$L$3:$L$150)) -> 67.9 | I128: =IF(F128="","",SUMIF(الدخول!$B$3:$B$150,D128,الدخول!$H$3:$H$150)+SUMIF(الدخول!$B$3:$B$150,D128,الدخول!$U$3:$U$150)+F128-SUMIF(الدخول!$B$3:$B$150,D128,الدخول!$N$3:$N$150)) -> 13580 | J128: =IF(G128="","",SUMIF(الدخول!$B$3:$B$150,D128,الدخول!$I$3:$I$150)+SUMIF(الدخول!$B$3:$B$150,D128,الدخول!$V$3:$V$150)+G128-SUMIF(الدخول!$B$3:$B$150,D128,الدخول!$O$3:$O$150)) -> 
A129: الالوان | B129: كورد | C129: 1.2cm | D129: الالوان كورد 1.2cm | H129: =IF(E129="","",SUMIF(الدخول!$B$3:$B$150,D129,الدخول!$F$3:$F$150)+SUMIF(الدخول!$B$3:$B$150,D129,الدخول!$S$3:$S$150)+E129-SUMIF(الدخول!$B$3:$B$150,D129,الدخول!$L$3:$L$150)) ->  | I129: =IF(F129="","",SUMIF(الدخول!$B$3:$B$150,D129,الدخول!$H$3:$H$150)+SUMIF(الدخول!$B$3:$B$150,D129,الدخول!$U$3:$U$150)+F129-SUMIF(الدخول!$B$3:$B$150,D129,الدخول!$N$3:$N$150)) ->  | J129: =IF(G129="","",SUMIF(الدخول!$B$3:$B$150,D129,الدخول!$I$3:$I$150)+SUMIF(الدخول!$B$3:$B$150,D129,الدخول!$V$3:$V$150)+G129-SUMIF(الدخول!$B$3:$B$150,D129,الدخول!$O$3:$O$150)) -> 
A130: الوان | B130: فيستون | C130: 1cm | D130: =A130&" "&B130&" "&C130 -> الوان فيستون 1cm | E130: 190 | H130: =IF(E130="","",SUMIF(الدخول!$B$3:$B$150,D130,الدخول!$F$3:$F$150)+SUMIF(الدخول!$B$3:$B$150,D130,الدخول!$S$3:$S$150)+E130-SUMIF(الدخول!$B$3:$B$150,D130,الدخول!$L$3:$L$150)) -> 190 | I130: =IF(F130="","",SUMIF(الدخول!$B$3:$B$150,D130,الدخول!$H$3:$H$150)+SUMIF(الدخول!$B$3:$B$150,D130,الدخول!$U$3:$U$150)+F130-SUMIF(الدخول!$B$3:$B$150,D130,الدخول!$N$3:$N$150)) ->  | J130: =IF(G130="","",SUMIF(الدخول!$B$3:$B$150,D130,الدخول!$I$3:$I$150)+SUMIF(الدخول!$B$3:$B$150,D130,الدخول!$V$3:$V$150)+G130-SUMIF(الدخول!$B$3:$B$150,D130,الدخول!$O$3:$O$150)) -> 
A131: اورنج | B131: كورد | C131: 1.2cm | D131: اورنج كورد 1.2cm | H131: =IF(E131="","",SUMIF(الدخول!$B$3:$B$150,D131,الدخول!$F$3:$F$150)+SUMIF(الدخول!$B$3:$B$150,D131,الدخول!$S$3:$S$150)+E131-SUMIF(الدخول!$B$3:$B$150,D131,الدخول!$L$3:$L$150)) ->  | I131: =IF(F131="","",SUMIF(الدخول!$B$3:$B$150,D131,الدخول!$H$3:$H$150)+SUMIF(الدخول!$B$3:$B$150,D131,الدخول!$U$3:$U$150)+F131-SUMIF(الدخول!$B$3:$B$150,D131,الدخول!$N$3:$N$150)) ->  | J131: =IF(G131="","",SUMIF(الدخول!$B$3:$B$150,D131,الدخول!$I$3:$I$150)+SUMIF(الدخول!$B$3:$B$150,D131,الدخول!$V$3:$V$150)+G131-SUMIF(الدخول!$B$3:$B$150,D131,الدخول!$O$3:$O$150)) -> 
A132: اورنح | B132: كورد | C132: مبطط | D132: اورنح كورد مبطط | H132: =IF(E132="","",SUMIF(الدخول!$B$3:$B$150,D132,الدخول!$F$3:$F$150)+SUMIF(الدخول!$B$3:$B$150,D132,الدخول!$S$3:$S$150)+E132-SUMIF(الدخول!$B$3:$B$150,D132,الدخول!$L$3:$L$150)) ->  | I132: =IF(F132="","",SUMIF(الدخول!$B$3:$B$150,D132,الدخول!$H$3:$H$150)+SUMIF(الدخول!$B$3:$B$150,D132,الدخول!$U$3:$U$150)+F132-SUMIF(الدخول!$B$3:$B$150,D132,الدخول!$N$3:$N$150)) ->  | J132: =IF(G132="","",SUMIF(الدخول!$B$3:$B$150,D132,الدخول!$I$3:$I$150)+SUMIF(الدخول!$B$3:$B$150,D132,الدخول!$V$3:$V$150)+G132-SUMIF(الدخول!$B$3:$B$150,D132,الدخول!$O$3:$O$150)) -> 
A133: بنك X اسود | B133: بايبينج | C133: 1cm | D133: بنك X اسود بايبينج 1cm | E133: 35.9 | F133: 5980 | H133: =IF(E133="","",SUMIF(الدخول!$B$3:$B$150,D133,الدخول!$F$3:$F$150)+SUMIF(الدخول!$B$3:$B$150,D133,الدخول!$S$3:$S$150)+E133-SUMIF(الدخول!$B$3:$B$150,D133,الدخول!$L$3:$L$150)) -> 35.9 | I133: =IF(F133="","",SUMIF(الدخول!$B$3:$B$150,D133,الدخول!$H$3:$H$150)+SUMIF(الدخول!$B$3:$B$150,D133,الدخول!$U$3:$U$150)+F133-SUMIF(الدخول!$B$3:$B$150,D133,الدخول!$N$3:$N$150)) -> 5980 | J133: =IF(G133="","",SUMIF(الدخول!$B$3:$B$150,D133,الدخول!$I$3:$I$150)+SUMIF(الدخول!$B$3:$B$150,D133,الدخول!$V$3:$V$150)+G133-SUMIF(الدخول!$B$3:$B$150,D133,الدخول!$O$3:$O$150)) -> 
A134: بنك X زيتي | B134: بايبينج | C134: 1cm | D134: بنك X زيتي بايبينج 1cm | E134: 14.11 | F134: 2820 | H134: =IF(E134="","",SUMIF(الدخول!$B$3:$B$150,D134,الدخول!$F$3:$F$150)+SUMIF(الدخول!$B$3:$B$150,D134,الدخول!$S$3:$S$150)+E134-SUMIF(الدخول!$B$3:$B$150,D134,الدخول!$L$3:$L$150)) -> 14.11 | I134: =IF(F134="","",SUMIF(الدخول!$B$3:$B$150,D134,الدخول!$H$3:$H$150)+SUMIF(الدخول!$B$3:$B$150,D134,الدخول!$U$3:$U$150)+F134-SUMIF(الدخول!$B$3:$B$150,D134,الدخول!$N$3:$N$150)) -> 2820 | J134: =IF(G134="","",SUMIF(الدخول!$B$3:$B$150,D134,الدخول!$I$3:$I$150)+SUMIF(الدخول!$B$3:$B$150,D134,الدخول!$V$3:$V$150)+G134-SUMIF(الدخول!$B$3:$B$150,D134,الدخول!$O$3:$O$150)) -> 
A135: بينك | B135: ووفين فستون | C135: 1.3cm | D135: بينك ووفين فستون 1.3cm | H135: =IF(E135="","",SUMIF(الدخول!$B$3:$B$150,D135,الدخول!$F$3:$F$150)+SUMIF(الدخول!$B$3:$B$150,D135,الدخول!$S$3:$S$150)+E135-SUMIF(الدخول!$B$3:$B$150,D135,الدخول!$L$3:$L$150)) ->  | I135: =IF(F135="","",SUMIF(الدخول!$B$3:$B$150,D135,الدخول!$H$3:$H$150)+SUMIF(الدخول!$B$3:$B$150,D135,الدخول!$U$3:$U$150)+F135-SUMIF(الدخول!$B$3:$B$150,D135,الدخول!$N$3:$N$150)) ->  | J135: =IF(G135="","",SUMIF(الدخول!$B$3:$B$150,D135,الدخول!$I$3:$I$150)+SUMIF(الدخول!$B$3:$B$150,D135,الدخول!$V$3:$V$150)+G135-SUMIF(الدخول!$B$3:$B$150,D135,الدخول!$O$3:$O$150)) -> 
A136: بينك | B136: ووفين فستون | C136: 1cm | D136: بينك ووفين فستون 1cm | H136: =IF(E136="","",SUMIF(الدخول!$B$3:$B$150,D136,الدخول!$F$3:$F$150)+SUMIF(الدخول!$B$3:$B$150,D136,الدخول!$S$3:$S$150)+E136-SUMIF(الدخول!$B$3:$B$150,D136,الدخول!$L$3:$L$150)) ->  | I136: =IF(F136="","",SUMIF(الدخول!$B$3:$B$150,D136,الدخول!$H$3:$H$150)+SUMIF(الدخول!$B$3:$B$150,D136,الدخول!$U$3:$U$150)+F136-SUMIF(الدخول!$B$3:$B$150,D136,الدخول!$N$3:$N$150)) ->  | J136: =IF(G136="","",SUMIF(الدخول!$B$3:$B$150,D136,الدخول!$I$3:$I$150)+SUMIF(الدخول!$B$3:$B$150,D136,الدخول!$V$3:$V$150)+G136-SUMIF(الدخول!$B$3:$B$150,D136,الدخول!$O$3:$O$150)) -> 
A137: تركواز X ابيض | B137: بايبينج | C137: 1cm | D137: تركواز X ابيض بايبينج 1cm | E137: 119.56 | F137: 16296 | H137: =IF(E137="","",SUMIF(الدخول!$B$3:$B$150,D137,الدخول!$F$3:$F$150)+SUMIF(الدخول!$B$3:$B$150,D137,الدخول!$S$3:$S$150)+E137-SUMIF(الدخول!$B$3:$B$150,D137,الدخول!$L$3:$L$150)) -> 119.56 | I137: =IF(F137="","",SUMIF(الدخول!$B$3:$B$150,D137,الدخول!$H$3:$H$150)+SUMIF(الدخول!$B$3:$B$150,D137,الدخول!$U$3:$U$150)+F137-SUMIF(الدخول!$B$3:$B$150,D137,الدخول!$N$3:$N$150)) -> 16296 | J137: =IF(G137="","",SUMIF(الدخول!$B$3:$B$150,D137,الدخول!$I$3:$I$150)+SUMIF(الدخول!$B$3:$B$150,D137,الدخول!$V$3:$V$150)+G137-SUMIF(الدخول!$B$3:$B$150,D137,الدخول!$O$3:$O$150)) -> 
A138: تركواز X اسود | B138: بايبينج | C138: 1cm | D138: تركواز X اسود بايبينج 1cm | E138: 5511.45 | F138: 9564 | H138: =IF(E138="","",SUMIF(الدخول!$B$3:$B$150,D138,الدخول!$F$3:$F$150)+SUMIF(الدخول!$B$3:$B$150,D138,الدخول!$S$3:$S$150)+E138-SUMIF(الدخول!$B$3:$B$150,D138,الدخول!$L$3:$L$150)) -> 5511.45 | I138: =IF(F138="","",SUMIF(الدخول!$B$3:$B$150,D138,الدخول!$H$3:$H$150)+SUMIF(الدخول!$B$3:$B$150,D138,الدخول!$U$3:$U$150)+F138-SUMIF(الدخول!$B$3:$B$150,D138,الدخول!$N$3:$N$150)) -> 9564 | J138: =IF(G138="","",SUMIF(الدخول!$B$3:$B$150,D138,الدخول!$I$3:$I$150)+SUMIF(الدخول!$B$3:$B$150,D138,الدخول!$V$3:$V$150)+G138-SUMIF(الدخول!$B$3:$B$150,D138,الدخول!$O$3:$O$150)) -> 
A139: رصاصي استريب | B139: كروشيه | C139: 3cm | D139: رصاصي استريب كروشيه 3cm | E139: 175.18 | F139: 10127 | H139: =IF(E139="","",SUMIF(الدخول!$B$3:$B$150,D139,الدخول!$F$3:$F$150)+SUMIF(الدخول!$B$3:$B$150,D139,الدخول!$S$3:$S$150)+E139-SUMIF(الدخول!$B$3:$B$150,D139,الدخول!$L$3:$L$150)) -> 175.18 | I139: =IF(F139="","",SUMIF(الدخول!$B$3:$B$150,D139,الدخول!$H$3:$H$150)+SUMIF(الدخول!$B$3:$B$150,D139,الدخول!$U$3:$U$150)+F139-SUMIF(الدخول!$B$3:$B$150,D139,الدخول!$N$3:$N$150)) -> 10127 | J139: =IF(G139="","",SUMIF(الدخول!$B$3:$B$150,D139,الدخول!$I$3:$I$150)+SUMIF(الدخول!$B$3:$B$150,D139,الدخول!$V$3:$V$150)+G139-SUMIF(الدخول!$B$3:$B$150,D139,الدخول!$O$3:$O$150)) -> 
A140: زهري | B140: كورد | C140: مبطط | D140: زهري كورد مبطط | H140: =IF(E140="","",SUMIF(الدخول!$B$3:$B$150,D140,الدخول!$F$3:$F$150)+SUMIF(الدخول!$B$3:$B$150,D140,الدخول!$S$3:$S$150)+E140-SUMIF(الدخول!$B$3:$B$150,D140,الدخول!$L$3:$L$150)) ->  | I140: =IF(F140="","",SUMIF(الدخول!$B$3:$B$150,D140,الدخول!$H$3:$H$150)+SUMIF(الدخول!$B$3:$B$150,D140,الدخول!$U$3:$U$150)+F140-SUMIF(الدخول!$B$3:$B$150,D140,الدخول!$N$3:$N$150)) ->  | J140: =IF(G140="","",SUMIF(الدخول!$B$3:$B$150,D140,الدخول!$I$3:$I$150)+SUMIF(الدخول!$B$3:$B$150,D140,الدخول!$V$3:$V$150)+G140-SUMIF(الدخول!$B$3:$B$150,D140,الدخول!$O$3:$O$150)) -> 
A141: شاركول | B141: كورد | C141: مبطط | D141: شاركول كورد مبطط | H141: =IF(E141="","",SUMIF(الدخول!$B$3:$B$150,D141,الدخول!$F$3:$F$150)+SUMIF(الدخول!$B$3:$B$150,D141,الدخول!$S$3:$S$150)+E141-SUMIF(الدخول!$B$3:$B$150,D141,الدخول!$L$3:$L$150)) ->  | I141: =IF(F141="","",SUMIF(الدخول!$B$3:$B$150,D141,الدخول!$H$3:$H$150)+SUMIF(الدخول!$B$3:$B$150,D141,الدخول!$U$3:$U$150)+F141-SUMIF(الدخول!$B$3:$B$150,D141,الدخول!$N$3:$N$150)) ->  | J141: =IF(G141="","",SUMIF(الدخول!$B$3:$B$150,D141,الدخول!$I$3:$I$150)+SUMIF(الدخول!$B$3:$B$150,D141,الدخول!$V$3:$V$150)+G141-SUMIF(الدخول!$B$3:$B$150,D141,الدخول!$O$3:$O$150)) -> 
A142: موف غامق | B142: كروشيه | C142: 1.6cm | D142: موف غامق كروشيه 1.6cm | H142: =IF(E142="","",SUMIF(الدخول!$B$3:$B$150,D142,الدخول!$F$3:$F$150)+SUMIF(الدخول!$B$3:$B$150,D142,الدخول!$S$3:$S$150)+E142-SUMIF(الدخول!$B$3:$B$150,D142,الدخول!$L$3:$L$150)) ->  | I142: =IF(F142="","",SUMIF(الدخول!$B$3:$B$150,D142,الدخول!$H$3:$H$150)+SUMIF(الدخول!$B$3:$B$150,D142,الدخول!$U$3:$U$150)+F142-SUMIF(الدخول!$B$3:$B$150,D142,الدخول!$N$3:$N$150)) ->  | J142: =IF(G142="","",SUMIF(الدخول!$B$3:$B$150,D142,الدخول!$I$3:$I$150)+SUMIF(الدخول!$B$3:$B$150,D142,الدخول!$V$3:$V$150)+G142-SUMIF(الدخول!$B$3:$B$150,D142,الدخول!$O$3:$O$150)) -> 

Sheet الدخول
A1: التاريخ | B1: اللون | C1: رصيد ختامي بالكيلو | D1: رصيد ختامي بالمتر | E1: رصيد ختامي بالقطع | F1: أضافة | H1: وزن المتر | I1: اجمالي القطع | J1: رقم اذن اضافة | K1: العميل | L1: صرف | N1: وزن المتر | O1: اجمالي القطع | P1: رقم اذن صرف | Q1: جرد | R1: العميل | S1: مرتجع | U1: وزن المتر | V1: اجمالي القطع | W1: رقم اذن المرتجع | X1: العميل | Y1: ملاحظات | Z1: p
F2: كيلو | G2: متر | L2: كيلو | M2: متر | S2: كيلو | T2: متر | AA2: ابيض استك طبي 2.58 | AC2: ابيض كروشيه 5.8cm | AD2: ابيض كروشيه 5.8cm
A3: 2023-07-19T11:32:02 | B3: ابيض كروشيه 3cm | C3: =IF(B3="","",SUMIF('الرصيد الثابت'!$D$2:$D$142,B3,'الرصيد الثابت'!$H$2:$H$142)) -> 4545.46 | D3: =IF(B3="","",SUMIF('الرصيد الثابت'!$D$2:$D$142,B3,'الرصيد الثابت'!$I$2:$I$142)) -> 275094 | E3: =IF(B3="","",SUMIF('الرصيد الثابت'!$D$2:$D$142,B3,'الرصيد الثابت'!$J$2:$J$142)) -> 0 | F3: 46.1 | G3: =SUM(H3*F3) -> 128619 | H3: 2790 | J3: 6836 | K3: mm | M3: =SUM(N3*L3) -> 0 | T3: =SUM(U3*S3) -> 0 | AA3: ابيض استك طبي 2.78 | AC3: ابيض كروشيه 5.5cm | AD3: ابيض كروشيه 5.5cm
A4: 2023-07-19T14:00:58 | B4: اسود كروشيه 3cm | C4: =IF(B4="","",SUMIF('الرصيد الثابت'!$D$2:$D$142,B4,'الرصيد الثابت'!$H$2:$H$142)) -> 212.06 | D4: =IF(B4="","",SUMIF('الرصيد الثابت'!$D$2:$D$142,B4,'الرصيد الثابت'!$I$2:$I$142)) -> 12995 | E4: =IF(B4="","",SUMIF('الرصيد الثابت'!$D$2:$D$142,B4,'الرصيد الثابت'!$J$2:$J$142)) -> 0 | F4: 27.66 | G4: 46883.7 | H4: 1695 | J4: 6836 | K4: mm | M4: 0 | T4: =SUM(U4*S4) -> 0 | AA4: ابيض استك طبي 3.02 | AC4: ابيض كروشيه 5.3cm | AD4: ابيض كروشيه 5.3cm
A5: 2023-07-23T11:25:41 | B5: ابيض كروشيه 3.5cm | C5: =IF(B5="","",SUMIF('الرصيد الثابت'!$D$2:$D$142,B5,'الرصيد الثابت'!$H$2:$H$142)) -> 3144.02 | D5: =IF(B5="","",SUMIF('الرصيد الثابت'!$D$2:$D$142,B5,'الرصيد الثابت'!$I$2:$I$142)) -> 165385 | E5: =IF(B5="","",SUMIF('الرصيد الثابت'!$D$2:$D$142,B5,'الرصيد الثابت'!$J$2:$J$142)) -> 0 | F5: 73.76 | G5: 286188.8 | H5: 3880 | J5: 6843 | K5: mm | M5: 0 | T5: =SUM(U5*S5) -> 0 | AA5: ابيض استك طبي 3.18 | AC5: ابيض كروشيه 5cm | AD5: ابيض كروشيه 5cm
A6: 2023-07-23T11:26:26 | B6: اسود كروشيه 3cm | C6: =IF(B6="","",SUMIF('الرصيد الثابت'!$D$2:$D$142,B6,'الرصيد الثابت'!$H$2:$H$142)) -> 212.06 | D6: =IF(B6="","",SUMIF('الرصيد الثابت'!$D$2:$D$142,B6,'الرصيد الثابت'!$I$2:$I$142)) -> 12995 | E6: =IF(B6="","",SUMIF('الرصيد الثابت'!$D$2:$D$142,B6,'الرصيد الثابت'!$J$2:$J$142)) -> 0 | F6: 9.22 | G6: 5209.3 | H6: 565 | J6: 6843 | K6: mm | M6: 0 | T6: =SUM(U6*S6) -> 0 | AA6: ابيض استك طبي 3.3 | AC6: ابيض كروشيه 4.5cm | AD6: ابيض كروشيه 4.5cm
A7: 2023-07-23T11:27:06 | B7: اسود كروشيه 2cm | C7: =IF(B7="","",SUMIF('الرصيد الثابت'!$D$2:$D$142,B7,'الرصيد الثابت'!$H$2:$H$142)) -> 213.92 | D7: =IF(B7="","",SUMIF('الرصيد الثابت'!$D$2:$D$142,B7,'الرصيد الثابت'!$I$2:$I$142)) -> 20010 | E7: =IF(B7="","",SUMIF('الرصيد الثابت'!$D$2:$D$142,B7,'الرصيد الثابت'!$J$2:$J$142)) -> 0 | F7: 7.64 | G7: 4859.04 | H7: 636 | J7: 6843 | K7: mm | M7: 0 | T7: =SUM(U7*S7) -> 0 | AA7: ابيض استك طبي 3.36 | AC7: ابيض كروشيه 4cm | AD7: ابيض كروشيه 4cm
A8: 2023-07-23T15:45:42 | B8: ابيض 406 كروشيه 5 cm | C8: =IF(B8="","",SUMIF('الرصيد الثابت'!$D$2:$D$142,B8,'الرصيد الثابت'!$H$2:$H$142)) -> 54.74 | D8: =IF(B8="","",SUMIF('الرصيد الثابت'!$D$2:$D$142,B8,'الرصيد الثابت'!$I$2:$I$142)) -> 2616 | E8: =IF(B8="","",SUMIF('الرصيد الثابت'!$D$2:$D$142,B8,'الرصيد الثابت'!$J$2:$J$142)) -> 0 | F8: 912.38 | G8: 33962433.12 | H8: 37224 | J8: 6843 | K8: mm | M8: 0 | T8: =SUM(U8*S8) -> 0 | AA8: ابيض استك طبي 3.5 | AC8: ابيض كروشيه 3.5cm | AD8: ابيض كروشيه 3.5cm
A9: 2023-07-23T15:47:21 | B9: ابيض 406 كروشيه 5 cm | C9: =IF(B9="","",SUMIF('الرصيد الثابت'!$D$2:$D$142,B9,'الرصيد الثابت'!$H$2:$H$142)) -> 54.74 | D9: =IF(B9="","",SUMIF('الرصيد الثابت'!$D$2:$D$142,B9,'الرصيد الثابت'!$I$2:$I$142)) -> 2616 | E9: =IF(B9="","",SUMIF('الرصيد الثابت'!$D$2:$D$142,B9,'الرصيد الثابت'!$J$2:$J$142)) -> 0 | G9: 0 | L9: 968.1 | M9: 38220588 | N9: 39480 | P9: 8004 | R9: mm | T9: 0 | AA9: ابيض استك طبي 4.14 | AC9: ابيض كروشيه 3.2cm | AD9: ابيض كروشيه 3.2cm
A10: 2023-07-23T15:47:58 | B10: ابيض كروشيه 4cm | C10: =IF(B10="","",SUMIF('الرصيد الثابت'!$D$2:$D$142,B10,'الرصيد الثابت'!$H$2:$H$142)) -> 3014.94 | D10: =IF(B10="","",SUMIF('الرصيد الثابت'!$D$2:$D$142,B10,'الرصيد الثابت'!$I$2:$I$142)) -> 132108 | E10: =IF(B10="","",SUMIF('الرصيد الثابت'!$D$2:$D$142,B10,'الرصيد الثابت'!$J$2:$J$142)) -> 0 | G10: 0 | L10: 119.86 | M10: 629504.72 | N10: 5252 | P10: 8004 | R10: mm | T10: 0 | AA10: ابيض استك طبي 4.92 | AC10: ابيض كروشيه 3cm | AD10: ابيض كروشيه 3cm
A11: 2023-07-23T15:48:35 | B11: ابيض كروشيه 3.5cm | C11: =IF(B11="","",SUMIF('الرصيد الثابت'!$D$2:$D$142,B11,'الرصيد الثابت'!$H$2:$H$142)) -> 3144.02 | D11: =IF(B11="","",SUMIF('الرصيد الثابت'!$D$2:$D$142,B11,'الرصيد الثابت'!$I$2:$I$142)) -> 165385 | E11: =IF(B11="","",SUMIF('الرصيد الثابت'!$D$2:$D$142,B11,'الرصيد الثابت'!$J$2:$J$142)) -> 0 | G11: 0 | L11: 396.46 | M11: 8268173.3 | N11: 20855 | P11: 8004 | Q11: =SUM(F11-L11) -> -396.46 | R11: mm | T11: 0 | AA11: ابيض استك طبي 7.52 | AC11: ابيض كروشيه 2.2cm | AD11: ابيض كروشيه 2.2cm
A12: 2023-07-24T15:54:01 | B12: ابيض استك طبي 2,58 | C12: =IF(B12="","",SUMIF('الرصيد الثابت'!$D$2:$D$142,B12,'الرصيد الثابت'!$H$2:$H$142)) -> 0 | D12: =IF(B12="","",SUMIF('الرصيد الثابت'!$D$2:$D$142,B12,'الرصيد الثابت'!$I$2:$I$142)) -> 0 | E12: =IF(B12="","",SUMIF('الرصيد الثابت'!$D$2:$D$142,B12,'الرصيد الثابت'!$J$2:$J$142)) -> 0 | F12: 55 | G12: 11000 | H12: 200 | J12: 55 | K12: ss | M12: 0 | Q12: 55 | T12: 0 | AA12: ابيض كروشيه 1.2cm | AC12: ابيض كروشيه 2cm | AD12: ابيض كروشيه 2cm
C13: =IF(B13="","",SUMIF('الرصيد الثابت'!$D$2:$D$142,B13,'الرصيد الثابت'!$H$2:$H$142)) ->  | D13: =IF(B13="","",SUMIF('الرصيد الثابت'!$D$2:$D$142,B13,'الرصيد الثابت'!$I$2:$I$142)) ->  | E13: =IF(B13="","",SUMIF('الرصيد الثابت'!$D$2:$D$142,B13,'الرصيد الثابت'!$J$2:$J$142)) ->  | G13: 0 | M13: 0 | Q13: 0 | T13: 0 | AA13: ابيض كروشيه 1.3cm | AC13: ابيض كروشيه 1.5cm | AD13: ابيض كروشيه 1.5cm
C14: =IF(B14="","",SUMIF('الرصيد الثابت'!$D$2:$D$142,B14,'الرصيد الثابت'!$H$2:$H$142)) ->  | D14: =IF(B14="","",SUMIF('الرصيد الثابت'!$D$2:$D$142,B14,'الرصيد الثابت'!$I$2:$I$142)) ->  | E14: =IF(B14="","",SUMIF('الرصيد الثابت'!$D$2:$D$142,B14,'الرصيد الثابت'!$J$2:$J$142)) ->  | G14: 0 | M14: 0 | Q14: 0 | T14: 0 | AA14: ابيض كروشيه 1.5cm | AC14: ابيض كروشيه 1.2cm | AD14: ابيض كروشيه 1.2cm
C15: =IF(B15="","",SUMIF('الرصيد الثابت'!$D$2:$D$142,B15,'الرصيد الثابت'!$H$2:$H$142)) ->  | D15: =IF(B15="","",SUMIF('الرصيد الثابت'!$D$2:$D$142,B15,'الرصيد الثابت'!$I$2:$I$142)) ->  | E15: =IF(B15="","",SUMIF('الرصيد الثابت'!$D$2:$D$142,B15,'الرصيد الثابت'!$J$2:$J$142)) ->  | G15: 0 | M15: 0 | Q15: 0 | T15: 0 | AA15: ابيض كروشيه 1.8cm | AC15: ابيض كروشيه 1cm | AD15: ابيض كروشيه 1cm
C16: =IF(B16="","",SUMIF('الرصيد الثابت'!$D$2:$D$142,B16,'الرصيد الثابت'!$H$2:$H$142)) ->  | D16: =IF(B16="","",SUMIF('الرصيد الثابت'!$D$2:$D$142,B16,'الرصيد الثابت'!$I$2:$I$142)) ->  | E16: =IF(B16="","",SUMIF('الرصيد الثابت'!$D$2:$D$142,B16,'الرصيد الثابت'!$J$2:$J$142)) ->  | G16: 0 | M16: 0 | Q16: 0 | T16: 0 | AA16: ابيض كروشيه 1cm | AC16: ابيض كروشيه 8mm | AD16: ابيض كروشيه 8mm
C17: =IF(B17="","",SUMIF('الرصيد الثابت'!$D$2:$D$142,B17,'الرصيد الثابت'!$H$2:$H$142)) ->  | D17: =IF(B17="","",SUMIF('الرصيد الثابت'!$D$2:$D$142,B17,'الرصيد الثابت'!$I$2:$I$142)) ->  | E17: =IF(B17="","",SUMIF('الرصيد الثابت'!$D$2:$D$142,B17,'الرصيد الثابت'!$J$2:$J$142)) ->  | G17: 0 | M17: 0 | Q17: 0 | T17: 0 | AA17: ابيض كروشيه 2.2cm | AC17: ابيض كروشيه 7mm | AD17: ابيض كروشيه 7mm
C18: =IF(B18="","",SUMIF('الرصيد الثابت'!$D$2:$D$142,B18,'الرصيد الثابت'!$H$2:$H$142)) ->  | D18: =IF(B18="","",SUMIF('الرصيد الثابت'!$D$2:$D$142,B18,'الرصيد الثابت'!$I$2:$I$142)) ->  | E18: =IF(B18="","",SUMIF('الرصيد الثابت'!$D$2:$D$142,B18,'الرصيد الثابت'!$J$2:$J$142)) ->  | G18: 0 | M18: 0 | Q18: 0 | T18: 0 | AA18: ابيض كروشيه 2.5cm | AC18: ابيض كروشيه 6mm | AD18: ابيض كروشيه 6mm
C19: =IF(B19="","",SUMIF('الرصيد الثابت'!$D$2:$D$142,B19,'الرصيد الثابت'!$H$2:$H$142)) ->  | D19: =IF(B19="","",SUMIF('الرصيد الثابت'!$D$2:$D$142,B19,'الرصيد الثابت'!$I$2:$I$142)) ->  | E19: =IF(B19="","",SUMIF('الرصيد الثابت'!$D$2:$D$142,B19,'الرصيد الثابت'!$J$2:$J$142)) ->  | G19: 0 | M19: 0 | Q19: 0 | T19: 0 | AA19: ابيض كروشيه 2cm | AC19: ابيض كروشيه 5mm | AD19: ابيض كروشيه 5mm
C20: =IF(B20="","",SUMIF('الرصيد الثابت'!$D$2:$D$142,B20,'الرصيد الثابت'!$H$2:$H$142)) ->  | D20: =IF(B20="","",SUMIF('الرصيد الثابت'!$D$2:$D$142,B20,'الرصيد الثابت'!$I$2:$I$142)) ->  | E20: =IF(B20="","",SUMIF('الرصيد الثابت'!$D$2:$D$142,B20,'الرصيد الثابت'!$J$2:$J$142)) ->  | G20: 0 | M20: 0 | Q20: 0 | T20: 0 | AA20: ابيض كروشيه 2m | AC20: ابيض كروشيه 2.5cm | AD20: ابيض كروشيه 2.5cm
C21: =IF(B21="","",SUMIF('الرصيد الثابت'!$D$2:$D$142,B21,'الرصيد الثابت'!$H$2:$H$142)) ->  | D21: =IF(B21="","",SUMIF('الرصيد الثابت'!$D$2:$D$142,B21,'الرصيد الثابت'!$I$2:$I$142)) ->  | E21: =IF(B21="","",SUMIF('الرصيد الثابت'!$D$2:$D$142,B21,'الرصيد الثابت'!$J$2:$J$142)) ->  | G21: 0 | M21: 0 | Q21: 0 | T21: 0 | AA21: ابيض كروشيه 3.2cm | AC21: ابيض كروشيه 6.5cm | AD21: ابيض كروشيه 6.5cm
C22: =IF(B22="","",SUMIF('الرصيد الثابت'!$D$2:$D$142,B22,'الرصيد الثابت'!$H$2:$H$142)) ->  | D22: =IF(B22="","",SUMIF('الرصيد الثابت'!$D$2:$D$142,B22,'الرصيد الثابت'!$I$2:$I$142)) ->  | E22: =IF(B22="","",SUMIF('الرصيد الثابت'!$D$2:$D$142,B22,'الرصيد الثابت'!$J$2:$J$142)) ->  | G22: 0 | M22: 0 | Q22: 0 | T22: 0 | AA22: ابيض كروشيه 3.5cm | AC22: ابيض كروشيه 1.8cm | AD22: ابيض كروشيه 1.8cm
C23: =IF(B23="","",SUMIF('الرصيد الثابت'!$D$2:$D$142,B23,'الرصيد الثابت'!$H$2:$H$142)) ->  | D23: =IF(B23="","",SUMIF('الرصيد الثابت'!$D$2:$D$142,B23,'الرصيد الثابت'!$I$2:$I$142)) ->  | E23: =IF(B23="","",SUMIF('الرصيد الثابت'!$D$2:$D$142,B23,'الرصيد الثابت'!$J$2:$J$142)) ->  | G23: 0 | M23: 0 | Q23: 0 | T23: 0 | AA23: ابيض كروشيه 3cm | AC23: ابيض كروشيه 1,8 | AD23: ابيض كروشيه 1,8
C24: =IF(B24="","",SUMIF('الرصيد الثابت'!$D$2:$D$142,B24,'الرصيد الثابت'!$H$2:$H$142)) ->  | D24: =IF(B24="","",SUMIF('الرصيد الثابت'!$D$2:$D$142,B24,'الرصيد الثابت'!$I$2:$I$142)) ->  | E24: =IF(B24="","",SUMIF('الرصيد الثابت'!$D$2:$D$142,B24,'الرصيد الثابت'!$J$2:$J$142)) ->  | G24: 0 | M24: 0 | Q24: 0 | T24: 0 | AA24: ابيض كروشيه 4.5cm | AC24: ابيض كروشيه .8m | AD24: ابيض كروشيه .8m
C25: =IF(B25="","",SUMIF('الرصيد الثابت'!$D$2:$D$142,B25,'الرصيد الثابت'!$H$2:$H$142)) ->  | D25: =IF(B25="","",SUMIF('الرصيد الثابت'!$D$2:$D$142,B25,'الرصيد الثابت'!$I$2:$I$142)) ->  | E25: =IF(B25="","",SUMIF('الرصيد الثابت'!$D$2:$D$142,B25,'الرصيد الثابت'!$J$2:$J$142)) ->  | G25: 0 | M25: 0 | Q25: 0 | T25: 0 | AA25: ابيض كروشيه 4cm | AC25: ابيض كروشيه 7cm | AD25: ابيض كروشيه 7cm
C26: =IF(B26="","",SUMIF('الرصيد الثابت'!$D$2:$D$142,B26,'الرصيد الثابت'!$H$2:$H$142)) ->  | D26: =IF(B26="","",SUMIF('الرصيد الثابت'!$D$2:$D$142,B26,'الرصيد الثابت'!$I$2:$I$142)) ->  | E26: =IF(B26="","",SUMIF('الرصيد الثابت'!$D$2:$D$142,B26,'الرصيد الثابت'!$J$2:$J$142)) ->  | G26: 0 | M26: 0 | Q26: 0 | T26: 0 | AA26: ابيض كروشيه 5.3cm | AC26: ابيض كروشيه 6.3cm | AD26: ابيض كروشيه 6.3cm
C27: =IF(B27="","",SUMIF('الرصيد الثابت'!$D$2:$D$142,B27,'الرصيد الثابت'!$H$2:$H$142)) ->  | D27: =IF(B27="","",SUMIF('الرصيد الثابت'!$D$2:$D$142,B27,'الرصيد الثابت'!$I$2:$I$142)) ->  | E27: =IF(B27="","",SUMIF('الرصيد الثابت'!$D$2:$D$142,B27,'الرصيد الثابت'!$J$2:$J$142)) ->  | G27: 0 | M27: 0 | Q27: 0 | T27: 0 | AA27: ابيض كروشيه 5.5cm | AC27: ابيض كروشيه 0.2m | AD27: ابيض كروشيه 0.2m
C28: =IF(B28="","",SUMIF('الرصيد الثابت'!$D$2:$D$142,B28,'الرصيد الثابت'!$H$2:$H$142)) ->  | D28: =IF(B28="","",SUMIF('الرصيد الثابت'!$D$2:$D$142,B28,'الرصيد الثابت'!$I$2:$I$142)) ->  | E28: =IF(B28="","",SUMIF('الرصيد الثابت'!$D$2:$D$142,B28,'الرصيد الثابت'!$J$2:$J$142)) ->  | G28: 0 | M28: 0 | Q28: 0 | T28: 0 | AA28: ابيض كروشيه 5.8cm | AC28: ابيض كروشيه .5m | AD28: ابيض كروشيه .5m
C29: =IF(B29="","",SUMIF('الرصيد الثابت'!$D$2:$D$142,B29,'الرصيد الثابت'!$H$2:$H$142)) ->  | D29: =IF(B29="","",SUMIF('الرصيد الثابت'!$D$2:$D$142,B29,'الرصيد الثابت'!$I$2:$I$142)) ->  | E29: =IF(B29="","",SUMIF('الرصيد الثابت'!$D$2:$D$142,B29,'الرصيد الثابت'!$J$2:$J$142)) ->  | G29: 0 | M29: 0 | Q29: 0 | T29: 0 | AA29: ابيض كروشيه 5cm | AC29: ابيض كروشيه .6m | AD29: ابيض كروشيه .6m
C30: =IF(B30="","",SUMIF('الرصيد الثابت'!$D$2:$D$142,B30,'الرصيد الثابت'!$H$2:$H$142)) ->  | D30: =IF(B30="","",SUMIF('الرصيد الثابت'!$D$2:$D$142,B30,'الرصيد الثابت'!$I$2:$I$142)) ->  | E30: =IF(B30="","",SUMIF('الرصيد الثابت'!$D$2:$D$142,B30,'الرصيد الثابت'!$J$2:$J$142)) ->  | G30: 0 | M30: 0 | Q30: 0 | T30: 0 | AA30: ابيض كروشيه 5mm | AC30: ابيض كروشيه .7m | AD30: ابيض كروشيه .7m
C31: =IF(B31="","",SUMIF('الرصيد الثابت'!$D$2:$D$142,B31,'الرصيد الثابت'!$H$2:$H$142)) ->  | D31: =IF(B31="","",SUMIF('الرصيد الثابت'!$D$2:$D$142,B31,'الرصيد الثابت'!$I$2:$I$142)) ->  | E31: =IF(B31="","",SUMIF('الرصيد الثابت'!$D$2:$D$142,B31,'الرصيد الثابت'!$J$2:$J$142)) ->  | G31: 0 | M31: 0 | Q31: 0 | T31: 0 | AA31: ابيض كروشيه 6.5cm | AC31: ابيض كروشيه 1.6cm | AD31: ابيض كروشيه 1.6cm
C32: =IF(B32="","",SUMIF('الرصيد الثابت'!$D$2:$D$142,B32,'الرصيد الثابت'!$H$2:$H$142)) ->  | D32: =IF(B32="","",SUMIF('الرصيد الثابت'!$D$2:$D$142,B32,'الرصيد الثابت'!$I$2:$I$142)) ->  | E32: =IF(B32="","",SUMIF('الرصيد الثابت'!$D$2:$D$142,B32,'الرصيد الثابت'!$J$2:$J$142)) ->  | G32: 0 | M32: 0 | Q32: 0 | T32: 0 | AA32: ابيض كروشيه 6m | AC32: ابيض كروشيه 1.3cm | AD32: ابيض كروشيه 1.3cm
C33: =IF(B33="","",SUMIF('الرصيد الثابت'!$D$2:$D$142,B33,'الرصيد الثابت'!$H$2:$H$142)) ->  | D33: =IF(B33="","",SUMIF('الرصيد الثابت'!$D$2:$D$142,B33,'الرصيد الثابت'!$I$2:$I$142)) ->  | E33: =IF(B33="","",SUMIF('الرصيد الثابت'!$D$2:$D$142,B33,'الرصيد الثابت'!$J$2:$J$142)) ->  | G33: 0 | M33: 0 | Q33: 0 | T33: 0 | AA33: ابيض كروشيه 6mm | AC33: ابيض كروشيه 1.8.cm | AD33: ابيض كروشيه 1.8.cm
C34: =IF(B34="","",SUMIF('الرصيد الثابت'!$D$2:$D$142,B34,'الرصيد الثابت'!$H$2:$H$142)) ->  | D34: =IF(B34="","",SUMIF('الرصيد الثابت'!$D$2:$D$142,B34,'الرصيد الثابت'!$I$2:$I$142)) ->  | E34: =IF(B34="","",SUMIF('الرصيد الثابت'!$D$2:$D$142,B34,'الرصيد الثابت'!$J$2:$J$142)) ->  | G34: 0 | M34: 0 | Q34: 0 | T34: 0 | AA34: ابيض كروشيه 7m | AC34: ابيض ووفين فستون 1cm | AD34: ابيض ووفين فستون 1cm
C35: =IF(B35="","",SUMIF('الرصيد الثابت'!$D$2:$D$142,B35,'الرصيد الثابت'!$H$2:$H$142)) ->  | D35: =IF(B35="","",SUMIF('الرصيد الثابت'!$D$2:$D$142,B35,'الرصيد الثابت'!$I$2:$I$142)) ->  | E35: =IF(B35="","",SUMIF('الرصيد الثابت'!$D$2:$D$142,B35,'الرصيد الثابت'!$J$2:$J$142)) ->  | G35: 0 | M35: 0 | Q35: 0 | T35: 0 | AA35: ابيض كروشيه 7mm | AC35: ابيض استك طبي 3,18 | AD35: ابيض استك طبي 3,18
C36: =IF(B36="","",SUMIF('الرصيد الثابت'!$D$2:$D$142,B36,'الرصيد الثابت'!$H$2:$H$142)) ->  | D36: =IF(B36="","",SUMIF('الرصيد الثابت'!$D$2:$D$142,B36,'الرصيد الثابت'!$I$2:$I$142)) ->  | E36: =IF(B36="","",SUMIF('الرصيد الثابت'!$D$2:$D$142,B36,'الرصيد الثابت'!$J$2:$J$142)) ->  | G36: 0 | M36: 0 | Q36: 0 | T36: 0 | AA36: ابيض كروشيه 8mm | AC36: ابيض استك طبي 4,14 | AD36: ابيض استك طبي 4,14
C37: =IF(B37="","",SUMIF('الرصيد الثابت'!$D$2:$D$142,B37,'الرصيد الثابت'!$H$2:$H$142)) ->  | D37: =IF(B37="","",SUMIF('الرصيد الثابت'!$D$2:$D$142,B37,'الرصيد الثابت'!$I$2:$I$142)) ->  | E37: =IF(B37="","",SUMIF('الرصيد الثابت'!$D$2:$D$142,B37,'الرصيد الثابت'!$J$2:$J$142)) ->  | G37: 0 | M37: 0 | Q37: 0 | T37: 0 | AA37: ابيض ووفين 1.5cm | AC37: ابيض استك طبي 2,78 | AD37: ابيض استك طبي 2,78
C38: =IF(B38="","",SUMIF('الرصيد الثابت'!$D$2:$D$142,B38,'الرصيد الثابت'!$H$2:$H$142)) ->  | D38: =IF(B38="","",SUMIF('الرصيد الثابت'!$D$2:$D$142,B38,'الرصيد الثابت'!$I$2:$I$142)) ->  | E38: =IF(B38="","",SUMIF('الرصيد الثابت'!$D$2:$D$142,B38,'الرصيد الثابت'!$J$2:$J$142)) ->  | G38: 0 | M38: 0 | Q38: 0 | T38: 0 | AA38: ابيض ووفين 2.5cm | AC38: ابيض استك طبي 7,52 | AD38: ابيض استك طبي 7,52
C39: =IF(B39="","",SUMIF('الرصيد الثابت'!$D$2:$D$142,B39,'الرصيد الثابت'!$H$2:$H$142)) ->  | D39: =IF(B39="","",SUMIF('الرصيد الثابت'!$D$2:$D$142,B39,'الرصيد الثابت'!$I$2:$I$142)) ->  | E39: =IF(B39="","",SUMIF('الرصيد الثابت'!$D$2:$D$142,B39,'الرصيد الثابت'!$J$2:$J$142)) ->  | G39: 0 | M39: 0 | Q39: 0 | T39: 0 | AA39: ابيض ووفين ساندوتش 1.5cm | AC39: ابيض استك طبي 3,5 | AD39: ابيض استك طبي 3,5
C40: =IF(B40="","",SUMIF('الرصيد الثابت'!$D$2:$D$142,B40,'الرصيد الثابت'!$H$2:$H$142)) ->  | D40: =IF(B40="","",SUMIF('الرصيد الثابت'!$D$2:$D$142,B40,'الرصيد الثابت'!$I$2:$I$142)) ->  | E40: =IF(B40="","",SUMIF('الرصيد الثابت'!$D$2:$D$142,B40,'الرصيد الثابت'!$J$2:$J$142)) ->  | G40: 0 | M40: 0 | Q40: 0 | T40: 0 | AA40: ابيض ووفين ساندوتش 2.2cm | AC40: ابيض استك طبي 3,3 | AD40: ابيض استك طبي 3,3
C41: =IF(B41="","",SUMIF('الرصيد الثابت'!$D$2:$D$142,B41,'الرصيد الثابت'!$H$2:$H$142)) ->  | D41: =IF(B41="","",SUMIF('الرصيد الثابت'!$D$2:$D$142,B41,'الرصيد الثابت'!$I$2:$I$142)) ->  | E41: =IF(B41="","",SUMIF('الرصيد الثابت'!$D$2:$D$142,B41,'الرصيد الثابت'!$J$2:$J$142)) ->  | G41: 0 | M41: 0 | Q41: 0 | T41: 0 | AA41: ابيض ووفين ساندوتش 2.5cm | AC41: ابيض استك طبي 3,36 | AD41: ابيض استك طبي 3,36
C42: =IF(B42="","",SUMIF('الرصيد الثابت'!$D$2:$D$142,B42,'الرصيد الثابت'!$H$2:$H$142)) ->  | D42: =IF(B42="","",SUMIF('الرصيد الثابت'!$D$2:$D$142,B42,'الرصيد الثابت'!$I$2:$I$142)) ->  | E42: =IF(B42="","",SUMIF('الرصيد الثابت'!$D$2:$D$142,B42,'الرصيد الثابت'!$J$2:$J$142)) ->  | G42: 0 | M42: 0 | Q42: 0 | T42: 0 | AA42: ابيض ووفين ساندوتش القطة 2.5cm | AC42: ابيض استك طبي 2,58 | AD42: ابيض استك طبي 2,58
C43: =IF(B43="","",SUMIF('الرصيد الثابت'!$D$2:$D$142,B43,'الرصيد الثابت'!$H$2:$H$142)) ->  | D43: =IF(B43="","",SUMIF('الرصيد الثابت'!$D$2:$D$142,B43,'الرصيد الثابت'!$I$2:$I$142)) ->  | E43: =IF(B43="","",SUMIF('الرصيد الثابت'!$D$2:$D$142,B43,'الرصيد الثابت'!$J$2:$J$142)) ->  | G43: 0 | M43: 0 | Q43: 0 | T43: 0 | AA43: ابيض ووفين ساندوتش قديم 1.5cm | AC43: ابيض استك طبي 3,02 | AD43: ابيض استك طبي 3,02
C44: =IF(B44="","",SUMIF('الرصيد الثابت'!$D$2:$D$142,B44,'الرصيد الثابت'!$H$2:$H$142)) ->  | D44: =IF(B44="","",SUMIF('الرصيد الثابت'!$D$2:$D$142,B44,'الرصيد الثابت'!$I$2:$I$142)) ->  | E44: =IF(B44="","",SUMIF('الرصيد الثابت'!$D$2:$D$142,B44,'الرصيد الثابت'!$J$2:$J$142)) ->  | G44: 0 | M44: 0 | Q44: 0 | T44: 0 | AA44: ابيض ووفين ساندوتش قديم 1.6 cm | AC44: ابيض استك طبي 4,92 | AD44: ابيض استك طبي 4,92
C45: =IF(B45="","",SUMIF('الرصيد الثابت'!$D$2:$D$142,B45,'الرصيد الثابت'!$H$2:$H$142)) ->  | D45: =IF(B45="","",SUMIF('الرصيد الثابت'!$D$2:$D$142,B45,'الرصيد الثابت'!$I$2:$I$142)) ->  | E45: =IF(B45="","",SUMIF('الرصيد الثابت'!$D$2:$D$142,B45,'الرصيد الثابت'!$J$2:$J$142)) ->  | G45: 0 | M45: 0 | Q45: 0 | T45: 0 | AA45: ابيض ووفين فستون 1cm | AC45: ابيض فلاش كروشيه 5cm | AD45: ابيض فلاش كروشيه 5cm
C46: =IF(B46="","",SUMIF('الرصيد الثابت'!$D$2:$D$142,B46,'الرصيد الثابت'!$H$2:$H$142)) ->  | D46: =IF(B46="","",SUMIF('الرصيد الثابت'!$D$2:$D$142,B46,'الرصيد الثابت'!$I$2:$I$142)) ->  | E46: =IF(B46="","",SUMIF('الرصيد الثابت'!$D$2:$D$142,B46,'الرصيد الثابت'!$J$2:$J$142)) ->  | G46: 0 | M46: 0 | Q46: 0 | T46: 0 | AA46: ابيض 406 كروشيه 5 cm | AC46: ابيض فلاش كروشيه 4.5cm | AD46: ابيض فلاش كروشيه 4.5cm
C47: =IF(B47="","",SUMIF('الرصيد الثابت'!$D$2:$D$142,B47,'الرصيد الثابت'!$H$2:$H$142)) ->  | D47: =IF(B47="","",SUMIF('الرصيد الثابت'!$D$2:$D$142,B47,'الرصيد الثابت'!$I$2:$I$142)) ->  | E47: =IF(B47="","",SUMIF('الرصيد الثابت'!$D$2:$D$142,B47,'الرصيد الثابت'!$J$2:$J$142)) ->  | G47: 0 | M47: 0 | Q47: 0 | T47: 0 | AA47: ابيض 510 كروشيه 2.3 cm | AC47: ابيض فلاش كروشيه 3.5cm | AD47: ابيض فلاش كروشيه 3.5cm
C48: =IF(B48="","",SUMIF('الرصيد الثابت'!$D$2:$D$142,B48,'الرصيد الثابت'!$H$2:$H$142)) ->  | D48: =IF(B48="","",SUMIF('الرصيد الثابت'!$D$2:$D$142,B48,'الرصيد الثابت'!$I$2:$I$142)) ->  | E48: =IF(B48="","",SUMIF('الرصيد الثابت'!$D$2:$D$142,B48,'الرصيد الثابت'!$J$2:$J$142)) ->  | G48: 0 | M48: 0 | Q48: 0 | T48: 0 | AA48: ابيض 510 كروشيه 5 cm | AC48: ابيض فلاش كروشيه 2cm | AD48: ابيض فلاش كروشيه 2cm
C49: =IF(B49="","",SUMIF('الرصيد الثابت'!$D$2:$D$142,B49,'الرصيد الثابت'!$H$2:$H$142)) ->  | D49: =IF(B49="","",SUMIF('الرصيد الثابت'!$D$2:$D$142,B49,'الرصيد الثابت'!$I$2:$I$142)) ->  | E49: =IF(B49="","",SUMIF('الرصيد الثابت'!$D$2:$D$142,B49,'الرصيد الثابت'!$J$2:$J$142)) ->  | G49: 0 | M49: 0 | Q49: 0 | T49: 0 | AA49: ابيض CO-IMG-40 كروشيه 4cm | AC49: ابيض كانون كروشيه 5.5cm | AD49: ابيض كانون كروشيه 5.5cm
C50: =IF(B50="","",SUMIF('الرصيد الثابت'!$D$2:$D$142,B50,'الرصيد الثابت'!$H$2:$H$142)) ->  | D50: =IF(B50="","",SUMIF('الرصيد الثابت'!$D$2:$D$142,B50,'الرصيد الثابت'!$I$2:$I$142)) ->  | E50: =IF(B50="","",SUMIF('الرصيد الثابت'!$D$2:$D$142,B50,'الرصيد الثابت'!$J$2:$J$142)) ->  | G50: 0 | M50: 0 | Q50: 0 | T50: 0 | AA50: ابيض CO-IMG-50 كروشيه 5cm | AC50: ابيض كانون كروشيه 4.5cm | AD50: ابيض كانون كروشيه 4.5cm
C51: =IF(B51="","",SUMIF('الرصيد الثابت'!$D$2:$D$142,B51,'الرصيد الثابت'!$H$2:$H$142)) ->  | D51: =IF(B51="","",SUMIF('الرصيد الثابت'!$D$2:$D$142,B51,'الرصيد الثابت'!$I$2:$I$142)) ->  | E51: =IF(B51="","",SUMIF('الرصيد الثابت'!$D$2:$D$142,B51,'الرصيد الثابت'!$J$2:$J$142)) ->  | G51: 0 | M51: 0 | Q51: 0 | T51: 0 | AA51: ابيض IT-IMG-40 كروشيه 4cm | AC51: ابيض510 كروشيه 3cm | AD51: ابيض510 كروشيه 3cm
C52: =IF(B52="","",SUMIF('الرصيد الثابت'!$D$2:$D$142,B52,'الرصيد الثابت'!$H$2:$H$142)) ->  | D52: =IF(B52="","",SUMIF('الرصيد الثابت'!$D$2:$D$142,B52,'الرصيد الثابت'!$I$2:$I$142)) ->  | E52: =IF(B52="","",SUMIF('الرصيد الثابت'!$D$2:$D$142,B52,'الرصيد الثابت'!$J$2:$J$142)) ->  | G52: 0 | M52: 0 | Q52: =SUM(#REF!-#REF!) ->  | T52: 0 | AA52: ابيض IT-IMG-50 كروشيه 5cm | AC52: ابيض510 كروشيه 4cm | AD52: ابيض510 كروشيه 4cm
C53: =IF(B53="","",SUMIF('الرصيد الثابت'!$D$2:$D$142,B53,'الرصيد الثابت'!$H$2:$H$142)) ->  | D53: =IF(B53="","",SUMIF('الرصيد الثابت'!$D$2:$D$142,B53,'الرصيد الثابت'!$I$2:$I$142)) ->  | E53: =IF(B53="","",SUMIF('الرصيد الثابت'!$D$2:$D$142,B53,'الرصيد الثابت'!$J$2:$J$142)) ->  | G53: 0 | M53: 0 | Q53: 0 | T53: 0 | AA53: ابيض JA-IMG-45 كروشيه 4cm | AC53: احمر كورد مبطط | AD53: احمر كورد مبطط
C54: =IF(B54="","",SUMIF('الرصيد الثابت'!$D$2:$D$142,B54,'الرصيد الثابت'!$H$2:$H$142)) ->  | D54: =IF(B54="","",SUMIF('الرصيد الثابت'!$D$2:$D$142,B54,'الرصيد الثابت'!$I$2:$I$142)) ->  | E54: =IF(B54="","",SUMIF('الرصيد الثابت'!$D$2:$D$142,B54,'الرصيد الثابت'!$J$2:$J$142)) ->  | G54: 0 | M54: 0 | Q54: 0 | T54: 0 | AA54: ابيض SD-IMG-12 كروشيه 1.2cm | AC54: احمر كورد كبسله بلاستك | AD54: احمر كورد كبسله بلاستك
C55: =IF(B55="","",SUMIF('الرصيد الثابت'!$D$2:$D$142,B55,'الرصيد الثابت'!$H$2:$H$142)) ->  | D55: =IF(B55="","",SUMIF('الرصيد الثابت'!$D$2:$D$142,B55,'الرصيد الثابت'!$I$2:$I$142)) ->  | E55: =IF(B55="","",SUMIF('الرصيد الثابت'!$D$2:$D$142,B55,'الرصيد الثابت'!$J$2:$J$142)) ->  | G55: 0 | M55: 0 | Q55: 0 | T55: 0 | AA55: ابيض SD-IMG-30 كروشيه 3cm | AC55: اخضر كورد مبطط | AD55: اخضر كورد مبطط
C56: =IF(B56="","",SUMIF('الرصيد الثابت'!$D$2:$D$142,B56,'الرصيد الثابت'!$H$2:$H$142)) ->  | D56: =IF(B56="","",SUMIF('الرصيد الثابت'!$D$2:$D$142,B56,'الرصيد الثابت'!$I$2:$I$142)) ->  | E56: =IF(B56="","",SUMIF('الرصيد الثابت'!$D$2:$D$142,B56,'الرصيد الثابت'!$J$2:$J$142)) ->  | G56: 0 | M56: 0 | Q56: 0 | T56: 0 | AA56: ابيض TM-IMG-16 كروشيه 1.6cm | AC56: اسود كروشيه 5.8cm | AD56: اسود كروشيه 5.8cm
C57: =IF(B57="","",SUMIF('الرصيد الثابت'!$D$2:$D$142,B57,'الرصيد الثابت'!$H$2:$H$142)) ->  | D57: =IF(B57="","",SUMIF('الرصيد الثابت'!$D$2:$D$142,B57,'الرصيد الثابت'!$I$2:$I$142)) ->  | E57: =IF(B57="","",SUMIF('الرصيد الثابت'!$D$2:$D$142,B57,'الرصيد الثابت'!$J$2:$J$142)) ->  | G57: 0 | M57: 0 | Q57: 0 | T57: 0 | AA57: ابيض TM-IMG-63 كروشيه 6.3cm | AC57: اسود كروشيه 5.5cm | AD57: اسود كروشيه 5.5cm
C58: =IF(B58="","",SUMIF('الرصيد الثابت'!$D$2:$D$142,B58,'الرصيد الثابت'!$H$2:$H$142)) ->  | D58: =IF(B58="","",SUMIF('الرصيد الثابت'!$D$2:$D$142,B58,'الرصيد الثابت'!$I$2:$I$142)) ->  | E58: =IF(B58="","",SUMIF('الرصيد الثابت'!$D$2:$D$142,B58,'الرصيد الثابت'!$J$2:$J$142)) ->  | G58: 0 | M58: 0 | Q58: 0 | T58: 0 | AA58: ابيض TM-IMG-65 كروشيه 6.5cm | AC58: اسود كروشيه 5cm | AD58: اسود كروشيه 5cm
C59: =IF(B59="","",SUMIF('الرصيد الثابت'!$D$2:$D$142,B59,'الرصيد الثابت'!$H$2:$H$142)) ->  | D59: =IF(B59="","",SUMIF('الرصيد الثابت'!$D$2:$D$142,B59,'الرصيد الثابت'!$I$2:$I$142)) ->  | E59: =IF(B59="","",SUMIF('الرصيد الثابت'!$D$2:$D$142,B59,'الرصيد الثابت'!$J$2:$J$142)) ->  | G59: 0 | M59: 0 | Q59: 0 | T59: 0 | AA59: ابيض TM-IMG-70 كروشيه 7cm | AC59: اسود كروشيه 4.8cm | AD59: اسود كروشيه 4.8cm
C60: =IF(B60="","",SUMIF('الرصيد الثابت'!$D$2:$D$142,B60,'الرصيد الثابت'!$H$2:$H$142)) ->  | D60: =IF(B60="","",SUMIF('الرصيد الثابت'!$D$2:$D$142,B60,'الرصيد الثابت'!$I$2:$I$142)) ->  | E60: =IF(B60="","",SUMIF('الرصيد الثابت'!$D$2:$D$142,B60,'الرصيد الثابت'!$J$2:$J$142)) ->  | G60: 0 | M60: 0 | Q60: 0 | T60: 0 | AA60: ابيض TM-IMG-82 كروشيه 8.2cm | AC60: اسود كروشيه 4.5cm | AD60: اسود كروشيه 4.5cm
C61: =IF(B61="","",SUMIF('الرصيد الثابت'!$D$2:$D$142,B61,'الرصيد الثابت'!$H$2:$H$142)) ->  | D61: =IF(B61="","",SUMIF('الرصيد الثابت'!$D$2:$D$142,B61,'الرصيد الثابت'!$I$2:$I$142)) ->  | E61: =IF(B61="","",SUMIF('الرصيد الثابت'!$D$2:$D$142,B61,'الرصيد الثابت'!$J$2:$J$142)) ->  | G61: 0 | M61: 0 | Q61: 0 | T61: 0 | AA61: ابيض فلاش كروشيه 2cm | AC61: اسود كروشيه 4cm | AD61: اسود كروشيه 4cm
C62: =IF(B62="","",SUMIF('الرصيد الثابت'!$D$2:$D$142,B62,'الرصيد الثابت'!$H$2:$H$142)) ->  | D62: =IF(B62="","",SUMIF('الرصيد الثابت'!$D$2:$D$142,B62,'الرصيد الثابت'!$I$2:$I$142)) ->  | E62: =IF(B62="","",SUMIF('الرصيد الثابت'!$D$2:$D$142,B62,'الرصيد الثابت'!$J$2:$J$142)) ->  | G62: 0 | M62: 0 | Q62: 0 | T62: 0 | AA62: ابيض فلاش كروشيه 3.5cm | AC62: اسود كروشيه 3.5cm | AD62: اسود كروشيه 3.5cm
C63: =IF(B63="","",SUMIF('الرصيد الثابت'!$D$2:$D$142,B63,'الرصيد الثابت'!$H$2:$H$142)) ->  | D63: =IF(B63="","",SUMIF('الرصيد الثابت'!$D$2:$D$142,B63,'الرصيد الثابت'!$I$2:$I$142)) ->  | E63: =IF(B63="","",SUMIF('الرصيد الثابت'!$D$2:$D$142,B63,'الرصيد الثابت'!$J$2:$J$142)) ->  | G63: 0 | M63: 0 | Q63: 0 | T63: 0 | AA63: ابيض فلاش كروشيه 4.5cm | AC63: اسود كروشيه 3cm | AD63: اسود كروشيه 3cm
C64: =IF(B64="","",SUMIF('الرصيد الثابت'!$D$2:$D$142,B64,'الرصيد الثابت'!$H$2:$H$142)) ->  | D64: =IF(B64="","",SUMIF('الرصيد الثابت'!$D$2:$D$142,B64,'الرصيد الثابت'!$I$2:$I$142)) ->  | E64: =IF(B64="","",SUMIF('الرصيد الثابت'!$D$2:$D$142,B64,'الرصيد الثابت'!$J$2:$J$142)) ->  | G64: 0 | M64: 0 | Q64: 0 | T64: 0 | AA64: ابيض فلاش كروشيه 5cm | AC64: اسود كروشيه 2.5cm | AD64: اسود كروشيه 2.5cm
C65: =IF(B65="","",SUMIF('الرصيد الثابت'!$D$2:$D$142,B65,'الرصيد الثابت'!$H$2:$H$142)) ->  | D65: =IF(B65="","",SUMIF('الرصيد الثابت'!$D$2:$D$142,B65,'الرصيد الثابت'!$I$2:$I$142)) ->  | E65: =IF(B65="","",SUMIF('الرصيد الثابت'!$D$2:$D$142,B65,'الرصيد الثابت'!$J$2:$J$142)) ->  | G65: 0 | M65: 0 | Q65: 0 | T65: 0 | AA65: ابيض كانون كروشيه 4.5cm | AC65: اسود كروشيه 2cm | AD65: اسود كروشيه 2cm
C66: =IF(B66="","",SUMIF('الرصيد الثابت'!$D$2:$D$142,B66,'الرصيد الثابت'!$H$2:$H$142)) ->  | D66: =IF(B66="","",SUMIF('الرصيد الثابت'!$D$2:$D$142,B66,'الرصيد الثابت'!$I$2:$I$142)) ->  | E66: =IF(B66="","",SUMIF('الرصيد الثابت'!$D$2:$D$142,B66,'الرصيد الثابت'!$J$2:$J$142)) ->  | G66: 0 | M66: 0 | Q66: 0 | T66: 0 | AA66: ابيض كانون كروشيه 5.5cm | AC66: اسود كروشيه 1.7cm | AD66: اسود كروشيه 1.7cm
C67: =IF(B67="","",SUMIF('الرصيد الثابت'!$D$2:$D$142,B67,'الرصيد الثابت'!$H$2:$H$142)) ->  | D67: =IF(B67="","",SUMIF('الرصيد الثابت'!$D$2:$D$142,B67,'الرصيد الثابت'!$I$2:$I$142)) ->  | E67: =IF(B67="","",SUMIF('الرصيد الثابت'!$D$2:$D$142,B67,'الرصيد الثابت'!$J$2:$J$142)) ->  | G67: 0 | M67: =SUM(N67*L67) -> 0 | Q67: 0 | T67: 0 | AA67: ابيض510 كروشيه 3cm | AC67: اسود كروشيه 1.5cm | AD67: اسود كروشيه 1.5cm
C68: =IF(B68="","",SUMIF('الرصيد الثابت'!$D$2:$D$142,B68,'الرصيد الثابت'!$H$2:$H$142)) ->  | D68: =IF(B68="","",SUMIF('الرصيد الثابت'!$D$2:$D$142,B68,'الرصيد الثابت'!$I$2:$I$142)) ->  | E68: =IF(B68="","",SUMIF('الرصيد الثابت'!$D$2:$D$142,B68,'الرصيد الثابت'!$J$2:$J$142)) ->  | G68: =SUM(H68*F68) -> 0 | M68: 0 | Q68: =SUM(F68-L68) -> 0 | T68: 0 | AA68: ابيض510 كروشيه 4cm | AC68: اسود كروشيه 1.3cm | AD68: اسود كروشيه 1.3cm
C69: =IF(B69="","",SUMIF('الرصيد الثابت'!$D$2:$D$142,B69,'الرصيد الثابت'!$H$2:$H$142)) ->  | D69: =IF(B69="","",SUMIF('الرصيد الثابت'!$D$2:$D$142,B69,'الرصيد الثابت'!$I$2:$I$142)) ->  | E69: =IF(B69="","",SUMIF('الرصيد الثابت'!$D$2:$D$142,B69,'الرصيد الثابت'!$J$2:$J$142)) ->  | G69: 0 | M69: 0 | Q69: 0 | T69: 0 | AA69: احمر كورد كبسله بلاستك | AC69: اسود كروشيه 1cm | AD69: اسود كروشيه 1cm
C70: =IF(B70="","",SUMIF('الرصيد الثابت'!$D$2:$D$142,B70,'الرصيد الثابت'!$H$2:$H$142)) ->  | D70: =IF(B70="","",SUMIF('الرصيد الثابت'!$D$2:$D$142,B70,'الرصيد الثابت'!$I$2:$I$142)) ->  | E70: =IF(B70="","",SUMIF('الرصيد الثابت'!$D$2:$D$142,B70,'الرصيد الثابت'!$J$2:$J$142)) ->  | G70: 0 | M70: 0 | Q70: 0 | T70: 0 | AA70: احمر كورد مبطط | AC70: اسود كروشيه 8mm | AD70: اسود كروشيه 8mm
C71: =IF(B71="","",SUMIF('الرصيد الثابت'!$D$2:$D$142,B71,'الرصيد الثابت'!$H$2:$H$142)) ->  | D71: =IF(B71="","",SUMIF('الرصيد الثابت'!$D$2:$D$142,B71,'الرصيد الثابت'!$I$2:$I$142)) ->  | E71: =IF(B71="","",SUMIF('الرصيد الثابت'!$D$2:$D$142,B71,'الرصيد الثابت'!$J$2:$J$142)) ->  | G71: 0 | M71: 0 | Q71: 0 | T71: =SUM(U71*S71) -> 0 | AA71: اخضر كورد مبطط | AC71: اسود كروشيه 3.8cm | AD71: اسود كروشيه 3.8cm
C72: =IF(B72="","",SUMIF('الرصيد الثابت'!$D$2:$D$142,B72,'الرصيد الثابت'!$H$2:$H$142)) ->  | D72: =IF(B72="","",SUMIF('الرصيد الثابت'!$D$2:$D$142,B72,'الرصيد الثابت'!$I$2:$I$142)) ->  | E72: =IF(B72="","",SUMIF('الرصيد الثابت'!$D$2:$D$142,B72,'الرصيد الثابت'!$J$2:$J$142)) ->  | G72: 0 | M72: 0 | Q72: 0 | T72: 0 | AA72: اخضر X زيتي بايبينج 1cm | AC72: اسود كروشيه .8m | AD72: اسود كروشيه .8m
C73: =IF(B73="","",SUMIF('الرصيد الثابت'!$D$2:$D$142,B73,'الرصيد الثابت'!$H$2:$H$142)) ->  | D73: =IF(B73="","",SUMIF('الرصيد الثابت'!$D$2:$D$142,B73,'الرصيد الثابت'!$I$2:$I$142)) ->  | E73: =IF(B73="","",SUMIF('الرصيد الثابت'!$D$2:$D$142,B73,'الرصيد الثابت'!$J$2:$J$142)) ->  | G73: 0 | M73: 0 | Q73: 0 | T73: 0 | AA73: اسود استك طبي 2.26 | AC73: اسود كروشيه 1.2cm | AD73: اسود كروشيه 1.2cm
C74: =IF(B74="","",SUMIF('الرصيد الثابت'!$D$2:$D$142,B74,'الرصيد الثابت'!$H$2:$H$142)) ->  | D74: =IF(B74="","",SUMIF('الرصيد الثابت'!$D$2:$D$142,B74,'الرصيد الثابت'!$I$2:$I$142)) ->  | E74: =IF(B74="","",SUMIF('الرصيد الثابت'!$D$2:$D$142,B74,'الرصيد الثابت'!$J$2:$J$142)) ->  | G74: 0 | M74: 0 | Q74: 0 | T74: 0 | AA74: اسود استك طبي 2.98 | AC74: اسود كروشيه .4m | AD74: اسود كروشيه .4m
C75: =IF(B75="","",SUMIF('الرصيد الثابت'!$D$2:$D$142,B75,'الرصيد الثابت'!$H$2:$H$142)) ->  | D75: =IF(B75="","",SUMIF('الرصيد الثابت'!$D$2:$D$142,B75,'الرصيد الثابت'!$I$2:$I$142)) ->  | E75: =IF(B75="","",SUMIF('الرصيد الثابت'!$D$2:$D$142,B75,'الرصيد الثابت'!$J$2:$J$142)) ->  | G75: 0 | M75: 0 | Q75: 0 | T75: 0 | AA75: اسود كروشيه 1.2cm | AC75: اسود كروشيه 1.4cm | AD75: اسود كروشيه 1.4cm
C76: =IF(B76="","",SUMIF('الرصيد الثابت'!$D$2:$D$142,B76,'الرصيد الثابت'!$H$2:$H$142)) ->  | D76: =IF(B76="","",SUMIF('الرصيد الثابت'!$D$2:$D$142,B76,'الرصيد الثابت'!$I$2:$I$142)) ->  | E76: =IF(B76="","",SUMIF('الرصيد الثابت'!$D$2:$D$142,B76,'الرصيد الثابت'!$J$2:$J$142)) ->  | G76: 0 | M76: 0 | Q76: 0 | T76: 0 | AA76: اسود كروشيه 1.4cm | AC76: اسود كروشيه 2.2cm | AD76: اسود كروشيه 2.2cm
C77: =IF(B77="","",SUMIF('الرصيد الثابت'!$D$2:$D$142,B77,'الرصيد الثابت'!$H$2:$H$142)) ->  | D77: =IF(B77="","",SUMIF('الرصيد الثابت'!$D$2:$D$142,B77,'الرصيد الثابت'!$I$2:$I$142)) ->  | E77: =IF(B77="","",SUMIF('الرصيد الثابت'!$D$2:$D$142,B77,'الرصيد الثابت'!$J$2:$J$142)) ->  | G77: 0 | M77: 0 | Q77: 0 | T77: 0 | AA77: اسود كروشيه 1.5cm | AC77: اسود كورد 1cm | AD77: اسود كورد 1cm
C78: =IF(B78="","",SUMIF('الرصيد الثابت'!$D$2:$D$142,B78,'الرصيد الثابت'!$H$2:$H$142)) ->  | D78: =IF(B78="","",SUMIF('الرصيد الثابت'!$D$2:$D$142,B78,'الرصيد الثابت'!$I$2:$I$142)) ->  | E78: =IF(B78="","",SUMIF('الرصيد الثابت'!$D$2:$D$142,B78,'الرصيد الثابت'!$J$2:$J$142)) ->  | G78: 0 | M78: 0 | Q78: 0 | T78: 0 | AA78: اسود كروشيه 1.7cm | AC78: اسود كورد مبطط | AD78: اسود كورد مبطط
C79: =IF(B79="","",SUMIF('الرصيد الثابت'!$D$2:$D$142,B79,'الرصيد الثابت'!$H$2:$H$142)) ->  | D79: =IF(B79="","",SUMIF('الرصيد الثابت'!$D$2:$D$142,B79,'الرصيد الثابت'!$I$2:$I$142)) ->  | E79: =IF(B79="","",SUMIF('الرصيد الثابت'!$D$2:$D$142,B79,'الرصيد الثابت'!$J$2:$J$142)) ->  | G79: 0 | M79: 0 | Q79: 0 | T79: 0 | AA79: اسود كروشيه 1cm | AC79: اسود كورد مبروم | AD79: اسود كورد مبروم
C80: =IF(B80="","",SUMIF('الرصيد الثابت'!$D$2:$D$142,B80,'الرصيد الثابت'!$H$2:$H$142)) ->  | D80: =IF(B80="","",SUMIF('الرصيد الثابت'!$D$2:$D$142,B80,'الرصيد الثابت'!$I$2:$I$142)) ->  | E80: =IF(B80="","",SUMIF('الرصيد الثابت'!$D$2:$D$142,B80,'الرصيد الثابت'!$J$2:$J$142)) ->  | G80: 0 | M80: 0 | Q80: 0 | T80: 0 | AA80: اسود كروشيه 2.2cm | AC80: اسود ووفين ساندوتش 1.5cm | AD80: اسود ووفين ساندوتش 1.5cm
C81: =IF(B81="","",SUMIF('الرصيد الثابت'!$D$2:$D$142,B81,'الرصيد الثابت'!$H$2:$H$142)) ->  | D81: =IF(B81="","",SUMIF('الرصيد الثابت'!$D$2:$D$142,B81,'الرصيد الثابت'!$I$2:$I$142)) ->  | E81: =IF(B81="","",SUMIF('الرصيد الثابت'!$D$2:$D$142,B81,'الرصيد الثابت'!$J$2:$J$142)) ->  | G81: 0 | M81: 0 | Q81: 0 | T81: 0 | AA81: اسود كروشيه 2.5cm | AC81: اسود ووفين ساندوتش 1.8cm | AD81: اسود ووفين ساندوتش 1.8cm
C82: =IF(B82="","",SUMIF('الرصيد الثابت'!$D$2:$D$142,B82,'الرصيد الثابت'!$H$2:$H$142)) ->  | D82: =IF(B82="","",SUMIF('الرصيد الثابت'!$D$2:$D$142,B82,'الرصيد الثابت'!$I$2:$I$142)) ->  | E82: =IF(B82="","",SUMIF('الرصيد الثابت'!$D$2:$D$142,B82,'الرصيد الثابت'!$J$2:$J$142)) ->  | G82: 0 | M82: 0 | Q82: 0 | T82: 0 | AA82: اسود كروشيه 2cm | AC82: اسود ووفين ساندوتش 1.7cm | AD82: اسود ووفين ساندوتش 1.7cm
C83: =IF(B83="","",SUMIF('الرصيد الثابت'!$D$2:$D$142,B83,'الرصيد الثابت'!$H$2:$H$142)) ->  | D83: =IF(B83="","",SUMIF('الرصيد الثابت'!$D$2:$D$142,B83,'الرصيد الثابت'!$I$2:$I$142)) ->  | E83: =IF(B83="","",SUMIF('الرصيد الثابت'!$D$2:$D$142,B83,'الرصيد الثابت'!$J$2:$J$142)) ->  | G83: 0 | M83: 0 | Q83: 0 | T83: 0 | AA83: اسود كروشيه 3.5cm | AC83: اسود ووفين ساندوتش 2cm | AD83: اسود ووفين ساندوتش 2cm
C84: =IF(B84="","",SUMIF('الرصيد الثابت'!$D$2:$D$142,B84,'الرصيد الثابت'!$H$2:$H$142)) ->  | D84: =IF(B84="","",SUMIF('الرصيد الثابت'!$D$2:$D$142,B84,'الرصيد الثابت'!$I$2:$I$142)) ->  | E84: =IF(B84="","",SUMIF('الرصيد الثابت'!$D$2:$D$142,B84,'الرصيد الثابت'!$J$2:$J$142)) ->  | G84: 0 | M84: 0 | Q84: 0 | T84: 0 | AA84: اسود كروشيه 3.8cm | AC84: اسود استك طبي 2,98 | AD84: اسود استك طبي 2,98
C85: =IF(B85="","",SUMIF('الرصيد الثابت'!$D$2:$D$142,B85,'الرصيد الثابت'!$H$2:$H$142)) ->  | D85: =IF(B85="","",SUMIF('الرصيد الثابت'!$D$2:$D$142,B85,'الرصيد الثابت'!$I$2:$I$142)) ->  | E85: =IF(B85="","",SUMIF('الرصيد الثابت'!$D$2:$D$142,B85,'الرصيد الثابت'!$J$2:$J$142)) ->  | G85: 0 | M85: 0 | Q85: 0 | T85: 0 | AA85: اسود كروشيه 3cm | AC85: اسود استك طبي 2,26 | AD85: اسود استك طبي 2,26
C86: =IF(B86="","",SUMIF('الرصيد الثابت'!$D$2:$D$142,B86,'الرصيد الثابت'!$H$2:$H$142)) ->  | D86: =IF(B86="","",SUMIF('الرصيد الثابت'!$D$2:$D$142,B86,'الرصيد الثابت'!$I$2:$I$142)) ->  | E86: =IF(B86="","",SUMIF('الرصيد الثابت'!$D$2:$D$142,B86,'الرصيد الثابت'!$J$2:$J$142)) ->  | G86: 0 | M86: 0 | Q86: 0 | T86: 0 | AA86: اسود كروشيه 4.5cm | AC86: اسود كروشيه 5.8cm | AD86: اسود كروشيه 5.8cm
C87: =IF(B87="","",SUMIF('الرصيد الثابت'!$D$2:$D$142,B87,'الرصيد الثابت'!$H$2:$H$142)) ->  | D87: =IF(B87="","",SUMIF('الرصيد الثابت'!$D$2:$D$142,B87,'الرصيد الثابت'!$I$2:$I$142)) ->  | E87: =IF(B87="","",SUMIF('الرصيد الثابت'!$D$2:$D$142,B87,'الرصيد الثابت'!$J$2:$J$142)) ->  | G87: 0 | M87: 0 | Q87: 0 | T87: 0 | AA87: اسود كروشيه 4.8cm | AC87: اسود استريب كروشيه 3cm | AD87: اسود استريب كروشيه 3cm
C88: =IF(B88="","",SUMIF('الرصيد الثابت'!$D$2:$D$142,B88,'الرصيد الثابت'!$H$2:$H$142)) ->  | D88: =IF(B88="","",SUMIF('الرصيد الثابت'!$D$2:$D$142,B88,'الرصيد الثابت'!$I$2:$I$142)) ->  | E88: =IF(B88="","",SUMIF('الرصيد الثابت'!$D$2:$D$142,B88,'الرصيد الثابت'!$J$2:$J$142)) ->  | G88: 0 | M88: 0 | Q88: 0 | T88: 0 | AA88: اسود كروشيه 4cm | AC88: اسود فلاش كروشيه 5.5cm | AD88: اسود فلاش كروشيه 5.5cm
C89: =IF(B89="","",SUMIF('الرصيد الثابت'!$D$2:$D$142,B89,'الرصيد الثابت'!$H$2:$H$142)) ->  | D89: =IF(B89="","",SUMIF('الرصيد الثابت'!$D$2:$D$142,B89,'الرصيد الثابت'!$I$2:$I$142)) ->  | E89: =IF(B89="","",SUMIF('الرصيد الثابت'!$D$2:$D$142,B89,'الرصيد الثابت'!$J$2:$J$142)) ->  | G89: 0 | M89: 0 | Q89: 0 | T89: 0 | AA89: اسود كروشيه 4m | AC89: اسود فلاش كروشيه 5cm | AD89: اسود فلاش كروشيه 5cm
C90: =IF(B90="","",SUMIF('الرصيد الثابت'!$D$2:$D$142,B90,'الرصيد الثابت'!$H$2:$H$142)) ->  | D90: =IF(B90="","",SUMIF('الرصيد الثابت'!$D$2:$D$142,B90,'الرصيد الثابت'!$I$2:$I$142)) ->  | E90: =IF(B90="","",SUMIF('الرصيد الثابت'!$D$2:$D$142,B90,'الرصيد الثابت'!$J$2:$J$142)) ->  | G90: 0 | M90: 0 | Q90: 0 | T90: 0 | AA90: اسود كروشيه 5.8cm | AC90: اسود فلاش كروشيه 3.5cm | AD90: اسود فلاش كروشيه 3.5cm
C91: =IF(B91="","",SUMIF('الرصيد الثابت'!$D$2:$D$142,B91,'الرصيد الثابت'!$H$2:$H$142)) ->  | D91: =IF(B91="","",SUMIF('الرصيد الثابت'!$D$2:$D$142,B91,'الرصيد الثابت'!$I$2:$I$142)) ->  | E91: =IF(B91="","",SUMIF('الرصيد الثابت'!$D$2:$D$142,B91,'الرصيد الثابت'!$J$2:$J$142)) ->  | G91: 0 | M91: 0 | Q91: 0 | T91: 0 | AA91: اسود كروشيه 8m | AC91: اسود510 كروشيه 5cm | AD91: اسود510 كروشيه 5cm
C92: =IF(B92="","",SUMIF('الرصيد الثابت'!$D$2:$D$142,B92,'الرصيد الثابت'!$H$2:$H$142)) ->  | D92: =IF(B92="","",SUMIF('الرصيد الثابت'!$D$2:$D$142,B92,'الرصيد الثابت'!$I$2:$I$142)) ->  | E92: =IF(B92="","",SUMIF('الرصيد الثابت'!$D$2:$D$142,B92,'الرصيد الثابت'!$J$2:$J$142)) ->  | G92: 0 | M92: 0 | Q92: 0 | T92: 0 | AA92: اسود كروشيه 8mm | AC92: اسود510 كروشيه 3.5cm | AD92: اسود510 كروشيه 3.5cm
C93: =IF(B93="","",SUMIF('الرصيد الثابت'!$D$2:$D$142,B93,'الرصيد الثابت'!$H$2:$H$142)) ->  | D93: =IF(B93="","",SUMIF('الرصيد الثابت'!$D$2:$D$142,B93,'الرصيد الثابت'!$I$2:$I$142)) ->  | E93: =IF(B93="","",SUMIF('الرصيد الثابت'!$D$2:$D$142,B93,'الرصيد الثابت'!$J$2:$J$142)) ->  | G93: 0 | M93: 0 | Q93: 0 | T93: 0 | AA93: اسود كورد 1cm | AC93: الالوان كورد 1.2cm | AD93: الالوان كورد 1.2cm
C94: =IF(B94="","",SUMIF('الرصيد الثابت'!$D$2:$D$142,B94,'الرصيد الثابت'!$H$2:$H$142)) ->  | D94: =IF(B94="","",SUMIF('الرصيد الثابت'!$D$2:$D$142,B94,'الرصيد الثابت'!$I$2:$I$142)) ->  | E94: =IF(B94="","",SUMIF('الرصيد الثابت'!$D$2:$D$142,B94,'الرصيد الثابت'!$J$2:$J$142)) ->  | G94: 0 | M94: 0 | Q94: 0 | T94: 0 | AA94: اسود كورد مبروم | AC94: اورنج كورد 1.2cm | AD94: اورنج كورد 1.2cm
C95: =IF(B95="","",SUMIF('الرصيد الثابت'!$D$2:$D$142,B95,'الرصيد الثابت'!$H$2:$H$142)) ->  | D95: =IF(B95="","",SUMIF('الرصيد الثابت'!$D$2:$D$142,B95,'الرصيد الثابت'!$I$2:$I$142)) ->  | E95: =IF(B95="","",SUMIF('الرصيد الثابت'!$D$2:$D$142,B95,'الرصيد الثابت'!$J$2:$J$142)) ->  | G95: 0 | M95: 0 | Q95: 0 | T95: 0 | AA95: اسود كورد مبطط | AC95: اورنح كورد مبطط | AD95: اورنح كورد مبطط
C96: =IF(B96="","",SUMIF('الرصيد الثابت'!$D$2:$D$142,B96,'الرصيد الثابت'!$H$2:$H$142)) ->  | D96: =IF(B96="","",SUMIF('الرصيد الثابت'!$D$2:$D$142,B96,'الرصيد الثابت'!$I$2:$I$142)) ->  | E96: =IF(B96="","",SUMIF('الرصيد الثابت'!$D$2:$D$142,B96,'الرصيد الثابت'!$J$2:$J$142)) ->  | G96: 0 | M96: 0 | Q96: 0 | T96: 0 | AA96: اسود ووفين ساندوتش 1.5cm | AC96: بينك ووفين فستون 1cm | AD96: بينك ووفين فستون 1cm
C97: =IF(B97="","",SUMIF('الرصيد الثابت'!$D$2:$D$142,B97,'الرصيد الثابت'!$H$2:$H$142)) ->  | D97: =IF(B97="","",SUMIF('الرصيد الثابت'!$D$2:$D$142,B97,'الرصيد الثابت'!$I$2:$I$142)) ->  | E97: =IF(B97="","",SUMIF('الرصيد الثابت'!$D$2:$D$142,B97,'الرصيد الثابت'!$J$2:$J$142)) ->  | G97: 0 | M97: 0 | Q97: 0 | T97: 0 | AA97: اسود ووفين ساندوتش 1.7cm | AC97: بينك ووفين فستون 1.3cm | AD97: بينك ووفين فستون 1.3cm
C98: =IF(B98="","",SUMIF('الرصيد الثابت'!$D$2:$D$142,B98,'الرصيد الثابت'!$H$2:$H$142)) ->  | D98: =IF(B98="","",SUMIF('الرصيد الثابت'!$D$2:$D$142,B98,'الرصيد الثابت'!$I$2:$I$142)) ->  | E98: =IF(B98="","",SUMIF('الرصيد الثابت'!$D$2:$D$142,B98,'الرصيد الثابت'!$J$2:$J$142)) ->  | G98: 0 | M98: 0 | Q98: 0 | T98: 0 | AA98: اسود ووفين ساندوتش 1.8cm | AC98: رصاصي استريب كروشيه 3cm | AD98: رصاصي استريب كروشيه 3cm
C99: =IF(B99="","",SUMIF('الرصيد الثابت'!$D$2:$D$142,B99,'الرصيد الثابت'!$H$2:$H$142)) ->  | D99: =IF(B99="","",SUMIF('الرصيد الثابت'!$D$2:$D$142,B99,'الرصيد الثابت'!$I$2:$I$142)) ->  | E99: =IF(B99="","",SUMIF('الرصيد الثابت'!$D$2:$D$142,B99,'الرصيد الثابت'!$J$2:$J$142)) ->  | G99: 0 | M99: 0 | Q99: 0 | T99: 0 | AA99: اسود ووفين ساندوتش 2cm | AC99: زهري كورد مبطط | AD99: زهري كورد مبطط
C100: =IF(B100="","",SUMIF('الرصيد الثابت'!$D$2:$D$142,B100,'الرصيد الثابت'!$H$2:$H$142)) ->  | D100: =IF(B100="","",SUMIF('الرصيد الثابت'!$D$2:$D$142,B100,'الرصيد الثابت'!$I$2:$I$142)) ->  | E100: =IF(B100="","",SUMIF('الرصيد الثابت'!$D$2:$D$142,B100,'الرصيد الثابت'!$J$2:$J$142)) ->  | G100: 0 | M100: 0 | Q100: 0 | T100: 0 | AA100: اسود كروشيه 5.8cm | AC100: شاركول كورد مبطط | AD100: شاركول كورد مبطط
C101: =IF(B101="","",SUMIF('الرصيد الثابت'!$D$2:$D$142,B101,'الرصيد الثابت'!$H$2:$H$142)) ->  | D101: =IF(B101="","",SUMIF('الرصيد الثابت'!$D$2:$D$142,B101,'الرصيد الثابت'!$I$2:$I$142)) ->  | E101: =IF(B101="","",SUMIF('الرصيد الثابت'!$D$2:$D$142,B101,'الرصيد الثابت'!$J$2:$J$142)) ->  | G101: 0 | M101: 0 | Q101: 0 | T101: 0 | AA101: اسود 510 كروشيه 2.3cm | AC101: موف غامق كروشيه 1.6cm | AD101: موف غامق كروشيه 1.6cm
C102: =IF(B102="","",SUMIF('الرصيد الثابت'!$D$2:$D$142,B102,'الرصيد الثابت'!$H$2:$H$142)) ->  | D102: =IF(B102="","",SUMIF('الرصيد الثابت'!$D$2:$D$142,B102,'الرصيد الثابت'!$I$2:$I$142)) ->  | E102: =IF(B102="","",SUMIF('الرصيد الثابت'!$D$2:$D$142,B102,'الرصيد الثابت'!$J$2:$J$142)) ->  | G102: 0 | M102: 0 | Q102: 0 | T102: 0 | AA102: اسود 510 كروشيه 2.5cm | AC102: كروشيه 1.8cm | AD102: كروشيه 1.8cm
C103: =IF(B103="","",SUMIF('الرصيد الثابت'!$D$2:$D$142,B103,'الرصيد الثابت'!$H$2:$H$142)) ->  | D103: =IF(B103="","",SUMIF('الرصيد الثابت'!$D$2:$D$142,B103,'الرصيد الثابت'!$I$2:$I$142)) ->  | E103: =IF(B103="","",SUMIF('الرصيد الثابت'!$D$2:$D$142,B103,'الرصيد الثابت'!$J$2:$J$142)) ->  | G103: 0 | M103: 0 | Q103: 0 | T103: 0 | AA103: اسود 510 كروشيه 3 cm | AC103: كروشيه 1.9cm | AD103: كروشيه 1.9cm
C104: =IF(B104="","",SUMIF('الرصيد الثابت'!$D$2:$D$142,B104,'الرصيد الثابت'!$H$2:$H$142)) ->  | D104: =IF(B104="","",SUMIF('الرصيد الثابت'!$D$2:$D$142,B104,'الرصيد الثابت'!$I$2:$I$142)) ->  | E104: =IF(B104="","",SUMIF('الرصيد الثابت'!$D$2:$D$142,B104,'الرصيد الثابت'!$J$2:$J$142)) ->  | G104: 0 | M104: 0 | Q104: 0 | T104: 0 | AA104: اسود 510 كروشيه 4.5cm | AC104: موف فاتح كروشيه 4.6 | AD104: موف فاتح كروشيه 4.6
C105: =IF(B105="","",SUMIF('الرصيد الثابت'!$D$2:$D$142,B105,'الرصيد الثابت'!$H$2:$H$142)) ->  | D105: =IF(B105="","",SUMIF('الرصيد الثابت'!$D$2:$D$142,B105,'الرصيد الثابت'!$I$2:$I$142)) ->  | E105: =IF(B105="","",SUMIF('الرصيد الثابت'!$D$2:$D$142,B105,'الرصيد الثابت'!$J$2:$J$142)) ->  | G105: 0 | M105: 0 | Q105: 0 | T105: 0 | AA105: اسود 510 كروشيه 4cm
C106: =IF(B106="","",SUMIF('الرصيد الثابت'!$D$2:$D$142,B106,'الرصيد الثابت'!$H$2:$H$142)) ->  | D106: =IF(B106="","",SUMIF('الرصيد الثابت'!$D$2:$D$142,B106,'الرصيد الثابت'!$I$2:$I$142)) ->  | E106: =IF(B106="","",SUMIF('الرصيد الثابت'!$D$2:$D$142,B106,'الرصيد الثابت'!$J$2:$J$142)) ->  | G106: 0 | M106: 0 | Q106: 0 | T106: 0 | AA106: اسود 510 كروشيه 5.2cm
C107: =IF(B107="","",SUMIF('الرصيد الثابت'!$D$2:$D$142,B107,'الرصيد الثابت'!$H$2:$H$142)) ->  | D107: =IF(B107="","",SUMIF('الرصيد الثابت'!$D$2:$D$142,B107,'الرصيد الثابت'!$I$2:$I$142)) ->  | E107: =IF(B107="","",SUMIF('الرصيد الثابت'!$D$2:$D$142,B107,'الرصيد الثابت'!$J$2:$J$142)) ->  | G107: 0 | M107: 0 | Q107: 0 | T107: 0 | AA107: اسود 510 كروشيه 5.5cm
C108: =IF(B108="","",SUMIF('الرصيد الثابت'!$D$2:$D$142,B108,'الرصيد الثابت'!$H$2:$H$142)) ->  | D108: =IF(B108="","",SUMIF('الرصيد الثابت'!$D$2:$D$142,B108,'الرصيد الثابت'!$I$2:$I$142)) ->  | E108: =IF(B108="","",SUMIF('الرصيد الثابت'!$D$2:$D$142,B108,'الرصيد الثابت'!$J$2:$J$142)) ->  | G108: 0 | M108: 0 | Q108: 0 | T108: 0 | AA108: اسود 611.2 كروشيه 2cm
C109: =IF(B109="","",SUMIF('الرصيد الثابت'!$D$2:$D$142,B109,'الرصيد الثابت'!$H$2:$H$142)) ->  | D109: =IF(B109="","",SUMIF('الرصيد الثابت'!$D$2:$D$142,B109,'الرصيد الثابت'!$I$2:$I$142)) ->  | E109: =IF(B109="","",SUMIF('الرصيد الثابت'!$D$2:$D$142,B109,'الرصيد الثابت'!$J$2:$J$142)) ->  | G109: 0 | M109: 0 | Q109: 0 | T109: 0 | AA109: اسود B-IMG-13 كروشيه 1.3cm
C110: =IF(B110="","",SUMIF('الرصيد الثابت'!$D$2:$D$142,B110,'الرصيد الثابت'!$H$2:$H$142)) ->  | D110: =IF(B110="","",SUMIF('الرصيد الثابت'!$D$2:$D$142,B110,'الرصيد الثابت'!$I$2:$I$142)) ->  | E110: =IF(B110="","",SUMIF('الرصيد الثابت'!$D$2:$D$142,B110,'الرصيد الثابت'!$J$2:$J$142)) ->  | G110: 0 | M110: 0 | Q110: 0 | T110: 0 | AA110: اسود CO-IMG-55 كروشيه 5.5cm
C111: =IF(B111="","",SUMIF('الرصيد الثابت'!$D$2:$D$142,B111,'الرصيد الثابت'!$H$2:$H$142)) ->  | D111: =IF(B111="","",SUMIF('الرصيد الثابت'!$D$2:$D$142,B111,'الرصيد الثابت'!$I$2:$I$142)) ->  | E111: =IF(B111="","",SUMIF('الرصيد الثابت'!$D$2:$D$142,B111,'الرصيد الثابت'!$J$2:$J$142)) ->  | G111: 0 | M111: 0 | Q111: 0 | T111: 0 | AA111: اسود FB-IMG-50 كروشيه 5cm
C112: =IF(B112="","",SUMIF('الرصيد الثابت'!$D$2:$D$142,B112,'الرصيد الثابت'!$H$2:$H$142)) ->  | D112: =IF(B112="","",SUMIF('الرصيد الثابت'!$D$2:$D$142,B112,'الرصيد الثابت'!$I$2:$I$142)) ->  | E112: =IF(B112="","",SUMIF('الرصيد الثابت'!$D$2:$D$142,B112,'الرصيد الثابت'!$J$2:$J$142)) ->  | G112: 0 | M112: 0 | Q112: 0 | T112: 0 | AA112: اسود FB-IMG-55 كروشيه 5.5cm
C113: =IF(B113="","",SUMIF('الرصيد الثابت'!$D$2:$D$142,B113,'الرصيد الثابت'!$H$2:$H$142)) ->  | D113: =IF(B113="","",SUMIF('الرصيد الثابت'!$D$2:$D$142,B113,'الرصيد الثابت'!$I$2:$I$142)) ->  | E113: =IF(B113="","",SUMIF('الرصيد الثابت'!$D$2:$D$142,B113,'الرصيد الثابت'!$J$2:$J$142)) ->  | G113: 0 | M113: 0 | Q113: 0 | T113: 0 | AA113: اسود JA-IMG-45 كروشيه 4.5cm
C114: =IF(B114="","",SUMIF('الرصيد الثابت'!$D$2:$D$142,B114,'الرصيد الثابت'!$H$2:$H$142)) ->  | D114: =IF(B114="","",SUMIF('الرصيد الثابت'!$D$2:$D$142,B114,'الرصيد الثابت'!$I$2:$I$142)) ->  | E114: =IF(B114="","",SUMIF('الرصيد الثابت'!$D$2:$D$142,B114,'الرصيد الثابت'!$J$2:$J$142)) ->  | G114: 0 | M114: 0 | Q114: 0 | T114: 0 | AA114: اسود JA-IMG-50 كروشيه 5cm
C115: =IF(B115="","",SUMIF('الرصيد الثابت'!$D$2:$D$142,B115,'الرصيد الثابت'!$H$2:$H$142)) ->  | D115: =IF(B115="","",SUMIF('الرصيد الثابت'!$D$2:$D$142,B115,'الرصيد الثابت'!$I$2:$I$142)) ->  | E115: =IF(B115="","",SUMIF('الرصيد الثابت'!$D$2:$D$142,B115,'الرصيد الثابت'!$J$2:$J$142)) ->  | G115: 0 | M115: 0 | Q115: 0 | T115: 0 | AA115: اسود SD-IMG-2.5 كروشيه 2.5cm
C116: =IF(B116="","",SUMIF('الرصيد الثابت'!$D$2:$D$142,B116,'الرصيد الثابت'!$H$2:$H$142)) ->  | D116: =IF(B116="","",SUMIF('الرصيد الثابت'!$D$2:$D$142,B116,'الرصيد الثابت'!$I$2:$I$142)) ->  | E116: =IF(B116="","",SUMIF('الرصيد الثابت'!$D$2:$D$142,B116,'الرصيد الثابت'!$J$2:$J$142)) ->  | G116: 0 | M116: 0 | Q116: 0 | T116: 0 | AA116: اسود SD-IMG-35 كروشيه 4cm
C117: =IF(B117="","",SUMIF('الرصيد الثابت'!$D$2:$D$142,B117,'الرصيد الثابت'!$H$2:$H$142)) ->  | D117: =IF(B117="","",SUMIF('الرصيد الثابت'!$D$2:$D$142,B117,'الرصيد الثابت'!$I$2:$I$142)) ->  | E117: =IF(B117="","",SUMIF('الرصيد الثابت'!$D$2:$D$142,B117,'الرصيد الثابت'!$J$2:$J$142)) ->  | G117: 0 | M117: 0 | Q117: 0 | T117: 0 | AA117: اسود X ابيض بايبينج 1cm
C118: =IF(B118="","",SUMIF('الرصيد الثابت'!$D$2:$D$142,B118,'الرصيد الثابت'!$H$2:$H$142)) ->  | D118: =IF(B118="","",SUMIF('الرصيد الثابت'!$D$2:$D$142,B118,'الرصيد الثابت'!$I$2:$I$142)) ->  | E118: =IF(B118="","",SUMIF('الرصيد الثابت'!$D$2:$D$142,B118,'الرصيد الثابت'!$J$2:$J$142)) ->  | G118: 0 | M118: 0 | Q118: 0 | T118: 0 | AA118: اسود استريب كروشيه 3cm
C119: =IF(B119="","",SUMIF('الرصيد الثابت'!$D$2:$D$142,B119,'الرصيد الثابت'!$H$2:$H$142)) ->  | D119: =IF(B119="","",SUMIF('الرصيد الثابت'!$D$2:$D$142,B119,'الرصيد الثابت'!$I$2:$I$142)) ->  | E119: =IF(B119="","",SUMIF('الرصيد الثابت'!$D$2:$D$142,B119,'الرصيد الثابت'!$J$2:$J$142)) ->  | G119: 0 | M119: 0 | Q119: 0 | T119: 0 | AA119: اسود فلاش كروشيه 3.5cm
C120: =IF(B120="","",SUMIF('الرصيد الثابت'!$D$2:$D$142,B120,'الرصيد الثابت'!$H$2:$H$142)) ->  | D120: =IF(B120="","",SUMIF('الرصيد الثابت'!$D$2:$D$142,B120,'الرصيد الثابت'!$I$2:$I$142)) ->  | E120: =IF(B120="","",SUMIF('الرصيد الثابت'!$D$2:$D$142,B120,'الرصيد الثابت'!$J$2:$J$142)) ->  | G120: 0 | M120: 0 | Q120: 0 | T120: 0 | AA120: اسود فلاش كروشيه 5.5cm
C121: =IF(B121="","",SUMIF('الرصيد الثابت'!$D$2:$D$142,B121,'الرصيد الثابت'!$H$2:$H$142)) ->  | D121: =IF(B121="","",SUMIF('الرصيد الثابت'!$D$2:$D$142,B121,'الرصيد الثابت'!$I$2:$I$142)) ->  | E121: =IF(B121="","",SUMIF('الرصيد الثابت'!$D$2:$D$142,B121,'الرصيد الثابت'!$J$2:$J$142)) ->  | G121: 0 | M121: 0 | Q121: 0 | T121: 0 | AA121: اسود فلاش كروشيه 5cm
C122: =IF(B122="","",SUMIF('الرصيد الثابت'!$D$2:$D$142,B122,'الرصيد الثابت'!$H$2:$H$142)) ->  | D122: =IF(B122="","",SUMIF('الرصيد الثابت'!$D$2:$D$142,B122,'الرصيد الثابت'!$I$2:$I$142)) ->  | E122: =IF(B122="","",SUMIF('الرصيد الثابت'!$D$2:$D$142,B122,'الرصيد الثابت'!$J$2:$J$142)) ->  | G122: 0 | M122: 0 | Q122: 0 | T122: 0 | AA122: اسود510 كروشيه 3.5cm
C123: =IF(B123="","",SUMIF('الرصيد الثابت'!$D$2:$D$142,B123,'الرصيد الثابت'!$H$2:$H$142)) ->  | D123: =IF(B123="","",SUMIF('الرصيد الثابت'!$D$2:$D$142,B123,'الرصيد الثابت'!$I$2:$I$142)) ->  | E123: =IF(B123="","",SUMIF('الرصيد الثابت'!$D$2:$D$142,B123,'الرصيد الثابت'!$J$2:$J$142)) ->  | G123: 0 | M123: 0 | Q123: 0 | T123: 0 | AA123: اسود510 كروشيه 5cm
C124: =IF(B124="","",SUMIF('الرصيد الثابت'!$D$2:$D$142,B124,'الرصيد الثابت'!$H$2:$H$142)) ->  | D124: =IF(B124="","",SUMIF('الرصيد الثابت'!$D$2:$D$142,B124,'الرصيد الثابت'!$I$2:$I$142)) ->  | E124: =IF(B124="","",SUMIF('الرصيد الثابت'!$D$2:$D$142,B124,'الرصيد الثابت'!$J$2:$J$142)) ->  | G124: 0 | M124: 0 | Q124: 0 | T124: 0 | AA124: اصفر X اخضر بايبينج 1cm
C125: =IF(B125="","",SUMIF('الرصيد الثابت'!$D$2:$D$142,B125,'الرصيد الثابت'!$H$2:$H$142)) ->  | D125: =IF(B125="","",SUMIF('الرصيد الثابت'!$D$2:$D$142,B125,'الرصيد الثابت'!$I$2:$I$142)) ->  | E125: =IF(B125="","",SUMIF('الرصيد الثابت'!$D$2:$D$142,B125,'الرصيد الثابت'!$J$2:$J$142)) ->  | G125: 0 | M125: 0 | Q125: 0 | T125: 0 | AA125: اصفر X زيتي بايبينج 1cm
C126: =IF(B126="","",SUMIF('الرصيد الثابت'!$D$2:$D$142,B126,'الرصيد الثابت'!$H$2:$H$142)) ->  | D126: =IF(B126="","",SUMIF('الرصيد الثابت'!$D$2:$D$142,B126,'الرصيد الثابت'!$I$2:$I$142)) ->  | E126: =IF(B126="","",SUMIF('الرصيد الثابت'!$D$2:$D$142,B126,'الرصيد الثابت'!$J$2:$J$142)) ->  | G126: 0 | M126: 0 | Q126: 0 | T126: 0 | AA126: الالوان كورد 1.2cm
C127: =IF(B127="","",SUMIF('الرصيد الثابت'!$D$2:$D$142,B127,'الرصيد الثابت'!$H$2:$H$142)) ->  | D127: =IF(B127="","",SUMIF('الرصيد الثابت'!$D$2:$D$142,B127,'الرصيد الثابت'!$I$2:$I$142)) ->  | E127: =IF(B127="","",SUMIF('الرصيد الثابت'!$D$2:$D$142,B127,'الرصيد الثابت'!$J$2:$J$142)) ->  | G127: 0 | M127: 0 | Q127: 0 | T127: 0 | AA127: الوان فيستون 1cm
C128: =IF(B128="","",SUMIF('الرصيد الثابت'!$D$2:$D$142,B128,'الرصيد الثابت'!$H$2:$H$142)) ->  | D128: =IF(B128="","",SUMIF('الرصيد الثابت'!$D$2:$D$142,B128,'الرصيد الثابت'!$I$2:$I$142)) ->  | E128: =IF(B128="","",SUMIF('الرصيد الثابت'!$D$2:$D$142,B128,'الرصيد الثابت'!$J$2:$J$142)) ->  | G128: 0 | M128: 0 | Q128: 0 | T128: 0 | AA128: اورنج كورد 1.2cm
C129: =IF(B129="","",SUMIF('الرصيد الثابت'!$D$2:$D$142,B129,'الرصيد الثابت'!$H$2:$H$142)) ->  | D129: =IF(B129="","",SUMIF('الرصيد الثابت'!$D$2:$D$142,B129,'الرصيد الثابت'!$I$2:$I$142)) ->  | E129: =IF(B129="","",SUMIF('الرصيد الثابت'!$D$2:$D$142,B129,'الرصيد الثابت'!$J$2:$J$142)) ->  | G129: 0 | M129: 0 | Q129: 0 | T129: 0 | AA129: اورنح كورد مبطط
C130: =IF(B130="","",SUMIF('الرصيد الثابت'!$D$2:$D$142,B130,'الرصيد الثابت'!$H$2:$H$142)) ->  | D130: =IF(B130="","",SUMIF('الرصيد الثابت'!$D$2:$D$142,B130,'الرصيد الثابت'!$I$2:$I$142)) ->  | E130: =IF(B130="","",SUMIF('الرصيد الثابت'!$D$2:$D$142,B130,'الرصيد الثابت'!$J$2:$J$142)) ->  | G130: 0 | M130: 0 | Q130: 0 | T130: 0 | AA130: بنك X اسود بايبينج 1cm
C131: =IF(B131="","",SUMIF('الرصيد الثابت'!$D$2:$D$142,B131,'الرصيد الثابت'!$H$2:$H$142)) ->  | D131: =IF(B131="","",SUMIF('الرصيد الثابت'!$D$2:$D$142,B131,'الرصيد الثابت'!$I$2:$I$142)) ->  | E131: =IF(B131="","",SUMIF('الرصيد الثابت'!$D$2:$D$142,B131,'الرصيد الثابت'!$J$2:$J$142)) ->  | G131: 0 | M131: =SUM(N131*L131) -> 0 | Q131: 0 | T131: 0 | AA131: بنك X زيتي بايبينج 1cm
C132: =IF(B132="","",SUMIF('الرصيد الثابت'!$D$2:$D$142,B132,'الرصيد الثابت'!$H$2:$H$142)) ->  | D132: =IF(B132="","",SUMIF('الرصيد الثابت'!$D$2:$D$142,B132,'الرصيد الثابت'!$I$2:$I$142)) ->  | E132: =IF(B132="","",SUMIF('الرصيد الثابت'!$D$2:$D$142,B132,'الرصيد الثابت'!$J$2:$J$142)) ->  | G132: =SUM(H132*F132) -> 0 | M132: 0 | Q132: =SUM(F132-L132) -> 0 | T132: 0 | AA132: بينك ووفين فستون 1.3cm
C133: =IF(B133="","",SUMIF('الرصيد الثابت'!$D$2:$D$142,B133,'الرصيد الثابت'!$H$2:$H$142)) ->  | D133: =IF(B133="","",SUMIF('الرصيد الثابت'!$D$2:$D$142,B133,'الرصيد الثابت'!$I$2:$I$142)) ->  | E133: =IF(B133="","",SUMIF('الرصيد الثابت'!$D$2:$D$142,B133,'الرصيد الثابت'!$J$2:$J$142)) ->  | G133: 0 | M133: 0 | Q133: 0 | T133: 0 | AA133: بينك ووفين فستون 1cm
C134: =IF(B134="","",SUMIF('الرصيد الثابت'!$D$2:$D$142,B134,'الرصيد الثابت'!$H$2:$H$142)) ->  | D134: =IF(B134="","",SUMIF('الرصيد الثابت'!$D$2:$D$142,B134,'الرصيد الثابت'!$I$2:$I$142)) ->  | E134: =IF(B134="","",SUMIF('الرصيد الثابت'!$D$2:$D$142,B134,'الرصيد الثابت'!$J$2:$J$142)) ->  | G134: 0 | M134: 0 | Q134: 0 | T134: 0 | AA134: تركواز X ابيض بايبينج 1cm
C135: =IF(B135="","",SUMIF('الرصيد الثابت'!$D$2:$D$142,B135,'الرصيد الثابت'!$H$2:$H$142)) ->  | D135: =IF(B135="","",SUMIF('الرصيد الثابت'!$D$2:$D$142,B135,'الرصيد الثابت'!$I$2:$I$142)) ->  | E135: =IF(B135="","",SUMIF('الرصيد الثابت'!$D$2:$D$142,B135,'الرصيد الثابت'!$J$2:$J$142)) ->  | G135: 0 | M135: 0 | Q135: 0 | T135: =SUM(U135*S135) -> 0 | AA135: تركواز X اسود بايبينج 1cm
C136: =IF(B136="","",SUMIF('الرصيد الثابت'!$D$2:$D$142,B136,'الرصيد الثابت'!$H$2:$H$142)) ->  | D136: =IF(B136="","",SUMIF('الرصيد الثابت'!$D$2:$D$142,B136,'الرصيد الثابت'!$I$2:$I$142)) ->  | E136: =IF(B136="","",SUMIF('الرصيد الثابت'!$D$2:$D$142,B136,'الرصيد الثابت'!$J$2:$J$142)) ->  | G136: 0 | M136: 0 | Q136: 0 | T136: 0 | AA136: رصاصي استريب كروشيه 3cm
C137: =IF(B137="","",SUMIF('الرصيد الثابت'!$D$2:$D$142,B137,'الرصيد الثابت'!$H$2:$H$142)) ->  | D137: =IF(B137="","",SUMIF('الرصيد الثابت'!$D$2:$D$142,B137,'الرصيد الثابت'!$I$2:$I$142)) ->  | E137: =IF(B137="","",SUMIF('الرصيد الثابت'!$D$2:$D$142,B137,'الرصيد الثابت'!$J$2:$J$142)) ->  | G137: 0 | M137: 0 | Q137: 0 | T137: 0 | AA137: زهري كورد مبطط
C138: =IF(B138="","",SUMIF('الرصيد الثابت'!$D$2:$D$142,B138,'الرصيد الثابت'!$H$2:$H$142)) ->  | D138: =IF(B138="","",SUMIF('الرصيد الثابت'!$D$2:$D$142,B138,'الرصيد الثابت'!$I$2:$I$142)) ->  | E138: =IF(B138="","",SUMIF('الرصيد الثابت'!$D$2:$D$142,B138,'الرصيد الثابت'!$J$2:$J$142)) ->  | G138: 0 | M138: 0 | Q138: 0 | T138: 0 | AA138: شاركول كورد مبطط
C139: =IF(B139="","",SUMIF('الرصيد الثابت'!$D$2:$D$142,B139,'الرصيد الثابت'!$H$2:$H$142)) ->  | D139: =IF(B139="","",SUMIF('الرصيد الثابت'!$D$2:$D$142,B139,'الرصيد الثابت'!$I$2:$I$142)) ->  | E139: =IF(B139="","",SUMIF('الرصيد الثابت'!$D$2:$D$142,B139,'الرصيد الثابت'!$J$2:$J$142)) ->  | G139: 0 | M139: 0 | Q139: 0 | T139: 0 | AA139: موف غامق كروشيه 1.6cm
C140: =IF(B140="","",SUMIF('الرصيد الثابت'!$D$2:$D$142,B140,'الرصيد الثابت'!$H$2:$H$142)) ->  | D140: =IF(B140="","",SUMIF('الرصيد الثابت'!$D$2:$D$142,B140,'الرصيد الثابت'!$I$2:$I$142)) ->  | E140: =IF(B140="","",SUMIF('الرصيد الثابت'!$D$2:$D$142,B140,'الرصيد الثابت'!$J$2:$J$142)) ->  | G140: 0 | M140: 0 | Q140: 0 | T140: 0
C141: =IF(B141="","",SUMIF('الرصيد الثابت'!$D$2:$D$142,B141,'الرصيد الثابت'!$H$2:$H$142)) ->  | D141: =IF(B141="","",SUMIF('الرصيد الثابت'!$D$2:$D$142,B141,'الرصيد الثابت'!$I$2:$I$142)) ->  | E141: =IF(B141="","",SUMIF('الرصيد الثابت'!$D$2:$D$142,B141,'الرصيد الثابت'!$J$2:$J$142)) ->  | G141: 0 | M141: 0 | Q141: 0 | T141: 0
C142: =IF(B142="","",SUMIF('الرصيد الثابت'!$D$2:$D$142,B142,'الرصيد الثابت'!$H$2:$H$142)) ->  | D142: =IF(B142="","",SUMIF('الرصيد الثابت'!$D$2:$D$142,B142,'الرصيد الثابت'!$I$2:$I$142)) ->  | E142: =IF(B142="","",SUMIF('الرصيد الثابت'!$D$2:$D$142,B142,'الرصيد الثابت'!$J$2:$J$142)) ->  | G142: 0 | M142: 0 | Q142: 0 | T142: 0
C143: =IF(B143="","",SUMIF('الرصيد الثابت'!$D$2:$D$142,B143,'الرصيد الثابت'!$H$2:$H$142)) ->  | D143: =IF(B143="","",SUMIF('الرصيد الثابت'!$D$2:$D$142,B143,'الرصيد الثابت'!$I$2:$I$142)) ->  | E143: =IF(B143="","",SUMIF('الرصيد الثابت'!$D$2:$D$142,B143,'الرصيد الثابت'!$J$2:$J$142)) ->  | G143: 0 | M143: 0 | Q143: 0 | T143: 0
C144: =IF(B144="","",SUMIF('الرصيد الثابت'!$D$2:$D$142,B144,'الرصيد الثابت'!$H$2:$H$142)) ->  | D144: =IF(B144="","",SUMIF('الرصيد الثابت'!$D$2:$D$142,B144,'الرصيد الثابت'!$I$2:$I$142)) ->  | E144: =IF(B144="","",SUMIF('الرصيد الثابت'!$D$2:$D$142,B144,'الرصيد الثابت'!$J$2:$J$142)) ->  | G144: 0 | M144: 0 | Q144: 0 | T144: 0
C145: =IF(B145="","",SUMIF('الرصيد الثابت'!$D$2:$D$142,B145,'الرصيد الثابت'!$H$2:$H$142)) ->  | D145: =IF(B145="","",SUMIF('الرصيد الثابت'!$D$2:$D$142,B145,'الرصيد الثابت'!$I$2:$I$142)) ->  | E145: =IF(B145="","",SUMIF('الرصيد الثابت'!$D$2:$D$142,B145,'الرصيد الثابت'!$J$2:$J$142)) ->  | G145: 0 | M145: 0 | Q145: 0 | T145: 0
C146: =IF(B146="","",SUMIF('الرصيد الثابت'!$D$2:$D$142,B146,'الرصيد الثابت'!$H$2:$H$142)) ->  | D146: =IF(B146="","",SUMIF('الرصيد الثابت'!$D$2:$D$142,B146,'الرصيد الثابت'!$I$2:$I$142)) ->  | E146: =IF(B146="","",SUMIF('الرصيد الثابت'!$D$2:$D$142,B146,'الرصيد الثابت'!$J$2:$J$142)) ->  | G146: 0 | M146: 0 | Q146: 0 | T146: 0
C147: =IF(B147="","",SUMIF('الرصيد الثابت'!$D$2:$D$142,B147,'الرصيد الثابت'!$H$2:$H$142)) ->  | D147: =IF(B147="","",SUMIF('الرصيد الثابت'!$D$2:$D$142,B147,'الرصيد الثابت'!$I$2:$I$142)) ->  | E147: =IF(B147="","",SUMIF('الرصيد الثابت'!$D$2:$D$142,B147,'الرصيد الثابت'!$J$2:$J$142)) ->  | G147: 0 | M147: 0 | Q147: 0 | T147: 0
C148: =IF(B148="","",SUMIF('الرصيد الثابت'!$D$2:$D$142,B148,'الرصيد الثابت'!$H$2:$H$142)) ->  | D148: =IF(B148="","",SUMIF('الرصيد الثابت'!$D$2:$D$142,B148,'الرصيد الثابت'!$I$2:$I$142)) ->  | E148: =IF(B148="","",SUMIF('الرصيد الثابت'!$D$2:$D$142,B148,'الرصيد الثابت'!$J$2:$J$142)) ->  | G148: 0 | M148: 0 | Q148: 0 | T148: 0
C149: =IF(B149="","",SUMIF('الرصيد الثابت'!$D$2:$D$142,B149,'الرصيد الثابت'!$H$2:$H$142)) ->  | D149: =IF(B149="","",SUMIF('الرصيد الثابت'!$D$2:$D$142,B149,'الرصيد الثابت'!$I$2:$I$142)) ->  | E149: =IF(B149="","",SUMIF('الرصيد الثابت'!$D$2:$D$142,B149,'الرصيد الثابت'!$J$2:$J$142)) ->  | G149: 0 | M149: 0 | Q149: 0 | T149: 0
C150: =IF(B150="","",SUMIF('الرصيد الثابت'!$D$2:$D$142,B150,'الرصيد الثابت'!$H$2:$H$142)) ->  | D150: =IF(B150="","",SUMIF('الرصيد الثابت'!$D$2:$D$142,B150,'الرصيد الثابت'!$I$2:$I$142)) ->  | E150: =IF(B150="","",SUMIF('الرصيد الثابت'!$D$2:$D$142,B150,'الرصيد الثابت'!$J$2:$J$142)) ->  | G150: 0 | M150: 0 | Q150: 0 | T150: 0
